Workbook

Sheet Display
F2: CQG SPDR® S&P® Bank ETF Performance | AB2: =RTD("cqg.rtd", ,"SystemInfo", "Linetime") -> 45701.36073
B5: Exchange Traded Funds Performance | S5: Top 15 Performing Companies
B6: Symbol | C6: Description | H6: Last | I6: NC | J6: %NC | K6: NC/ATR | L6: Open | M6: High | N6: Low | O6: Volume | Q6: Ratio
B7: KBE | C7: =RTD("cqg.rtd", ,"ContractData",B7, "LongDescription",, "T") -> SPDR S&P Bank ETF | H7: =RTD("cqg.rtd", ,"ContractData",B7, "LastTradeToday",, "T") -> 58.15 | I7: =RTD("cqg.rtd", ,"ContractData",B7, "NetLastTradeToday",, "T") -> 0.06 | J7: =IFERROR(RTD("cqg.rtd", ,"ContractData",B7, "PerCentNetLastTrade",, "T")/100,"") -> 0.001032346869 | K7: =IFERROR(I7/RTD("cqg.rtd",,"StudyData",B7, "ATR", "MaType=Sim,Period=10", "ATR","D","-1","ALL",,,"FALSE","T")/100,"") -> 0.0005128205128 | L7: =RTD("cqg.rtd", ,"ContractData",B7, "OPen",, "T") -> 58.22 | M7: =RTD("cqg.rtd", ,"ContractData", B7, "HIgh",, "T") -> 58.31 | N7: =RTD("cqg.rtd", ,"ContractData",B7, "LOw",, "T") -> 58.06 | O7: =RTD("cqg.rtd", ,"ContractData",B7, "T_CVol",, "T") -> 53017 | Q7: =IFERROR(O7/RTD("cqg.rtd",,"StudyData",B7, "MA", "InputChoice=Vol,MAType=Sim,Period=21", "MA","D","-1","all",,,,"T"),"") -> 0.02619307981
B8: SPY | C8: =RTD("cqg.rtd", ,"ContractData",B8, "LongDescription",, "T") -> SPDR S&P 500 | H8: =RTD("cqg.rtd", ,"ContractData",B8, "LastTradeToday",, "T") -> 603.46 | I8: =RTD("cqg.rtd", ,"ContractData",B8, "NetLastTradeToday",, "T") -> 0.4 | J8: =IFERROR(RTD("cqg.rtd", ,"ContractData",B8, "PerCentNetLastTrade",, "T")/100,"") -> 0.0006629541236 | K8: =IFERROR(I8/RTD("cqg.rtd",,"StudyData",B8, "ATR", "MaType=Sim,Period=10", "ATR","D","-1","ALL",,,"FALSE","T")/100,"") -> 0.000626566416 | L8: =RTD("cqg.rtd", ,"ContractData",B8, "OPen",, "T") -> 604.48 | M8: =RTD("cqg.rtd", ,"ContractData", B8, "HIgh",, "T") -> 605.05 | N8: =RTD("cqg.rtd", ,"ContractData",B8, "LOw",, "T") -> 603.2 | O8: =RTD("cqg.rtd", ,"ContractData",B8, "T_CVol",, "T") -> 2624602 | Q8: =IFERROR(O8/RTD("cqg.rtd",,"StudyData",B8, "MA", "InputChoice=Vol,MAType=Sim,Period=21", "MA","D","-1","all",,,,"T"),"") -> 0.05811687971
B9: S.MSFT | C9: =RTD("cqg.rtd", ,"ContractData",B9, "LongDescription",, "T") -> Microsoft Corporation | H9: =RTD("cqg.rtd", ,"ContractData",B9, "LastTradeToday",, "T") -> 406.9 | I9: =RTD("cqg.rtd", ,"ContractData",B9, "NetLastTradeToday",, "T") -> -1.98 | J9: =IFERROR(RTD("cqg.rtd", ,"ContractData",B9, "PerCentNetLastTrade",, "T")/100,"") -> -0.004840602386 | K9: =IFERROR(I9/RTD("cqg.rtd",,"StudyData",B9, "ATR", "MaType=Sim,Period=10", "ATR","D","-1","ALL",,,"FALSE","T")/100,"") -> -0.002452619844 | L9: =RTD("cqg.rtd", ,"ContractData",B9, "OPen",, "T") -> 407 | M9: =RTD("cqg.rtd", ,"ContractData", B9, "HIgh",, "T") -> 409 | N9: =RTD("cqg.rtd", ,"ContractData",B9, "LOw",, "T") -> 406.36 | O9: =RTD("cqg.rtd", ,"ContractData",B9, "T_CVol",, "T") -> 2936685 | Q9: =IFERROR(O9/RTD("cqg.rtd",,"StudyData",B9, "MA", "InputChoice=Vol,MAType=Sim,Period=21", "MA","D","-1","all",,,,"T"),"") -> 0.1240218324
B10: S.AAPL | C10: =RTD("cqg.rtd", ,"ContractData",B10, "LongDescription",, "T") -> Apple Inc | H10: =RTD("cqg.rtd", ,"ContractData",B10, "LastTradeToday",, "T") -> 236.59 | I10: =RTD("cqg.rtd", ,"ContractData",B10, "NetLastTradeToday",, "T") -> -0.31 | J10: =IFERROR(RTD("cqg.rtd", ,"ContractData",B10, "PerCentNetLastTrade",, "T")/100,"") -> -0.001308734749 | K10: =IFERROR(I10/RTD("cqg.rtd",,"StudyData",B10, "ATR", "MaType=Sim,Period=10", "ATR","D","-1","ALL",,,"FALSE","T")/100,"") -> -0.0004696969697 | L10: =RTD("cqg.rtd", ,"ContractData",B10, "OPen",, "T") -> 236.91 | M10: =RTD("cqg.rtd", ,"ContractData", B10, "HIgh",, "T") -> 239 | N10: =RTD("cqg.rtd", ,"ContractData",B10, "LOw",, "T") -> 236.4 | O10: =RTD("cqg.rtd", ,"ContractData",B10, "T_CVol",, "T") -> 4791869 | Q10: =IFERROR(O10/RTD("cqg.rtd",,"StudyData",B10, "MA", "InputChoice=Vol,MAType=Sim,Period=21", "MA","D","-1","all",,,,"T"),"") -> 0.08188295211
B11: KBE | C11: =RTD("cqg.rtd", ,"ContractData",B11, "LongDescription",, "T") -> SPDR S&P Bank ETF | H11: =RTD("cqg.rtd", ,"ContractData",B11, "LastTradeToday",, "T") -> 58.15 | I11: =RTD("cqg.rtd", ,"ContractData",B11, "NetLastTradeToday",, "T") -> 0.06 | J11: =IFERROR(RTD("cqg.rtd", ,"ContractData",B11, "PerCentNetLastTrade",, "T")/100,"") -> 0.001032346869 | K11: =IFERROR(I11/RTD("cqg.rtd",,"StudyData",B11, "ATR", "MaType=Sim,Period=10", "ATR","D","-1","ALL",,,"FALSE","T")/100,"") -> 0.0005128205128 | L11: =RTD("cqg.rtd", ,"ContractData",B11, "OPen",, "T") -> 58.22 | M11: =RTD("cqg.rtd", ,"ContractData", B11, "HIgh",, "T") -> 58.31 | N11: =RTD("cqg.rtd", ,"ContractData",B11, "LOw",, "T") -> 58.06 | O11: =RTD("cqg.rtd", ,"ContractData",B11, "T_CVol",, "T") -> 53017 | Q11: =IFERROR(O11/RTD("cqg.rtd",,"StudyData",B11, "MA", "InputChoice=Vol,MAType=Sim,Period=21", "MA","D","-1","all",,,,"T"),"") -> 0.02619307981
B12: IWF | C12: =RTD("cqg.rtd", ,"ContractData",B12, "LongDescription",, "T") -> iShares Russell 1000 Growth ETF | H12: =RTD("cqg.rtd", ,"ContractData",B12, "LastTradeToday",, "T") -> 410.72 | I12: =RTD("cqg.rtd", ,"ContractData",B12, "NetLastTradeToday",, "T") -> 0.06 | J12: =IFERROR(RTD("cqg.rtd", ,"ContractData",B12, "PerCentNetLastTrade",, "T")/100,"") -> 0.0001461205007 | K12: =IFERROR(I12/RTD("cqg.rtd",,"StudyData",B12, "ATR", "MaType=Sim,Period=10", "ATR","D","-1","ALL",,,"FALSE","T")/100,"") -> 0.0001046937707 | L12: =RTD("cqg.rtd", ,"ContractData",B12, "OPen",, "T") -> 411.07 | M12: =RTD("cqg.rtd", ,"ContractData", B12, "HIgh",, "T") -> 412.42 | N12: =RTD("cqg.rtd", ,"ContractData",B12, "LOw",, "T") -> 410.54 | O12: =RTD("cqg.rtd", ,"ContractData",B12, "T_CVol",, "T") -> 29124 | Q12: =IFERROR(O12/RTD("cqg.rtd",,"StudyData",B12, "MA", "InputChoice=Vol,MAType=Sim,Period=21", "MA","D","-1","all",,,,"T"),"") -> 0.01835690892
B13: IWO | C13: =RTD("cqg.rtd", ,"ContractData",B13, "LongDescription",, "T") -> iShares Russell 2000 Growth ETF | H13: =RTD("cqg.rtd", ,"ContractData",B13, "LastTradeToday",, "T") -> 292.5 | I13: =RTD("cqg.rtd", ,"ContractData",B13, "NetLastTradeToday",, "T") -> 0.37 | J13: =IFERROR(RTD("cqg.rtd", ,"ContractData",B13, "PerCentNetLastTrade",, "T")/100,"") -> 0.001266559408 | K13: =IFERROR(I13/RTD("cqg.rtd",,"StudyData",B13, "ATR", "MaType=Sim,Period=10", "ATR","D","-1","ALL",,,"FALSE","T")/100,"") -> 0.0007233626588 | L13: =RTD("cqg.rtd", ,"ContractData",B13, "OPen",, "T") -> 294.21 | M13: =RTD("cqg.rtd", ,"ContractData", B13, "HIgh",, "T") -> 294.21 | N13: =RTD("cqg.rtd", ,"ContractData",B13, "LOw",, "T") -> 292.5 | O13: =RTD("cqg.rtd", ,"ContractData",B13, "T_CVol",, "T") -> 9119 | Q13: =IFERROR(O13/RTD("cqg.rtd",,"StudyData",B13, "MA", "InputChoice=Vol,MAType=Sim,Period=21", "MA","D","-1","all",,,,"T"),"") -> 0.02816390804
B14: EP | C14: =RTD("cqg.rtd", ,"ContractData",B14, "LongDescription",, "T") -> E-Mini S&P 500, Mar 25 | H14: =RTD("cqg.rtd", ,"ContractData",B14, "LastTradeToday",, "T") -> 6073 | I14: =RTD("cqg.rtd", ,"ContractData",B14, "NetLastTradeToday",, "T") -> 3 | J14: =IFERROR(RTD("cqg.rtd", ,"ContractData",B14, "PerCentNetLastTrade",, "T")/100,"") -> 0.0004940101272 | K14: =IFERROR(I14/RTD("cqg.rtd",,"StudyData",B14, "ATR", "MaType=Sim,Period=10", "ATR","D","-1","ALL",,,"FALSE","T")/100,"") -> 0.0003968253968 | L14: =RTD("cqg.rtd", ,"ContractData",B14, "OPen",, "T") -> 6079.75 | M14: =RTD("cqg.rtd", ,"ContractData", B14, "HIgh",, "T") -> 6090.25 | N14: =RTD("cqg.rtd", ,"ContractData",B14, "LOw",, "T") -> 6053.5 | O14: =RTD("cqg.rtd", ,"ContractData",B14, "T_CVol",, "T") -> 251557 | Q14: =IFERROR(O14/RTD("cqg.rtd",,"StudyData",B14, "MA", "InputChoice=Vol,MAType=Sim,Period=21", "MA","D","-1","all",,,,"T"),"") -> 0.1639945325
B15: XLE | C15: =RTD("cqg.rtd", ,"ContractData",B15, "LongDescription",, "T") -> Energy Select Sector SPDR | H15: =RTD("cqg.rtd", ,"ContractData",B15, "LastTradeToday",, "T") -> 88.8 | I15: =RTD("cqg.rtd", ,"ContractData",B15, "NetLastTradeToday",, "T") -> -0.26 | J15: =IFERROR(RTD("cqg.rtd", ,"ContractData",B15, "PerCentNetLastTrade",, "T")/100,"") -> -0.002920035939 | K15: =IFERROR(I15/RTD("cqg.rtd",,"StudyData",B15, "ATR", "MaType=Sim,Period=10", "ATR","D","-1","ALL",,,"FALSE","T")/100,"") -> -0.001400107701 | L15: =RTD("cqg.rtd", ,"ContractData",B15, "OPen",, "T") -> 88.9 | M15: =RTD("cqg.rtd", ,"ContractData", B15, "HIgh",, "T") -> 89.01 | N15: =RTD("cqg.rtd", ,"ContractData",B15, "LOw",, "T") -> 88.32 | O15: =RTD("cqg.rtd", ,"ContractData",B15, "T_CVol",, "T") -> 1205058 | Q15: =IFERROR(O15/RTD("cqg.rtd",,"StudyData",B15, "MA", "InputChoice=Vol,MAType=Sim,Period=21", "MA","D","-1","all",,,,"T"),"") -> 0.07345652369
B16: RSP | C16: =RTD("cqg.rtd", ,"ContractData",B16, "LongDescription",, "T") -> Invesco S&P 500 Equal Weight ETF | H16: =RTD("cqg.rtd", ,"ContractData",B16, "LastTradeToday",, "T") -> 179.94 | I16: =RTD("cqg.rtd", ,"ContractData",B16, "NetLastTradeToday",, "T") -> 0.31 | J16: =IFERROR(RTD("cqg.rtd", ,"ContractData",B16, "PerCentNetLastTrade",, "T")/100,"") -> 0.001725097385 | K16: =IFERROR(I16/RTD("cqg.rtd",,"StudyData",B16, "ATR", "MaType=Sim,Period=10", "ATR","D","-1","ALL",,,"FALSE","T")/100,"") -> 0.001641079936 | L16: =RTD("cqg.rtd", ,"ContractData",B16, "OPen",, "T") -> 180.3 | M16: =RTD("cqg.rtd", ,"ContractData", B16, "HIgh",, "T") -> 180.34 | N16: =RTD("cqg.rtd", ,"ContractData",B16, "LOw",, "T") -> 179.81 | O16: =RTD("cqg.rtd", ,"ContractData",B16, "T_CVol",, "T") -> 318648 | Q16: =IFERROR(O16/RTD("cqg.rtd",,"StudyData",B16, "MA", "InputChoice=Vol,MAType=Sim,Period=21", "MA","D","-1","all",,,,"T"),"") -> 0.0372819104
C17: Top 15 Description | H17: Last | I17: NC | J17: %NC | K17: NC/ATR | L17: Open | M17: High | N17: Low | O17: Volume | Q17: Ratio
A18: =TRIM(KBE!O1) -> S.US.RKT | B18: News | C18: =IFERROR(RTD("cqg.rtd", ,"ContractData",A18, "LongDescription",, "T")&" ("&RIGHT(A18,LEN(A18)-5)&")","") -> Rocket Companies, Inc. (RKT) | H18: =IFERROR(RTD("cqg.rtd", ,"ContractData",A18, "LastTradeToday",, "T"),"") -> 12.46 | I18: =IFERROR(RTD("cqg.rtd", ,"ContractData",A18, "NetLastTradeToday",, "T"),"") -> 0.27 | J18: =IFERROR(RTD("cqg.rtd", ,"ContractData",A18, "PerCentNetLastTrade",, "T")/100,"") -> 0.02214930271 | K18: =IFERROR(I18/RTD("cqg.rtd",,"StudyData",A18, "ATR", "MaType=Sim,Period=10", "ATR","D","-1","ALL",,,"FALSE","T")/100,"") -> 0.005027932961 | L18: =IFERROR(RTD("cqg.rtd", ,"ContractData",A18, "OPen",, "T"),"") -> 12.42 | M18: =IFERROR(RTD("cqg.rtd", ,"ContractData", A18, "HIgh",, "T"),"") -> 12.67 | N18: =IFERROR(RTD("cqg.rtd", ,"ContractData",A18, "LOw",, "T"),"") -> 12.32 | O18: =IFERROR(RTD("cqg.rtd", ,"ContractData",A18, "T_CVol",, "T"),"") -> 196695 | Q18: =IFERROR(O18/RTD("cqg.rtd",,"StudyData",A18, "MA", "InputChoice=Vol,MAType=Sim,Period=21", "MA","D","-1","all",,,,"T"),"") -> 0.05953599916 | R18: =KBE!Q1 -> https://finance.yahoo.com/quote/RKT
A19: =TRIM(KBE!O2) -> S.US.FLG | B19: News | C19: =IFERROR(RTD("cqg.rtd", ,"ContractData",A19, "LongDescription",, "T")&" ("&RIGHT(A19,LEN(A19)-5)&")","") -> Flagstar Financial, Inc. (FLG) | H19: =IFERROR(RTD("cqg.rtd", ,"ContractData",A19, "LastTradeToday",, "T"),"") -> 12.51 | I19: =IFERROR(RTD("cqg.rtd", ,"ContractData",A19, "NetLastTradeToday",, "T"),"") -> 0.16 | J19: =IFERROR(RTD("cqg.rtd", ,"ContractData",A19, "PerCentNetLastTrade",, "T")/100,"") -> 0.01294498382 | K19: =IFERROR(I19/RTD("cqg.rtd",,"StudyData",A19, "ATR", "MaType=Sim,Period=10", "ATR","D","-1","ALL",,,"FALSE","T")/100,"") -> 0.002225312935 | L19: =IFERROR(RTD("cqg.rtd", ,"ContractData",A19, "OPen",, "T"),"") -> 12.44 | M19: =IFERROR(RTD("cqg.rtd", ,"ContractData", A19, "HIgh",, "T"),"") -> 12.58 | N19: =IFERROR(RTD("cqg.rtd", ,"ContractData",A19, "LOw",, "T"),"") -> 12.44 | O19: =IFERROR(RTD("cqg.rtd", ,"ContractData",A19, "T_CVol",, "T"),"") -> 105445 | Q19: =IFERROR(O19/RTD("cqg.rtd",,"StudyData",A19, "MA", "InputChoice=Vol,MAType=Sim,Period=21", "MA","D","-1","all",,,,"T"),"") -> 0.01547933088 | R19: =KBE!Q2 -> https://finance.yahoo.com/quote/FLG
A20: =TRIM(KBE!O3) -> S.US.CBU | B20: News | C20: =IFERROR(RTD("cqg.rtd", ,"ContractData",A20, "LongDescription",, "T")&" ("&RIGHT(A20,LEN(A20)-5)&")","") -> Community Financial System, Inc. (CBU) | H20: =IFERROR(RTD("cqg.rtd", ,"ContractData",A20, "LastTradeToday",, "T"),"") -> 65.23 | I20: =IFERROR(RTD("cqg.rtd", ,"ContractData",A20, "NetLastTradeToday",, "T"),"") -> 0.52 | J20: =IFERROR(RTD("cqg.rtd", ,"ContractData",A20, "PerCentNetLastTrade",, "T")/100,"") -> 0.008035852264 | K20: =IFERROR(I20/RTD("cqg.rtd",,"StudyData",A20, "ATR", "MaType=Sim,Period=10", "ATR","D","-1","ALL",,,"FALSE","T")/100,"") -> 0.003213844252 | L20: =IFERROR(RTD("cqg.rtd", ,"ContractData",A20, "OPen",, "T"),"") -> 65.23 | M20: =IFERROR(RTD("cqg.rtd", ,"ContractData", A20, "HIgh",, "T"),"") -> 65.23 | N20: =IFERROR(RTD("cqg.rtd", ,"ContractData",A20, "LOw",, "T"),"") -> 65.23 | O20: =IFERROR(RTD("cqg.rtd", ,"ContractData",A20, "T_CVol",, "T"),"") -> 1232 | Q20: =IFERROR(O20/RTD("cqg.rtd",,"StudyData",A20, "MA", "InputChoice=Vol,MAType=Sim,Period=21", "MA","D","-1","all",,,,"T"),"") -> 0.005286678478 | R20: =KBE!Q3 -> https://finance.yahoo.com/quote/CBU
A21: =TRIM(KBE!O4) -> S.US.BK | B21: News | C21: =IFERROR(RTD("cqg.rtd", ,"ContractData",A21, "LongDescription",, "T")&" ("&RIGHT(A21,LEN(A21)-5)&")","") -> Bank of New York Co Inc (BK) | H21: =IFERROR(RTD("cqg.rtd", ,"ContractData",A21, "LastTradeToday",, "T"),"") -> 85.94 | I21: =IFERROR(RTD("cqg.rtd", ,"ContractData",A21, "NetLastTradeToday",, "T"),"") -> 0.64 | J21: =IFERROR(RTD("cqg.rtd", ,"ContractData",A21, "PerCentNetLastTrade",, "T")/100,"") -> 0.007501172058 | K21: =IFERROR(I21/RTD("cqg.rtd",,"StudyData",A21, "ATR", "MaType=Sim,Period=10", "ATR","D","-1","ALL",,,"FALSE","T")/100,"") -> 0.005 | L21: =IFERROR(RTD("cqg.rtd", ,"ContractData",A21, "OPen",, "T"),"") -> 85.73 | M21: =IFERROR(RTD("cqg.rtd", ,"ContractData", A21, "HIgh",, "T"),"") -> 85.96 | N21: =IFERROR(RTD("cqg.rtd", ,"ContractData",A21, "LOw",, "T"),"") -> 85.51 | O21: =IFERROR(RTD("cqg.rtd", ,"ContractData",A21, "T_CVol",, "T"),"") -> 63160 | Q21: =IFERROR(O21/RTD("cqg.rtd",,"StudyData",A21, "MA", "InputChoice=Vol,MAType=Sim,Period=21", "MA","D","-1","all",,,,"T"),"") -> 0.01634958277 | R21: =KBE!Q4 -> https://finance.yahoo.com/quote/BK
A22: =TRIM(KBE!O5) -> S.US.TBBK | B22: News | C22: =IFERROR(RTD("cqg.rtd", ,"ContractData",A22, "LongDescription",, "T")&" ("&RIGHT(A22,LEN(A22)-5)&")","") -> The Bancorp Bank (TBBK) | H22: =IFERROR(RTD("cqg.rtd", ,"ContractData",A22, "LastTradeToday",, "T"),"") -> 61.41 | I22: =IFERROR(RTD("cqg.rtd", ,"ContractData",A22, "NetLastTradeToday",, "T"),"") -> 0.42 | J22: =IFERROR(RTD("cqg.rtd", ,"ContractData",A22, "PerCentNetLastTrade",, "T")/100,"") -> 0.006886374816 | K22: =IFERROR(I22/RTD("cqg.rtd",,"StudyData",A22, "ATR", "MaType=Sim,Period=10", "ATR","D","-1","ALL",,,"FALSE","T")/100,"") -> 0.001369863014 | L22: =IFERROR(RTD("cqg.rtd", ,"ContractData",A22, "OPen",, "T"),"") -> 61.05 | M22: =IFERROR(RTD("cqg.rtd", ,"ContractData", A22, "HIgh",, "T"),"") -> 61.44 | N22: =IFERROR(RTD("cqg.rtd", ,"ContractData",A22, "LOw",, "T"),"") -> 61.05 | O22: =IFERROR(RTD("cqg.rtd", ,"ContractData",A22, "T_CVol",, "T"),"") -> 10446 | Q22: =IFERROR(O22/RTD("cqg.rtd",,"StudyData",A22, "MA", "InputChoice=Vol,MAType=Sim,Period=21", "MA","D","-1","all",,,,"T"),"") -> 0.01999837363 | R22: =KBE!Q5 -> https://finance.yahoo.com/quote/TBBK
A23: =TRIM(KBE!O6) -> S.US.TCBI | B23: News | C23: =IFERROR(RTD("cqg.rtd", ,"ContractData",A23, "LongDescription",, "T")&" ("&RIGHT(A23,LEN(A23)-5)&")","") -> Texas Capital Bancshares Inc (TCBI) | H23: =IFERROR(RTD("cqg.rtd", ,"ContractData",A23, "LastTradeToday",, "T"),"") -> 82.56 | I23: =IFERROR(RTD("cqg.rtd", ,"ContractData",A23, "NetLastTradeToday",, "T"),"") -> 0.55 | J23: =IFERROR(RTD("cqg.rtd", ,"ContractData",A23, "PerCentNetLastTrade",, "T")/100,"") -> 0.006706499207 | K23: =IFERROR(I23/RTD("cqg.rtd",,"StudyData",A23, "ATR", "MaType=Sim,Period=10", "ATR","D","-1","ALL",,,"FALSE","T")/100,"") -> 0.002131782946 | L23: =IFERROR(RTD("cqg.rtd", ,"ContractData",A23, "OPen",, "T"),"") -> 82.25 | M23: =IFERROR(RTD("cqg.rtd", ,"ContractData", A23, "HIgh",, "T"),"") -> 82.87 | N23: =IFERROR(RTD("cqg.rtd", ,"ContractData",A23, "LOw",, "T"),"") -> 81.81 | O23: =IFERROR(RTD("cqg.rtd", ,"ContractData",A23, "T_CVol",, "T"),"") -> 10731 | Q23: =IFERROR(O23/RTD("cqg.rtd",,"StudyData",A23, "MA", "InputChoice=Vol,MAType=Sim,Period=21", "MA","D","-1","all",,,,"T"),"") -> 0.02080204233 | R23: =KBE!Q6 -> https://finance.yahoo.com/quote/TCBI
A24: =TRIM(KBE!O7) -> S.US.UBSI | B24: News | C24: =IFERROR(RTD("cqg.rtd", ,"ContractData",A24, "LongDescription",, "T")&" ("&RIGHT(A24,LEN(A24)-5)&")","") -> United Bankshares (UBSI) | H24: =IFERROR(RTD("cqg.rtd", ,"ContractData",A24, "LastTradeToday",, "T"),"") -> 37.98 | I24: =IFERROR(RTD("cqg.rtd", ,"ContractData",A24, "NetLastTradeToday",, "T"),"") -> 0.25 | J24: =IFERROR(RTD("cqg.rtd", ,"ContractData",A24, "PerCentNetLastTrade",, "T")/100,"") -> 0.006606765328 | K24: =IFERROR(I24/RTD("cqg.rtd",,"StudyData",A24, "ATR", "MaType=Sim,Period=10", "ATR","D","-1","ALL",,,"FALSE","T")/100,"") -> 0.002732240437 | L24: =IFERROR(RTD("cqg.rtd", ,"ContractData",A24, "OPen",, "T"),"") -> 38.09 | M24: =IFERROR(RTD("cqg.rtd", ,"ContractData", A24, "HIgh",, "T"),"") -> 38.12 | N24: =IFERROR(RTD("cqg.rtd", ,"ContractData",A24, "LOw",, "T"),"") -> 37.95 | O24: =IFERROR(RTD("cqg.rtd", ,"ContractData",A24, "T_CVol",, "T"),"") -> 6662 | Q24: =IFERROR(O24/RTD("cqg.rtd",,"StudyData",A24, "MA", "InputChoice=Vol,MAType=Sim,Period=21", "MA","D","-1","all",,,,"T"),"") -> 0.01152823194 | R24: =KBE!Q7 -> https://finance.yahoo.com/quote/UBSI
A25: =TRIM(KBE!O8) -> S.US.WSBC | B25: News | C25: =IFERROR(RTD("cqg.rtd", ,"ContractData",A25, "LongDescription",, "T")&" ("&RIGHT(A25,LEN(A25)-5)&")","") -> WesBanco (WSBC) | H25: =IFERROR(RTD("cqg.rtd", ,"ContractData",A25, "LastTradeToday",, "T"),"") -> 36.58 | I25: =IFERROR(RTD("cqg.rtd", ,"ContractData",A25, "NetLastTradeToday",, "T"),"") -> 0.24 | J25: =IFERROR(RTD("cqg.rtd", ,"ContractData",A25, "PerCentNetLastTrade",, "T")/100,"") -> 0.00660429279 | K25: =IFERROR(I25/RTD("cqg.rtd",,"StudyData",A25, "ATR", "MaType=Sim,Period=10", "ATR","D","-1","ALL",,,"FALSE","T")/100,"") -> 0.002600216685 | L25: =IFERROR(RTD("cqg.rtd", ,"ContractData",A25, "OPen",, "T"),"") -> 36.75 | M25: =IFERROR(RTD("cqg.rtd", ,"ContractData", A25, "HIgh",, "T"),"") -> 36.75 | N25: =IFERROR(RTD("cqg.rtd", ,"ContractData",A25, "LOw",, "T"),"") -> 36.44 | O25: =IFERROR(RTD("cqg.rtd", ,"ContractData",A25, "T_CVol",, "T"),"") -> 13765 | Q25: =IFERROR(O25/RTD("cqg.rtd",,"StudyData",A25, "MA", "InputChoice=Vol,MAType=Sim,Period=21", "MA","D","-1","all",,,,"T"),"") -> 0.02618326264 | R25: =KBE!Q8 -> https://finance.yahoo.com/quote/WSBC
A26: =TRIM(KBE!O9) -> S.US.BAC | B26: News | C26: =IFERROR(RTD("cqg.rtd", ,"ContractData",A26, "LongDescription",, "T")&" ("&RIGHT(A26,LEN(A26)-5)&")","") -> Bank of America Corp (BAC) | H26: =IFERROR(RTD("cqg.rtd", ,"ContractData",A26, "LastTradeToday",, "T"),"") -> 46.49 | I26: =IFERROR(RTD("cqg.rtd", ,"ContractData",A26, "NetLastTradeToday",, "T"),"") -> 0.29 | J26: =IFERROR(RTD("cqg.rtd", ,"ContractData",A26, "PerCentNetLastTrade",, "T")/100,"") -> 0.006275697901 | K26: =IFERROR(I26/RTD("cqg.rtd",,"StudyData",A26, "ATR", "MaType=Sim,Period=10", "ATR","D","-1","ALL",,,"FALSE","T")/100,"") -> 0.003477218225 | L26: =IFERROR(RTD("cqg.rtd", ,"ContractData",A26, "OPen",, "T"),"") -> 46.52 | M26: =IFERROR(RTD("cqg.rtd", ,"ContractData", A26, "HIgh",, "T"),"") -> 46.57 | N26: =IFERROR(RTD("cqg.rtd", ,"ContractData",A26, "LOw",, "T"),"") -> 46.34 | O26: =IFERROR(RTD("cqg.rtd", ,"ContractData",A26, "T_CVol",, "T"),"") -> 1632095 | Q26: =IFERROR(O26/RTD("cqg.rtd",,"StudyData",A26, "MA", "InputChoice=Vol,MAType=Sim,Period=21", "MA","D","-1","all",,,,"T"),"") -> 0.04609084733 | R26: =KBE!Q9 -> https://finance.yahoo.com/quote/BAC
A27: =TRIM(KBE!O10) -> S.US.APO | B27: News | C27: =IFERROR(RTD("cqg.rtd", ,"ContractData",A27, "LongDescription",, "T")&" ("&RIGHT(A27,LEN(A27)-5)&")","") -> Apollo Global Management, LLC (APO) | H27: =IFERROR(RTD("cqg.rtd", ,"ContractData",A27, "LastTradeToday",, "T"),"") -> 158.22 | I27: =IFERROR(RTD("cqg.rtd", ,"ContractData",A27, "NetLastTradeToday",, "T"),"") -> 0.98 | J27: =IFERROR(RTD("cqg.rtd", ,"ContractData",A27, "PerCentNetLastTrade",, "T")/100,"") -> 0.006224593496 | K27: =IFERROR(I27/RTD("cqg.rtd",,"StudyData",A27, "ATR", "MaType=Sim,Period=10", "ATR","D","-1","ALL",,,"FALSE","T")/100,"") -> 0.001876316293 | L27: =IFERROR(RTD("cqg.rtd", ,"ContractData",A27, "OPen",, "T"),"") -> 158.2 | M27: =IFERROR(RTD("cqg.rtd", ,"ContractData", A27, "HIgh",, "T"),"") -> 159.11 | N27: =IFERROR(RTD("cqg.rtd", ,"ContractData",A27, "LOw",, "T"),"") -> 158.08 | O27: =IFERROR(RTD("cqg.rtd", ,"ContractData",A27, "T_CVol",, "T"),"") -> 68722 | Q27: =IFERROR(O27/RTD("cqg.rtd",,"StudyData",A27, "MA", "InputChoice=Vol,MAType=Sim,Period=21", "MA","D","-1","all",,,,"T"),"") -> 0.02077368497 | R27: =KBE!Q10 -> https://finance.yahoo.com/quote/APO | S27: Bottom 15 Performing Companies
A28: =TRIM(KBE!O11) -> S.US.NTRS | B28: News | C28: =IFERROR(RTD("cqg.rtd", ,"ContractData",A28, "LongDescription",, "T")&" ("&RIGHT(A28,LEN(A28)-5)&")","") -> Northern Trust Corp (NTRS) | H28: =IFERROR(RTD("cqg.rtd", ,"ContractData",A28, "LastTradeToday",, "T"),"") -> 110.58 | I28: =IFERROR(RTD("cqg.rtd", ,"ContractData",A28, "NetLastTradeToday",, "T"),"") -> 0.6 | J28: =IFERROR(RTD("cqg.rtd", ,"ContractData",A28, "PerCentNetLastTrade",, "T")/100,"") -> 0.005449591281 | K28: =IFERROR(I28/RTD("cqg.rtd",,"StudyData",A28, "ATR", "MaType=Sim,Period=10", "ATR","D","-1","ALL",,,"FALSE","T")/100,"") -> 0.003164556962 | L28: =IFERROR(RTD("cqg.rtd", ,"ContractData",A28, "OPen",, "T"),"") -> 110.19 | M28: =IFERROR(RTD("cqg.rtd", ,"ContractData", A28, "HIgh",, "T"),"") -> 110.7 | N28: =IFERROR(RTD("cqg.rtd", ,"ContractData",A28, "LOw",, "T"),"") -> 110.1 | O28: =IFERROR(RTD("cqg.rtd", ,"ContractData",A28, "T_CVol",, "T"),"") -> 18060 | Q28: =IFERROR(O28/RTD("cqg.rtd",,"StudyData",A28, "MA", "InputChoice=Vol,MAType=Sim,Period=21", "MA","D","-1","all",,,,"T"),"") -> 0.0145929421 | R28: =KBE!Q11 -> https://finance.yahoo.com/quote/NTRS
A29: =TRIM(KBE!O12) -> S.US.PFS | B29: News | C29: =IFERROR(RTD("cqg.rtd", ,"ContractData",A29, "LongDescription",, "T")&" ("&RIGHT(A29,LEN(A29)-5)&")","") -> Provident Financial Services Inc (PFS) | H29: =IFERROR(RTD("cqg.rtd", ,"ContractData",A29, "LastTradeToday",, "T"),"") -> 18.77 | I29: =IFERROR(RTD("cqg.rtd", ,"ContractData",A29, "NetLastTradeToday",, "T"),"") -> 0.1 | J29: =IFERROR(RTD("cqg.rtd", ,"ContractData",A29, "PerCentNetLastTrade",, "T")/100,"") -> 0.005344735436 | K29: =IFERROR(I29/RTD("cqg.rtd",,"StudyData",A29, "ATR", "MaType=Sim,Period=10", "ATR","D","-1","ALL",,,"FALSE","T")/100,"") -> 0.001776198934 | L29: =IFERROR(RTD("cqg.rtd", ,"ContractData",A29, "OPen",, "T"),"") -> 18.86 | M29: =IFERROR(RTD("cqg.rtd", ,"ContractData", A29, "HIgh",, "T"),"") -> 18.86 | N29: =IFERROR(RTD("cqg.rtd", ,"ContractData",A29, "LOw",, "T"),"") -> 18.72 | O29: =IFERROR(RTD("cqg.rtd", ,"ContractData",A29, "T_CVol",, "T"),"") -> 7590 | Q29: =IFERROR(O29/RTD("cqg.rtd",,"StudyData",A29, "MA", "InputChoice=Vol,MAType=Sim,Period=21", "MA","D","-1","all",,,,"T"),"") -> 0.01186550021 | R29: =KBE!Q12 -> https://finance.yahoo.com/quote/PFS
A30: =TRIM(KBE!O13) -> S.US.FIBK | B30: News | C30: =IFERROR(RTD("cqg.rtd", ,"ContractData",A30, "LongDescription",, "T")&" ("&RIGHT(A30,LEN(A30)-5)&")","") -> First Interstate BancSystem, Inc. (FIBK) | H30: =IFERROR(RTD("cqg.rtd", ,"ContractData",A30, "LastTradeToday",, "T"),"") -> 32.18 | I30: =IFERROR(RTD("cqg.rtd", ,"ContractData",A30, "NetLastTradeToday",, "T"),"") -> 0.17 | J30: =IFERROR(RTD("cqg.rtd", ,"ContractData",A30, "PerCentNetLastTrade",, "T")/100,"") -> 0.005305867665 | K30: =IFERROR(I30/RTD("cqg.rtd",,"StudyData",A30, "ATR", "MaType=Sim,Period=10", "ATR","D","-1","ALL",,,"FALSE","T")/100,"") -> 0.00174717369 | L30: =IFERROR(RTD("cqg.rtd", ,"ContractData",A30, "OPen",, "T"),"") -> 32.25 | M30: =IFERROR(RTD("cqg.rtd", ,"ContractData", A30, "HIgh",, "T"),"") -> 32.25 | N30: =IFERROR(RTD("cqg.rtd", ,"ContractData",A30, "LOw",, "T"),"") -> 32.17 | O30: =IFERROR(RTD("cqg.rtd", ,"ContractData",A30, "T_CVol",, "T"),"") -> 7159 | Q30: =IFERROR(O30/RTD("cqg.rtd",,"StudyData",A30, "MA", "InputChoice=Vol,MAType=Sim,Period=21", "MA","D","-1","all",,,,"T"),"") -> 0.0127574038 | R30: =KBE!Q13 -> https://finance.yahoo.com/quote/FIBK
A31: =TRIM(KBE!O14) -> S.US.WAFD | B31: News | C31: =IFERROR(RTD("cqg.rtd", ,"ContractData",A31, "LongDescription",, "T")&" ("&RIGHT(A31,LEN(A31)-5)&")","") -> WaFd Inc. (WAFD) | H31: =IFERROR(RTD("cqg.rtd", ,"ContractData",A31, "LastTradeToday",, "T"),"") -> 29.61 | I31: =IFERROR(RTD("cqg.rtd", ,"ContractData",A31, "NetLastTradeToday",, "T"),"") -> 0.15 | J31: =IFERROR(RTD("cqg.rtd", ,"ContractData",A31, "PerCentNetLastTrade",, "T")/100,"") -> 0.005091649695 | K31: =IFERROR(I31/RTD("cqg.rtd",,"StudyData",A31, "ATR", "MaType=Sim,Period=10", "ATR","D","-1","ALL",,,"FALSE","T")/100,"") -> 0.001657458564 | L31: =IFERROR(RTD("cqg.rtd", ,"ContractData",A31, "OPen",, "T"),"") -> 29.61 | M31: =IFERROR(RTD("cqg.rtd", ,"ContractData", A31, "HIgh",, "T"),"") -> 29.61 | N31: =IFERROR(RTD("cqg.rtd", ,"ContractData",A31, "LOw",, "T"),"") -> 29.61 | O31: =IFERROR(RTD("cqg.rtd", ,"ContractData",A31, "T_CVol",, "T"),"") -> 1665 | Q31: =IFERROR(O31/RTD("cqg.rtd",,"StudyData",A31, "MA", "InputChoice=Vol,MAType=Sim,Period=21", "MA","D","-1","all",,,,"T"),"") -> 0.003008396407 | R31: =KBE!Q14 -> https://finance.yahoo.com/quote/WAFD
A32: =TRIM(KBE!O15) -> S.US.ESNT | B32: News | C32: =IFERROR(RTD("cqg.rtd", ,"ContractData",A32, "LongDescription",, "T")&" ("&RIGHT(A32,LEN(A32)-5)&")","") -> Essent Group Ltd. (ESNT) | H32: =IFERROR(RTD("cqg.rtd", ,"ContractData",A32, "LastTradeToday",, "T"),"") -> 57.39 | I32: =IFERROR(RTD("cqg.rtd", ,"ContractData",A32, "NetLastTradeToday",, "T"),"") -> 0.29 | J32: =IFERROR(RTD("cqg.rtd", ,"ContractData",A32, "PerCentNetLastTrade",, "T")/100,"") -> 0.005077919804 | K32: =IFERROR(I32/RTD("cqg.rtd",,"StudyData",A32, "ATR", "MaType=Sim,Period=10", "ATR","D","-1","ALL",,,"FALSE","T")/100,"") -> 0.002879841112 | L32: =IFERROR(RTD("cqg.rtd", ,"ContractData",A32, "OPen",, "T"),"") -> 57.41 | M32: =IFERROR(RTD("cqg.rtd", ,"ContractData", A32, "HIgh",, "T"),"") -> 57.48 | N32: =IFERROR(RTD("cqg.rtd", ,"ContractData",A32, "LOw",, "T"),"") -> 57.27 | O32: =IFERROR(RTD("cqg.rtd", ,"ContractData",A32, "T_CVol",, "T"),"") -> 22693 | Q32: =IFERROR(O32/RTD("cqg.rtd",,"StudyData",A32, "MA", "InputChoice=Vol,MAType=Sim,Period=21", "MA","D","-1","all",,,,"T"),"") -> 0.03254781282 | R32: =KBE!Q15 -> https://finance.yahoo.com/quote/ESNT
C33: Bottom 15 Description | H33: Last | I33: NC | J33: %NC | K33: NC/ATR | L33: Open | M33: High | N33: Low | O33: Volume | Q33: Ratio
A34: =TRIM(KBE!O81) -> S.US.RF | B34: News | C34: =IFERROR(RTD("cqg.rtd", ,"ContractData",A34, "LongDescription",, "T")&" ("&RIGHT(A34,LEN(A34)-5)&")","") -> Regions Financial Corp (RF) | H34: =IFERROR(RTD("cqg.rtd", ,"ContractData",A34, "LastTradeToday",, "T"),"") -> 23.9 | I34: =IFERROR(RTD("cqg.rtd", ,"ContractData",A34, "NetLastTradeToday",, "T"),"") -> -0.04 | J34: =IFERROR(RTD("cqg.rtd", ,"ContractData",A34, "PerCentNetLastTrade",, "T")/100,"") -> -0.001667361401 | K34: =IFERROR(I34/RTD("cqg.rtd",,"StudyData",A34, "ATR", "MaType=Sim,Period=10", "ATR","D","-1","ALL",,,"FALSE","T")/100,"") -> -0.0007575757576 | L34: =IFERROR(RTD("cqg.rtd", ,"ContractData",A34, "OPen",, "T"),"") -> 23.98 | M34: =IFERROR(RTD("cqg.rtd", ,"ContractData", A34, "HIgh",, "T"),"") -> 24.05 | N34: =IFERROR(RTD("cqg.rtd", ,"ContractData",A34, "LOw",, "T"),"") -> 23.86 | O34: =IFERROR(RTD("cqg.rtd", ,"ContractData",A34, "T_CVol",, "T"),"") -> 170526 | Q34: =IFERROR(O34/RTD("cqg.rtd",,"StudyData",A34, "MA", "InputChoice=Vol,MAType=Sim,Period=21", "MA","D","-1","all",,,,"T"),"") -> 0.0214342785 | R34: =KBE!Q81 -> https://finance.yahoo.com/quote/RF
A35: =TRIM(KBE!O82) -> S.US.JXN | B35: News | C35: =IFERROR(RTD("cqg.rtd", ,"ContractData",A35, "LongDescription",, "T")&" ("&RIGHT(A35,LEN(A35)-5)&")","") -> Jackson Financial Inc. (JXN) | H35: =IFERROR(RTD("cqg.rtd", ,"ContractData",A35, "LastTradeToday",, "T"),"") -> 91.5 | I35: =IFERROR(RTD("cqg.rtd", ,"ContractData",A35, "NetLastTradeToday",, "T"),"") -> -0.16 | J35: =IFERROR(RTD("cqg.rtd", ,"ContractData",A35, "PerCentNetLastTrade",, "T")/100,"") -> -0.001745581497 | K35: =IFERROR(I35/RTD("cqg.rtd",,"StudyData",A35, "ATR", "MaType=Sim,Period=10", "ATR","D","-1","ALL",,,"FALSE","T")/100,"") -> -0.0006852248394 | L35: =IFERROR(RTD("cqg.rtd", ,"ContractData",A35, "OPen",, "T"),"") -> 91.72 | M35: =IFERROR(RTD("cqg.rtd", ,"ContractData", A35, "HIgh",, "T"),"") -> 91.75 | N35: =IFERROR(RTD("cqg.rtd", ,"ContractData",A35, "LOw",, "T"),"") -> 91.42 | O35: =IFERROR(RTD("cqg.rtd", ,"ContractData",A35, "T_CVol",, "T"),"") -> 9010 | Q35: =IFERROR(O35/RTD("cqg.rtd",,"StudyData",A35, "MA", "InputChoice=Vol,MAType=Sim,Period=21", "MA","D","-1","all",,,,"T"),"") -> 0.01857078836 | R35: =KBE!Q82 -> https://finance.yahoo.com/quote/JXN
A36: =TRIM(KBE!O83) -> S.US.FHN | B36: News | C36: =IFERROR(RTD("cqg.rtd", ,"ContractData",A36, "LongDescription",, "T")&" ("&RIGHT(A36,LEN(A36)-5)&")","") -> First Horizon Corporation (FHN) | H36: =IFERROR(RTD("cqg.rtd", ,"ContractData",A36, "LastTradeToday",, "T"),"") -> 22.08 | I36: =IFERROR(RTD("cqg.rtd", ,"ContractData",A36, "NetLastTradeToday",, "T"),"") -> -0.05 | J36: =IFERROR(RTD("cqg.rtd", ,"ContractData",A36, "PerCentNetLastTrade",, "T")/100,"") -> -0.002257336343 | K36: =IFERROR(I36/RTD("cqg.rtd",,"StudyData",A36, "ATR", "MaType=Sim,Period=10", "ATR","D","-1","ALL",,,"FALSE","T")/100,"") -> -0.001008064516 | L36: =IFERROR(RTD("cqg.rtd", ,"ContractData",A36, "OPen",, "T"),"") -> 22.08 | M36: =IFERROR(RTD("cqg.rtd", ,"ContractData", A36, "HIgh",, "T"),"") -> 22.24 | N36: =IFERROR(RTD("cqg.rtd", ,"ContractData",A36, "LOw",, "T"),"") -> 22.07 | O36: =IFERROR(RTD("cqg.rtd", ,"ContractData",A36, "T_CVol",, "T"),"") -> 128240 | Q36: =IFERROR(O36/RTD("cqg.rtd",,"StudyData",A36, "MA", "InputChoice=Vol,MAType=Sim,Period=21", "MA","D","-1","all",,,,"T"),"") -> 0.02061621668 | R36: =KBE!Q83 -> https://finance.yahoo.com/quote/FHN
A37: =TRIM(KBE!O84) -> S.US.GBCI | B37: News | C37: =IFERROR(RTD("cqg.rtd", ,"ContractData",A37, "LongDescription",, "T")&" ("&RIGHT(A37,LEN(A37)-5)&")","") -> Glacier Bancorp Inc (GBCI) | H37: =IFERROR(RTD("cqg.rtd", ,"ContractData",A37, "LastTradeToday",, "T"),"") -> 50.03 | I37: =IFERROR(RTD("cqg.rtd", ,"ContractData",A37, "NetLastTradeToday",, "T"),"") -> -0.13 | J37: =IFERROR(RTD("cqg.rtd", ,"ContractData",A37, "PerCentNetLastTrade",, "T")/100,"") -> -0.002591706539 | K37: =IFERROR(I37/RTD("cqg.rtd",,"StudyData",A37, "ATR", "MaType=Sim,Period=10", "ATR","D","-1","ALL",,,"FALSE","T")/100,"") ->  | L37: =IFERROR(RTD("cqg.rtd", ,"ContractData",A37, "OPen",, "T"),"") -> 50.43 | M37: =IFERROR(RTD("cqg.rtd", ,"ContractData", A37, "HIgh",, "T"),"") -> 50.43 | N37: =IFERROR(RTD("cqg.rtd", ,"ContractData",A37, "LOw",, "T"),"") -> 50.03 | O37: =IFERROR(RTD("cqg.rtd", ,"ContractData",A37, "T_CVol",, "T"),"") -> 4674 | Q37: =IFERROR(O37/RTD("cqg.rtd",,"StudyData",A37, "MA", "InputChoice=Vol,MAType=Sim,Period=21", "MA","D","-1","all",,,,"T"),"") ->  | R37: =KBE!Q84 -> https://finance.yahoo.com/quote/GBCI
A38: =TRIM(KBE!O85) -> S.US.CFR | B38: News | C38: =IFERROR(RTD("cqg.rtd", ,"ContractData",A38, "LongDescription",, "T")&" ("&RIGHT(A38,LEN(A38)-5)&")","") -> Cullen Frost Bankers Inc (CFR) | H38: =IFERROR(RTD("cqg.rtd", ,"ContractData",A38, "LastTradeToday",, "T"),"") -> 141.05 | I38: =IFERROR(RTD("cqg.rtd", ,"ContractData",A38, "NetLastTradeToday",, "T"),"") -> -0.39 | J38: =IFERROR(RTD("cqg.rtd", ,"ContractData",A38, "PerCentNetLastTrade",, "T")/100,"") -> -0.002757352941 | K38: =IFERROR(I38/RTD("cqg.rtd",,"StudyData",A38, "ATR", "MaType=Sim,Period=10", "ATR","D","-1","ALL",,,"FALSE","T")/100,"") -> -0.001102317694 | L38: =IFERROR(RTD("cqg.rtd", ,"ContractData",A38, "OPen",, "T"),"") -> 142 | M38: =IFERROR(RTD("cqg.rtd", ,"ContractData", A38, "HIgh",, "T"),"") -> 142.28 | N38: =IFERROR(RTD("cqg.rtd", ,"ContractData",A38, "LOw",, "T"),"") -> 141.05 | O38: =IFERROR(RTD("cqg.rtd", ,"ContractData",A38, "T_CVol",, "T"),"") -> 8048 | Q38: =IFERROR(O38/RTD("cqg.rtd",,"StudyData",A38, "MA", "InputChoice=Vol,MAType=Sim,Period=21", "MA","D","-1","all",,,,"T"),"") -> 0.01645341198 | R38: =KBE!Q85 -> https://finance.yahoo.com/quote/CFR
A39: =TRIM(KBE!O86) -> S.US.EQH | B39: News | C39: =IFERROR(RTD("cqg.rtd", ,"ContractData",A39, "LongDescription",, "T")&" ("&RIGHT(A39,LEN(A39)-5)&")","") -> Equitable Holdings, Inc. (EQH) | H39: =IFERROR(RTD("cqg.rtd", ,"ContractData",A39, "LastTradeToday",, "T"),"") -> 53.43 | I39: =IFERROR(RTD("cqg.rtd", ,"ContractData",A39, "NetLastTradeToday",, "T"),"") -> -0.15 | J39: =IFERROR(RTD("cqg.rtd", ,"ContractData",A39, "PerCentNetLastTrade",, "T")/100,"") -> -0.002795899348 | K39: =IFERROR(I39/RTD("cqg.rtd",,"StudyData",A39, "ATR", "MaType=Sim,Period=10", "ATR","D","-1","ALL",,,"FALSE","T")/100,"") -> -0.001204819277 | L39: =IFERROR(RTD("cqg.rtd", ,"ContractData",A39, "OPen",, "T"),"") -> 53.65 | M39: =IFERROR(RTD("cqg.rtd", ,"ContractData", A39, "HIgh",, "T"),"") -> 53.66 | N39: =IFERROR(RTD("cqg.rtd", ,"ContractData",A39, "LOw",, "T"),"") -> 53.35 | O39: =IFERROR(RTD("cqg.rtd", ,"ContractData",A39, "T_CVol",, "T"),"") -> 20672 | Q39: =IFERROR(O39/RTD("cqg.rtd",,"StudyData",A39, "MA", "InputChoice=Vol,MAType=Sim,Period=21", "MA","D","-1","all",,,,"T"),"") -> 0.006871848926 | R39: =KBE!Q86 -> https://finance.yahoo.com/quote/EQH
A40: =TRIM(KBE!O87) -> S.US.COOP | B40: News | C40: =IFERROR(RTD("cqg.rtd", ,"ContractData",A40, "LongDescription",, "T")&" ("&RIGHT(A40,LEN(A40)-5)&")","") -> Mr. Cooper Group Inc. (COOP) | H40: =IFERROR(RTD("cqg.rtd", ,"ContractData",A40, "LastTradeToday",, "T"),"") -> 106.39 | I40: =IFERROR(RTD("cqg.rtd", ,"ContractData",A40, "NetLastTradeToday",, "T"),"") -> -0.32 | J40: =IFERROR(RTD("cqg.rtd", ,"ContractData",A40, "PerCentNetLastTrade",, "T")/100,"") -> -0.002998781745 | K40: =IFERROR(I40/RTD("cqg.rtd",,"StudyData",A40, "ATR", "MaType=Sim,Period=10", "ATR","D","-1","ALL",,,"FALSE","T")/100,"") -> -0.001109570042 | L40: =IFERROR(RTD("cqg.rtd", ,"ContractData",A40, "OPen",, "T"),"") -> 107.15 | M40: =IFERROR(RTD("cqg.rtd", ,"ContractData", A40, "HIgh",, "T"),"") -> 108.19 | N40: =IFERROR(RTD("cqg.rtd", ,"ContractData",A40, "LOw",, "T"),"") -> 105.91 | O40: =IFERROR(RTD("cqg.rtd", ,"ContractData",A40, "T_CVol",, "T"),"") -> 14133 | Q40: =IFERROR(O40/RTD("cqg.rtd",,"StudyData",A40, "MA", "InputChoice=Vol,MAType=Sim,Period=21", "MA","D","-1","all",,,,"T"),"") -> 0.0273886098 | R40: =KBE!Q87 -> https://finance.yahoo.com/quote/COOP
A41: =TRIM(KBE!O88) -> S.US.OFG | B41: News | C41: =IFERROR(RTD("cqg.rtd", ,"ContractData",A41, "LongDescription",, "T")&" ("&RIGHT(A41,LEN(A41)-5)&")","") -> OFG Bancorp (OFG) | H41: =IFERROR(RTD("cqg.rtd", ,"ContractData",A41, "LastTradeToday",, "T"),"") -> 43 | I41: =IFERROR(RTD("cqg.rtd", ,"ContractData",A41, "NetLastTradeToday",, "T"),"") -> -0.17 | J41: =IFERROR(RTD("cqg.rtd", ,"ContractData",A41, "PerCentNetLastTrade",, "T")/100,"") -> -0.003937919852 | K41: =IFERROR(I41/RTD("cqg.rtd",,"StudyData",A41, "ATR", "MaType=Sim,Period=10", "ATR","D","-1","ALL",,,"FALSE","T")/100,"") -> -0.001578458682 | L41: =IFERROR(RTD("cqg.rtd", ,"ContractData",A41, "OPen",, "T"),"") -> 43.17 | M41: =IFERROR(RTD("cqg.rtd", ,"ContractData", A41, "HIgh",, "T"),"") -> 43.17 | N41: =IFERROR(RTD("cqg.rtd", ,"ContractData",A41, "LOw",, "T"),"") -> 43 | O41: =IFERROR(RTD("cqg.rtd", ,"ContractData",A41, "T_CVol",, "T"),"") -> 1930 | Q41: =IFERROR(O41/RTD("cqg.rtd",,"StudyData",A41, "MA", "InputChoice=Vol,MAType=Sim,Period=21", "MA","D","-1","all",,,,"T"),"") -> 0.005435251974 | R41: =KBE!Q88 -> https://finance.yahoo.com/quote/OFG
A42: =TRIM(KBE!O89) -> S.US.ZION | B42: News | C42: =IFERROR(RTD("cqg.rtd", ,"ContractData",A42, "LongDescription",, "T")&" ("&RIGHT(A42,LEN(A42)-5)&")","") -> Zions Bancorp (ZION) | H42: =IFERROR(RTD("cqg.rtd", ,"ContractData",A42, "LastTradeToday",, "T"),"") -> 55.16 | I42: =IFERROR(RTD("cqg.rtd", ,"ContractData",A42, "NetLastTradeToday",, "T"),"") -> -0.25 | J42: =IFERROR(RTD("cqg.rtd", ,"ContractData",A42, "PerCentNetLastTrade",, "T")/100,"") -> -0.004506940689 | K42: =IFERROR(I42/RTD("cqg.rtd",,"StudyData",A42, "ATR", "MaType=Sim,Period=10", "ATR","D","-1","ALL",,,"FALSE","T")/100,"") -> -0.001673360107 | L42: =IFERROR(RTD("cqg.rtd", ,"ContractData",A42, "OPen",, "T"),"") -> 55.12 | M42: =IFERROR(RTD("cqg.rtd", ,"ContractData", A42, "HIgh",, "T"),"") -> 55.32 | N42: =IFERROR(RTD("cqg.rtd", ,"ContractData",A42, "LOw",, "T"),"") -> 55.05 | O42: =IFERROR(RTD("cqg.rtd", ,"ContractData",A42, "T_CVol",, "T"),"") -> 39798 | Q42: =IFERROR(O42/RTD("cqg.rtd",,"StudyData",A42, "MA", "InputChoice=Vol,MAType=Sim,Period=21", "MA","D","-1","all",,,,"T"),"") -> 0.0326417935 | R42: =KBE!Q89 -> https://finance.yahoo.com/quote/ZION
A43: =TRIM(KBE!O90) -> S.US.USB | B43: News | C43: =IFERROR(RTD("cqg.rtd", ,"ContractData",A43, "LongDescription",, "T")&" ("&RIGHT(A43,LEN(A43)-5)&")","") -> U S Bancorp (USB) | H43: =IFERROR(RTD("cqg.rtd", ,"ContractData",A43, "LastTradeToday",, "T"),"") -> 47.23 | I43: =IFERROR(RTD("cqg.rtd", ,"ContractData",A43, "NetLastTradeToday",, "T"),"") -> -0.22 | J43: =IFERROR(RTD("cqg.rtd", ,"ContractData",A43, "PerCentNetLastTrade",, "T")/100,"") -> -0.004632554222 | K43: =IFERROR(I43/RTD("cqg.rtd",,"StudyData",A43, "ATR", "MaType=Sim,Period=10", "ATR","D","-1","ALL",,,"FALSE","T")/100,"") -> -0.002420242024 | L43: =IFERROR(RTD("cqg.rtd", ,"ContractData",A43, "OPen",, "T"),"") -> 47.47 | M43: =IFERROR(RTD("cqg.rtd", ,"ContractData", A43, "HIgh",, "T"),"") -> 47.56 | N43: =IFERROR(RTD("cqg.rtd", ,"ContractData",A43, "LOw",, "T"),"") -> 47.14 | O43: =IFERROR(RTD("cqg.rtd", ,"ContractData",A43, "T_CVol",, "T"),"") -> 147092 | Q43: =IFERROR(O43/RTD("cqg.rtd",,"StudyData",A43, "MA", "InputChoice=Vol,MAType=Sim,Period=21", "MA","D","-1","all",,,,"T"),"") -> 0.01421364198 | R43: =KBE!Q90 -> https://finance.yahoo.com/quote/USB
A44: =TRIM(KBE!O91) -> S.US.ONB | B44: News | C44: =IFERROR(RTD("cqg.rtd", ,"ContractData",A44, "LongDescription",, "T")&" ("&RIGHT(A44,LEN(A44)-5)&")","") -> Old National Bancorp (ONB) | H44: =IFERROR(RTD("cqg.rtd", ,"ContractData",A44, "LastTradeToday",, "T"),"") -> 23.62 | I44: =IFERROR(RTD("cqg.rtd", ,"ContractData",A44, "NetLastTradeToday",, "T"),"") -> -0.17 | J44: =IFERROR(RTD("cqg.rtd", ,"ContractData",A44, "PerCentNetLastTrade",, "T")/100,"") -> -0.007139857203 | K44: =IFERROR(I44/RTD("cqg.rtd",,"StudyData",A44, "ATR", "MaType=Sim,Period=10", "ATR","D","-1","ALL",,,"FALSE","T")/100,"") -> -0.00320754717 | L44: =IFERROR(RTD("cqg.rtd", ,"ContractData",A44, "OPen",, "T"),"") -> 23.85 | M44: =IFERROR(RTD("cqg.rtd", ,"ContractData", A44, "HIgh",, "T"),"") -> 23.88 | N44: =IFERROR(RTD("cqg.rtd", ,"ContractData",A44, "LOw",, "T"),"") -> 23.62 | O44: =IFERROR(RTD("cqg.rtd", ,"ContractData",A44, "T_CVol",, "T"),"") -> 92949 | Q44: =IFERROR(O44/RTD("cqg.rtd",,"StudyData",A44, "MA", "InputChoice=Vol,MAType=Sim,Period=21", "MA","D","-1","all",,,,"T"),"") -> 0.02676276622 | R44: =KBE!Q91 -> https://finance.yahoo.com/quote/ONB
A45: =TRIM(KBE!O92) -> S.US.RNST | B45: News | C45: =IFERROR(RTD("cqg.rtd", ,"ContractData",A45, "LongDescription",, "T")&" ("&RIGHT(A45,LEN(A45)-5)&")","") -> Renasant Corporation (RNST) | H45: =IFERROR(RTD("cqg.rtd", ,"ContractData",A45, "LastTradeToday",, "T"),"") -> 37.88 | I45: =IFERROR(RTD("cqg.rtd", ,"ContractData",A45, "NetLastTradeToday",, "T"),"") -> -0.28 | J45: =IFERROR(RTD("cqg.rtd", ,"ContractData",A45, "PerCentNetLastTrade",, "T")/100,"") -> -0.007354872603 | K45: =IFERROR(I45/RTD("cqg.rtd",,"StudyData",A45, "ATR", "MaType=Sim,Period=10", "ATR","D","-1","ALL",,,"FALSE","T")/100,"") -> -0.002502234138 | L45: =IFERROR(RTD("cqg.rtd", ,"ContractData",A45, "OPen",, "T"),"") -> 38.25 | M45: =IFERROR(RTD("cqg.rtd", ,"ContractData", A45, "HIgh",, "T"),"") -> 38.25 | N45: =IFERROR(RTD("cqg.rtd", ,"ContractData",A45, "LOw",, "T"),"") -> 37.77 | O45: =IFERROR(RTD("cqg.rtd", ,"ContractData",A45, "T_CVol",, "T"),"") -> 7176 | Q45: =IFERROR(O45/RTD("cqg.rtd",,"StudyData",A45, "MA", "InputChoice=Vol,MAType=Sim,Period=21", "MA","D","-1","all",,,,"T"),"") -> 0.01266973971 | R45: =KBE!Q92 -> https://finance.yahoo.com/quote/RNST
A46: =TRIM(KBE!O93) -> S.US.TFIN | B46: News | C46: =IFERROR(RTD("cqg.rtd", ,"ContractData",A46, "LongDescription",, "T")&" ("&RIGHT(A46,LEN(A46)-5)&")","") -> Triumph Financial, Inc. (TFIN) | H46: =IFERROR(RTD("cqg.rtd", ,"ContractData",A46, "LastTradeToday",, "T"),"") -> 73.05 | I46: =IFERROR(RTD("cqg.rtd", ,"ContractData",A46, "NetLastTradeToday",, "T"),"") -> -0.69 | J46: =IFERROR(RTD("cqg.rtd", ,"ContractData",A46, "PerCentNetLastTrade",, "T")/100,"") -> -0.009357200976 | K46: =IFERROR(I46/RTD("cqg.rtd",,"StudyData",A46, "ATR", "MaType=Sim,Period=10", "ATR","D","-1","ALL",,,"FALSE","T")/100,"") -> -0.002990897269 | L46: =IFERROR(RTD("cqg.rtd", ,"ContractData",A46, "OPen",, "T"),"") -> 73.95 | M46: =IFERROR(RTD("cqg.rtd", ,"ContractData", A46, "HIgh",, "T"),"") -> 75.77 | N46: =IFERROR(RTD("cqg.rtd", ,"ContractData",A46, "LOw",, "T"),"") -> 73.05 | O46: =IFERROR(RTD("cqg.rtd", ,"ContractData",A46, "T_CVol",, "T"),"") -> 11363 | Q46: =IFERROR(O46/RTD("cqg.rtd",,"StudyData",A46, "MA", "InputChoice=Vol,MAType=Sim,Period=21", "MA","D","-1","all",,,,"T"),"") -> 0.07624434693 | R46: =KBE!Q93 -> https://finance.yahoo.com/quote/TFIN
A47: =TRIM(KBE!O94) -> S.US.WD | B47: News | C47: =IFERROR(RTD("cqg.rtd", ,"ContractData",A47, "LongDescription",, "T")&" ("&RIGHT(A47,LEN(A47)-5)&")","") -> Walker & Dunlop, Inc. (WD) | H47: =IFERROR(RTD("cqg.rtd", ,"ContractData",A47, "LastTradeToday",, "T"),"") -> 89.34 | I47: =IFERROR(RTD("cqg.rtd", ,"ContractData",A47, "NetLastTradeToday",, "T"),"") -> -1.64 | J47: =IFERROR(RTD("cqg.rtd", ,"ContractData",A47, "PerCentNetLastTrade",, "T")/100,"") -> -0.01802593977 | K47: =IFERROR(I47/RTD("cqg.rtd",,"StudyData",A47, "ATR", "MaType=Sim,Period=10", "ATR","D","-1","ALL",,,"FALSE","T")/100,"") -> -0.006940330089 | L47: =IFERROR(RTD("cqg.rtd", ,"ContractData",A47, "OPen",, "T"),"") -> 90.67 | M47: =IFERROR(RTD("cqg.rtd", ,"ContractData", A47, "HIgh",, "T"),"") -> 90.67 | N47: =IFERROR(RTD("cqg.rtd", ,"ContractData",A47, "LOw",, "T"),"") -> 88.85 | O47: =IFERROR(RTD("cqg.rtd", ,"ContractData",A47, "T_CVol",, "T"),"") -> 20844 | Q47: =IFERROR(O47/RTD("cqg.rtd",,"StudyData",A47, "MA", "InputChoice=Vol,MAType=Sim,Period=21", "MA","D","-1","all",,,,"T"),"") -> 0.1094394542 | R47: =KBE!Q94 -> https://finance.yahoo.com/quote/WD
A48: =TRIM(KBE!O95) -> S.US.CRBG | B48: News | C48: =IFERROR(RTD("cqg.rtd", ,"ContractData",A48, "LongDescription",, "T")&" ("&RIGHT(A48,LEN(A48)-5)&")","") -> Corebridge Financial, Inc. (CRBG) | H48: =IFERROR(RTD("cqg.rtd", ,"ContractData",A48, "LastTradeToday",, "T"),"") -> 31.94 | I48: =IFERROR(RTD("cqg.rtd", ,"ContractData",A48, "NetLastTradeToday",, "T"),"") -> -0.82 | J48: =IFERROR(RTD("cqg.rtd", ,"ContractData",A48, "PerCentNetLastTrade",, "T")/100,"") -> -0.02503052503 | K48: =IFERROR(I48/RTD("cqg.rtd",,"StudyData",A48, "ATR", "MaType=Sim,Period=10", "ATR","D","-1","ALL",,,"FALSE","T")/100,"") -> -0.01126373626 | L48: =IFERROR(RTD("cqg.rtd", ,"ContractData",A48, "OPen",, "T"),"") -> 31.1 | M48: =IFERROR(RTD("cqg.rtd", ,"ContractData", A48, "HIgh",, "T"),"") -> 32.4 | N48: =IFERROR(RTD("cqg.rtd", ,"ContractData",A48, "LOw",, "T"),"") -> 30.41 | O48: =IFERROR(RTD("cqg.rtd", ,"ContractData",A48, "T_CVol",, "T"),"") -> 213225 | Q48: =IFERROR(O48/RTD("cqg.rtd",,"StudyData",A48, "MA", "InputChoice=Vol,MAType=Sim,Period=21", "MA","D","-1","all",,,,"T"),"") -> 0.06582851732 | R48: =KBE!Q95 -> https://finance.yahoo.com/quote/CRBG
B49: CQG Inc., Copyright © 2025 | E49: Designed by Thom Hartle | H49: Links to finance.yahoo.com | L49: Standard & Poor's®, S&P® and SPDR® are registered trademarks of Standard & Poor’s Financial Services LLC. | Z49: =KBE!AB170 -> 0.7052631579 | AA49: of the stocks in the ETF are higher today

Sheet KBE (hidden)
A1: =RTD("cqg.rtd", ,"ContractData",C1, "LongDescription",, "T") -> Ameris Bancorp | B1: S.US.ABCB | C1: S.US.ABCB | D1: =RTD("cqg.rtd", ,"ContractData",C1, "LongDescription",, "T") -> Ameris Bancorp | E1: =RTD("cqg.rtd", ,"ContractData",C1, "Open",, "T") -> 66.96 | F1: =RTD("cqg.rtd", ,"ContractData",C1, "High",, "T") -> 66.96 | G1: =RTD("cqg.rtd", ,"ContractData",C1, "Low",, "T") -> 66.56 | H1: =RTD("cqg.rtd", ,"ContractData",C1, "LastTradeToday",, "T") -> 66.79 | I1: =RTD("cqg.rtd", ,"ContractData",C1, "NetLastTradeToday",, "T") -> 0.12 | J1: =IFERROR(RTD("cqg.rtd", ,"ContractData",C1, "PerCentNetLastTrade",, "T")/100,0) -> 0.001799910004 | K1: =RTD("cqg.rtd", ,"ContractData", C1, "T_CVol",, "T") -> 3470 | L1: 1 | M1: =RANK($J1,$J$1:J$95)+COUNTIF($J$1:J1,J1)-1 -> 39 | N1: =C1 -> S.US.ABCB | O1: =VLOOKUP($L1,$M$1:$N$95,2,FALSE) -> S.US.RKT | P1: =RTD("cqg.rtd", ,"ContractData",O1, "PerCentNetLastTrade",, "T")/100 -> 0.02214930271 | Q1: ="https://finance.yahoo.com/quote/"&RIGHT(O1,(LEN(O1)-5)) -> https://finance.yahoo.com/quote/RKT | S1: =IF(P1>=0,P1,NA()) -> 0.02214930271 | T1: =IF(P1>=0,NA(),-1*P1) ->  | V1: =IFERROR(RTD("cqg.rtd", ,"ContractData",O1, "LongDescription",, "T"),"") -> Rocket Companies, Inc. | Y1: =IFERROR(S1,P1) -> 0.02214930271 | AA1: =IF(S1="NA()",0,1) -> 1 | AB1: =IFERROR(AA1,0) -> 1 | AD1: =IFERROR(S1,"") -> 0.02214930271 | AE1: =IFERROR(T1,"") ->  | AF1: =IF(AE1="","",Y1) -> 
A2: =RTD("cqg.rtd", ,"ContractData",C2, "LongDescription",, "T") -> Apollo Global Management, LLC | B2: S.US.APO | C2: S.US.APO | D2: =RTD("cqg.rtd", ,"ContractData",C2, "LongDescription",, "T") -> Apollo Global Management, LLC | E2: =RTD("cqg.rtd", ,"ContractData",C2, "Open",, "T") -> 158.2 | F2: =RTD("cqg.rtd", ,"ContractData",C2, "High",, "T") -> 159.11 | G2: =RTD("cqg.rtd", ,"ContractData",C2, "Low",, "T") -> 158.08 | H2: =RTD("cqg.rtd", ,"ContractData",C2, "LastTradeToday",, "T") -> 158.22 | I2: =RTD("cqg.rtd", ,"ContractData",C2, "NetLastTradeToday",, "T") -> 0.98 | J2: =IFERROR(RTD("cqg.rtd", ,"ContractData",C2, "PerCentNetLastTrade",, "T")/100,0) -> 0.006224593496 | K2: =RTD("cqg.rtd", ,"ContractData", C2, "T_CVol",, "T") -> 68722 | L2: =L1+1 -> 2 | M2: =RANK($J2,$J$1:J$95)+COUNTIF($J$1:J2,J2)-1 -> 10 | N2: S.US.APO | O2: =VLOOKUP($L2,$M$1:$N$95,2,FALSE) -> S.US.FLG | P2: =RTD("cqg.rtd", ,"ContractData",O2, "PerCentNetLastTrade",, "T")/100 -> 0.01294498382 | Q2: ="https://finance.yahoo.com/quote/"&RIGHT(O2,(LEN(O2)-5)) -> https://finance.yahoo.com/quote/FLG | S2: =IF(P2>=0,P2,NA()) -> 0.01294498382 | T2: =IF(P2>=0,NA(),-1*P2) ->  | V2: =IFERROR(RTD("cqg.rtd", ,"ContractData",O2, "LongDescription",, "T"),"") -> Flagstar Financial, Inc. | Y2: =IFERROR(S2,P2) -> 0.01294498382 | AA2: =IF(S2="NA()",0,1) -> 1 | AB2: =IFERROR(AA2,0) -> 1 | AD2: =IFERROR(S2,"") -> 0.01294498382 | AF2: =IF(AE2="","",Y2) -> 
A3: =RTD("cqg.rtd", ,"ContractData",C3, "LongDescription",, "T") -> Associated Banc-Corp | B3: S.US.ASB | C3: S.US.ASB | D3: =RTD("cqg.rtd", ,"ContractData",C3, "LongDescription",, "T") -> Associated Banc-Corp | E3: =RTD("cqg.rtd", ,"ContractData",C3, "Open",, "T") -> 24.84 | F3: =RTD("cqg.rtd", ,"ContractData",C3, "High",, "T") -> 24.85 | G3: =RTD("cqg.rtd", ,"ContractData",C3, "Low",, "T") -> 24.77 | H3: =RTD("cqg.rtd", ,"ContractData",C3, "LastTradeToday",, "T") -> 24.81 | I3: =RTD("cqg.rtd", ,"ContractData",C3, "NetLastTradeToday",, "T") -> 0.1 | J3: =IFERROR(RTD("cqg.rtd", ,"ContractData",C3, "PerCentNetLastTrade",, "T")/100,0) -> 0.004045307443 | K3: =RTD("cqg.rtd", ,"ContractData", C3, "T_CVol",, "T") -> 25677 | L3: =L2+1 -> 3 | M3: =RANK($J3,$J$1:J$95)+COUNTIF($J$1:J3,J3)-1 -> 20 | N3: S.US.ASB | O3: S.US.CBU | P3: =RTD("cqg.rtd", ,"ContractData",O3, "PerCentNetLastTrade",, "T")/100 -> 0.008035852264 | Q3: https://finance.yahoo.com/quote/CBU | S3: 0.008035852264 | V3: =IFERROR(RTD("cqg.rtd", ,"ContractData",O3, "LongDescription",, "T"),"") -> Community Financial System, Inc. | Y3: 0.008035852264 | AA3: 1 | AB3: 1 | AD3: 0.008035852264
A4: =RTD("cqg.rtd", ,"ContractData",C4, "LongDescription",, "T") -> Atlantic Union Bankshares Corporation | B4: S.US.AUB | C4: S.US.AUB | D4: =RTD("cqg.rtd", ,"ContractData",C4, "LongDescription",, "T") -> Atlantic Union Bankshares Corporation | E4: =RTD("cqg.rtd", ,"ContractData",C4, "Open",, "T") -> 37.9 | F4: =RTD("cqg.rtd", ,"ContractData",C4, "High",, "T") -> 37.9 | G4: =RTD("cqg.rtd", ,"ContractData",C4, "Low",, "T") -> 37.8 | H4: =RTD("cqg.rtd", ,"ContractData",C4, "LastTradeToday",, "T") -> 37.88 | I4: =RTD("cqg.rtd", ,"ContractData",C4, "NetLastTradeToday",, "T") -> 0.14 | J4: =IFERROR(RTD("cqg.rtd", ,"ContractData",C4, "PerCentNetLastTrade",, "T")/100,0) -> 0.003708609272 | K4: =RTD("cqg.rtd", ,"ContractData", C4, "T_CVol",, "T") -> 7781 | L4: 4 | M4: =RANK($J4,$J$1:J$95)+COUNTIF($J$1:J4,J4)-1 -> 22 | N4: S.US.AUB | O4: S.US.BK | P4: =RTD("cqg.rtd", ,"ContractData",O4, "PerCentNetLastTrade",, "T")/100 -> 0.007501172058 | Q4: https://finance.yahoo.com/quote/BK | S4: 0.007501172058 | V4: =IFERROR(RTD("cqg.rtd", ,"ContractData",O4, "LongDescription",, "T"),"") -> Bank of New York Co Inc | Y4: 0.007501172058 | AA4: 1 | AB4: 1 | AD4: 0.007501172058
A5: =RTD("cqg.rtd", ,"ContractData",C5, "LongDescription",, "T") -> Axos Financial, Inc. | B5: S.US.AX | C5: S.US.AX | D5: =RTD("cqg.rtd", ,"ContractData",C5, "LongDescription",, "T") -> Axos Financial, Inc. | E5: =RTD("cqg.rtd", ,"ContractData",C5, "Open",, "T") -> 70.97 | F5: =RTD("cqg.rtd", ,"ContractData",C5, "High",, "T") -> 70.97 | G5: =RTD("cqg.rtd", ,"ContractData",C5, "Low",, "T") -> 70.38 | H5: =RTD("cqg.rtd", ,"ContractData",C5, "LastTradeToday",, "T") -> 70.45 | I5: =RTD("cqg.rtd", ,"ContractData",C5, "NetLastTradeToday",, "T") -> 0.12 | J5: =IFERROR(RTD("cqg.rtd", ,"ContractData",C5, "PerCentNetLastTrade",, "T")/100,0) -> 0.00170794193 | K5: =RTD("cqg.rtd", ,"ContractData", C5, "T_CVol",, "T") -> 5899 | L5: 5 | M5: =RANK($J5,$J$1:J$95)+COUNTIF($J$1:J5,J5)-1 -> 40 | N5: S.US.AX | O5: S.US.TBBK | P5: =RTD("cqg.rtd", ,"ContractData",O5, "PerCentNetLastTrade",, "T")/100 -> 0.006886374816 | Q5: https://finance.yahoo.com/quote/TBBK | S5: 0.006886374816 | V5: =IFERROR(RTD("cqg.rtd", ,"ContractData",O5, "LongDescription",, "T"),"") -> The Bancorp Bank | Y5: 0.006886374816 | AA5: 1 | AB5: 1 | AD5: 0.006886374816
A6: =RTD("cqg.rtd", ,"ContractData",C6, "LongDescription",, "T") -> Bank of America Corp | B6: S.US.BAC | C6: S.US.BAC | D6: =RTD("cqg.rtd", ,"ContractData",C6, "LongDescription",, "T") -> Bank of America Corp | E6: =RTD("cqg.rtd", ,"ContractData",C6, "Open",, "T") -> 46.52 | F6: =RTD("cqg.rtd", ,"ContractData",C6, "High",, "T") -> 46.57 | G6: =RTD("cqg.rtd", ,"ContractData",C6, "Low",, "T") -> 46.34 | H6: =RTD("cqg.rtd", ,"ContractData",C6, "LastTradeToday",, "T") -> 46.49 | I6: =RTD("cqg.rtd", ,"ContractData",C6, "NetLastTradeToday",, "T") -> 0.29 | J6: =IFERROR(RTD("cqg.rtd", ,"ContractData",C6, "PerCentNetLastTrade",, "T")/100,0) -> 0.006275697901 | K6: =RTD("cqg.rtd", ,"ContractData", C6, "T_CVol",, "T") -> 1632095 | L6: 6 | M6: =RANK($J6,$J$1:J$95)+COUNTIF($J$1:J6,J6)-1 -> 9 | N6: S.US.BAC | O6: S.US.TCBI | P6: =RTD("cqg.rtd", ,"ContractData",O6, "PerCentNetLastTrade",, "T")/100 -> 0.006706499207 | Q6: https://finance.yahoo.com/quote/TCBI | S6: 0.006706499207 | V6: =IFERROR(RTD("cqg.rtd", ,"ContractData",O6, "LongDescription",, "T"),"") -> Texas Capital Bancshares Inc | Y6: 0.006706499207 | AA6: 1 | AB6: 1 | AD6: 0.006706499207
A7: =RTD("cqg.rtd", ,"ContractData",C7, "LongDescription",, "T") -> Banc of California, Inc. | B7: S.US.BANC | C7: S.US.BANC | D7: =RTD("cqg.rtd", ,"ContractData",C7, "LongDescription",, "T") -> Banc of California, Inc. | E7: =RTD("cqg.rtd", ,"ContractData",C7, "Open",, "T") -> 15.89 | F7: =RTD("cqg.rtd", ,"ContractData",C7, "High",, "T") -> 15.89 | G7: =RTD("cqg.rtd", ,"ContractData",C7, "Low",, "T") -> 15.81 | H7: =RTD("cqg.rtd", ,"ContractData",C7, "LastTradeToday",, "T") -> 15.81 | I7: =RTD("cqg.rtd", ,"ContractData",C7, "NetLastTradeToday",, "T") -> 0 | J7: =IFERROR(RTD("cqg.rtd", ,"ContractData",C7, "PerCentNetLastTrade",, "T")/100,0) -> 0 | K7: =RTD("cqg.rtd", ,"ContractData", C7, "T_CVol",, "T") -> 6833 | L7: 7 | M7: =RANK($J7,$J$1:J$95)+COUNTIF($J$1:J7,J7)-1 -> 65 | N7: S.US.BANC | O7: S.US.UBSI | P7: =RTD("cqg.rtd", ,"ContractData",O7, "PerCentNetLastTrade",, "T")/100 -> 0.006606765328 | Q7: https://finance.yahoo.com/quote/UBSI | S7: 0.006606765328 | V7: =IFERROR(RTD("cqg.rtd", ,"ContractData",O7, "LongDescription",, "T"),"") -> United Bankshares | Y7: 0.006606765328 | AA7: 1 | AB7: 1 | AD7: 0.006606765328
A8: =RTD("cqg.rtd", ,"ContractData",C8, "LongDescription",, "T") -> Banner Corporation | B8: S.US.BANR | C8: S.US.BANR | D8: =RTD("cqg.rtd", ,"ContractData",C8, "LongDescription",, "T") -> Banner Corporation | E8: =RTD("cqg.rtd", ,"ContractData",C8, "Open",, "T") -> 68.41 | F8: =RTD("cqg.rtd", ,"ContractData",C8, "High",, "T") -> 68.75 | G8: =RTD("cqg.rtd", ,"ContractData",C8, "Low",, "T") -> 68.02 | H8: =RTD("cqg.rtd", ,"ContractData",C8, "LastTradeToday",, "T") -> 68.02 | I8: =RTD("cqg.rtd", ,"ContractData",C8, "NetLastTradeToday",, "T") -> 0.08 | J8: =IFERROR(RTD("cqg.rtd", ,"ContractData",C8, "PerCentNetLastTrade",, "T")/100,0) -> 0.001177509567 | K8: =RTD("cqg.rtd", ,"ContractData", C8, "T_CVol",, "T") -> 3707 | L8: 8 | M8: =RANK($J8,$J$1:J$95)+COUNTIF($J$1:J8,J8)-1 -> 47 | N8: S.US.BANR | O8: S.US.WSBC | P8: =(RTD("cqg.rtd",,"ContractData",O8,"LastTradeToday",,"T")-RTD("cqg.rtd",,"ContractData",O8,"Y_Close",,"T"))/RTD("cqg.rtd",,"ContractData",O8,"Y_Close",,"T") -> 0.00660429279 | Q8: https://finance.yahoo.com/quote/WSBC | S8: 0.00660429279 | V8: =IFERROR(RTD("cqg.rtd", ,"ContractData",O8, "LongDescription",, "T"),"") -> WesBanco | Y8: 0.00660429279 | AA8: 1 | AB8: 1 | AD8: 0.00660429279
A9: =RTD("cqg.rtd", ,"ContractData",C9, "LongDescription",, "T") -> Bank of New York Co Inc | B9: S.US.BK | C9: S.US.BK | D9: =RTD("cqg.rtd", ,"ContractData",C9, "LongDescription",, "T") -> Bank of New York Co Inc | E9: =RTD("cqg.rtd", ,"ContractData",C9, "Open",, "T") -> 85.73 | F9: =RTD("cqg.rtd", ,"ContractData",C9, "High",, "T") -> 85.96 | G9: =RTD("cqg.rtd", ,"ContractData",C9, "Low",, "T") -> 85.51 | H9: =RTD("cqg.rtd", ,"ContractData",C9, "LastTradeToday",, "T") -> 85.94 | I9: =RTD("cqg.rtd", ,"ContractData",C9, "NetLastTradeToday",, "T") -> 0.64 | J9: =IFERROR(RTD("cqg.rtd", ,"ContractData",C9, "PerCentNetLastTrade",, "T")/100,0) -> 0.007501172058 | K9: =RTD("cqg.rtd", ,"ContractData", C9, "T_CVol",, "T") -> 63160 | L9: 9 | M9: =RANK($J9,$J$1:J$95)+COUNTIF($J$1:J9,J9)-1 -> 4 | N9: S.US.BK | O9: S.US.BAC | P9: =RTD("cqg.rtd", ,"ContractData",O9, "PerCentNetLastTrade",, "T")/100 -> 0.006275697901 | Q9: https://finance.yahoo.com/quote/BAC | S9: 0.006275697901 | V9: =IFERROR(RTD("cqg.rtd", ,"ContractData",O9, "LongDescription",, "T"),"") -> Bank of America Corp | Y9: 0.006275697901 | AA9: 1 | AB9: 1 | AD9: 0.006275697901
A10: =RTD("cqg.rtd", ,"ContractData",C10, "LongDescription",, "T") -> BankUnited, Inc. | B10: S.US.BKU | C10: S.US.BKU | D10: =RTD("cqg.rtd", ,"ContractData",C10, "LongDescription",, "T") -> BankUnited, Inc. | E10: =RTD("cqg.rtd", ,"ContractData",C10, "Open",, "T") -> 40.35 | F10: =RTD("cqg.rtd", ,"ContractData",C10, "High",, "T") -> 40.41 | G10: =RTD("cqg.rtd", ,"ContractData",C10, "Low",, "T") -> 40.26 | H10: =RTD("cqg.rtd", ,"ContractData",C10, "LastTradeToday",, "T") -> 40.33 | I10: =RTD("cqg.rtd", ,"ContractData",C10, "NetLastTradeToday",, "T") -> 0.2 | J10: =IFERROR(RTD("cqg.rtd", ,"ContractData",C10, "PerCentNetLastTrade",, "T")/100,0) -> 0.004973887093 | K10: =RTD("cqg.rtd", ,"ContractData", C10, "T_CVol",, "T") -> 4497 | L10: 10 | M10: =RANK($J10,$J$1:J$95)+COUNTIF($J$1:J10,J10)-1 -> 16 | N10: S.US.BKU | O10: S.US.APO | P10: =RTD("cqg.rtd", ,"ContractData",O10, "PerCentNetLastTrade",, "T")/100 -> 0.006224593496 | Q10: https://finance.yahoo.com/quote/APO | S10: 0.006224593496 | V10: =IFERROR(RTD("cqg.rtd", ,"ContractData",O10, "LongDescription",, "T"),"") -> Apollo Global Management, LLC | Y10: 0.006224593496 | AA10: 1 | AB10: 1 | AD10: 0.006224593496
A11: =RTD("cqg.rtd", ,"ContractData",C11, "LongDescription",, "T") -> Hawaii Corporation | B11: S.US.BOH | C11: S.US.BOH | D11: =RTD("cqg.rtd", ,"ContractData",C11, "LongDescription",, "T") -> Hawaii Corporation | E11: =RTD("cqg.rtd", ,"ContractData",C11, "Open",, "T") -> 72.8 | F11: =RTD("cqg.rtd", ,"ContractData",C11, "High",, "T") -> 72.8 | G11: =RTD("cqg.rtd", ,"ContractData",C11, "Low",, "T") -> 72.8 | H11: =RTD("cqg.rtd", ,"ContractData",C11, "LastTradeToday",, "T") -> 72.8 | I11: =RTD("cqg.rtd", ,"ContractData",C11, "NetLastTradeToday",, "T") -> 0.14 | J11: =IFERROR(RTD("cqg.rtd", ,"ContractData",C11, "PerCentNetLastTrade",, "T")/100,0) -> 0.001926782274 | K11: =RTD("cqg.rtd", ,"ContractData", C11, "T_CVol",, "T") -> 3540 | L11: 11 | M11: =RANK($J11,$J$1:J$95)+COUNTIF($J$1:J11,J11)-1 -> 36 | N11: S.US.BOH | O11: S.US.NTRS | P11: =RTD("cqg.rtd", ,"ContractData",O11, "PerCentNetLastTrade",, "T")/100 -> 0.005449591281 | Q11: https://finance.yahoo.com/quote/NTRS | S11: 0.005449591281 | V11: =IFERROR(RTD("cqg.rtd", ,"ContractData",O11, "LongDescription",, "T"),"") -> Northern Trust Corp | Y11: 0.005449591281 | AA11: 1 | AB11: 1 | AD11: 0.005449591281
A12: =RTD("cqg.rtd", ,"ContractData",C12, "LongDescription",, "T") -> BOK Financial Corp | B12: S.US.BOKF | C12: S.US.BOKF | D12: =RTD("cqg.rtd", ,"ContractData",C12, "LongDescription",, "T") -> BOK Financial Corp | E12: =RTD("cqg.rtd", ,"ContractData",C12, "Open",, "T") -> 110.36 | F12: =RTD("cqg.rtd", ,"ContractData",C12, "High",, "T") -> 110.36 | G12: =RTD("cqg.rtd", ,"ContractData",C12, "Low",, "T") -> 109.87 | H12: =RTD("cqg.rtd", ,"ContractData",C12, "LastTradeToday",, "T") -> 109.87 | I12: =RTD("cqg.rtd", ,"ContractData",C12, "NetLastTradeToday",, "T") -> 0.07 | J12: =IFERROR(RTD("cqg.rtd", ,"ContractData",C12, "PerCentNetLastTrade",, "T")/100,0) -> 0.0006375227687 | K12: =RTD("cqg.rtd", ,"ContractData", C12, "T_CVol",, "T") -> 3419 | L12: 12 | M12: =RANK($J12,$J$1:J$95)+COUNTIF($J$1:J12,J12)-1 -> 58 | N12: S.US.BOKF | O12: S.US.PFS | P12: =RTD("cqg.rtd", ,"ContractData",O12, "PerCentNetLastTrade",, "T")/100 -> 0.005344735436 | Q12: https://finance.yahoo.com/quote/PFS | S12: 0.005344735436 | V12: =IFERROR(RTD("cqg.rtd", ,"ContractData",O12, "LongDescription",, "T"),"") -> Provident Financial Services Inc | Y12: 0.005344735436 | AA12: 1 | AB12: 1 | AD12: 0.005344735436
A13: =RTD("cqg.rtd", ,"ContractData",C13, "LongDescription",, "T") -> BanPonce Corp | B13: S.US.BPOP | C13: S.US.BPOP | D13: =RTD("cqg.rtd", ,"ContractData",C13, "LongDescription",, "T") -> BanPonce Corp | E13: =RTD("cqg.rtd", ,"ContractData",C13, "Open",, "T") -> 101.99 | F13: =RTD("cqg.rtd", ,"ContractData",C13, "High",, "T") -> 102.82 | G13: =RTD("cqg.rtd", ,"ContractData",C13, "Low",, "T") -> 101.99 | H13: =RTD("cqg.rtd", ,"ContractData",C13, "LastTradeToday",, "T") -> 102.57 | I13: =RTD("cqg.rtd", ,"ContractData",C13, "NetLastTradeToday",, "T") -> 0.06 | J13: =IFERROR(RTD("cqg.rtd", ,"ContractData",C13, "PerCentNetLastTrade",, "T")/100,0) -> 0.0005853087504 | K13: =RTD("cqg.rtd", ,"ContractData", C13, "T_CVol",, "T") -> 2577 | L13: 13 | M13: =RANK($J13,$J$1:J$95)+COUNTIF($J$1:J13,J13)-1 -> 60 | N13: S.US.BPOP | O13: S.US.FIBK | P13: =RTD("cqg.rtd", ,"ContractData",O13, "PerCentNetLastTrade",, "T")/100 -> 0.005305867665 | Q13: https://finance.yahoo.com/quote/FIBK | S13: 0.005305867665 | V13: =IFERROR(RTD("cqg.rtd", ,"ContractData",O13, "LongDescription",, "T"),"") -> First Interstate BancSystem, Inc. | Y13: 0.005305867665 | AA13: 1 | AB13: 1 | AD13: 0.005305867665
A14: =RTD("cqg.rtd", ,"ContractData",C14, "LongDescription",, "T") -> Citigroup Inc | B14: S.US.C | C14: S.US.C | D14: =RTD("cqg.rtd", ,"ContractData",C14, "LongDescription",, "T") -> Citigroup Inc | E14: =RTD("cqg.rtd", ,"ContractData",C14, "Open",, "T") -> 81.4 | F14: =RTD("cqg.rtd", ,"ContractData",C14, "High",, "T") -> 81.56 | G14: =RTD("cqg.rtd", ,"ContractData",C14, "Low",, "T") -> 80.77 | H14: =RTD("cqg.rtd", ,"ContractData",C14, "LastTradeToday",, "T") -> 81.12 | I14: =RTD("cqg.rtd", ,"ContractData",C14, "NetLastTradeToday",, "T") -> -0.09 | J14: =IFERROR(RTD("cqg.rtd", ,"ContractData",C14, "PerCentNetLastTrade",, "T")/100,0) -> -0.001107419712 | K14: =RTD("cqg.rtd", ,"ContractData", C14, "T_CVol",, "T") -> 485475 | L14: 14 | M14: =RANK($J14,$J$1:J$95)+COUNTIF($J$1:J14,J14)-1 -> 76 | N14: S.US.C | O14: S.US.WAFD | P14: =RTD("cqg.rtd", ,"ContractData",O14, "PerCentNetLastTrade",, "T")/100 -> 0.005091649695 | Q14: https://finance.yahoo.com/quote/WAFD | S14: 0.005091649695 | V14: =IFERROR(RTD("cqg.rtd", ,"ContractData",O14, "LongDescription",, "T"),"") -> WaFd Inc. | Y14: 0.005091649695 | AA14: 1 | AB14: 1 | AD14: 0.005091649695
A15: =RTD("cqg.rtd", ,"ContractData",C15, "LongDescription",, "T") -> Cadence Bancorporation | B15: S.US.CADE | C15: S.US.CADE | D15: =RTD("cqg.rtd", ,"ContractData",C15, "LongDescription",, "T") -> Cadence Bancorporation | E15: =RTD("cqg.rtd", ,"ContractData",C15, "Open",, "T") -> 34.91 | F15: =RTD("cqg.rtd", ,"ContractData",C15, "High",, "T") -> 34.92 | G15: =RTD("cqg.rtd", ,"ContractData",C15, "Low",, "T") -> 34.82 | H15: =RTD("cqg.rtd", ,"ContractData",C15, "LastTradeToday",, "T") -> 34.86 | I15: =RTD("cqg.rtd", ,"ContractData",C15, "NetLastTradeToday",, "T") -> 0.15 | J15: =IFERROR(RTD("cqg.rtd", ,"ContractData",C15, "PerCentNetLastTrade",, "T")/100,0) -> 0.004320276498 | K15: =RTD("cqg.rtd", ,"ContractData", C15, "T_CVol",, "T") -> 10852 | L15: 15 | M15: =RANK($J15,$J$1:J$95)+COUNTIF($J$1:J15,J15)-1 -> 18 | N15: S.US.CADE | O15: S.US.ESNT | P15: =RTD("cqg.rtd", ,"ContractData",O15, "PerCentNetLastTrade",, "T")/100 -> 0.005077919804 | Q15: https://finance.yahoo.com/quote/ESNT | S15: 0.005077919804 | V15: =IFERROR(RTD("cqg.rtd", ,"ContractData",O15, "LongDescription",, "T"),"") -> Essent Group Ltd. | Y15: 0.005077919804 | AA15: 1 | AB15: 1 | AD15: 0.005077919804
A16: =RTD("cqg.rtd", ,"ContractData",C16, "LongDescription",, "T") -> Meta Financial Group Inc | B16: S.US.CASH | C16: S.US.CASH | D16: =RTD("cqg.rtd", ,"ContractData",C16, "LongDescription",, "T") -> Meta Financial Group Inc | E16: =RTD("cqg.rtd", ,"ContractData",C16, "Open",, "T") -> 78.49 | F16: =RTD("cqg.rtd", ,"ContractData",C16, "High",, "T") -> 79.28 | G16: =RTD("cqg.rtd", ,"ContractData",C16, "Low",, "T") -> 78.49 | H16: =RTD("cqg.rtd", ,"ContractData",C16, "LastTradeToday",, "T") -> 78.91 | I16: =RTD("cqg.rtd", ,"ContractData",C16, "NetLastTradeToday",, "T") -> 0.12 | J16: =IFERROR(RTD("cqg.rtd", ,"ContractData",C16, "PerCentNetLastTrade",, "T")/100,0) -> 0.001523035918 | K16: =RTD("cqg.rtd", ,"ContractData", C16, "T_CVol",, "T") -> 5186 | L16: 16 | M16: =RANK($J16,$J$1:J$95)+COUNTIF($J$1:J16,J16)-1 -> 41 | N16: S.US.CASH | O16: S.US.BKU | P16: =RTD("cqg.rtd", ,"ContractData",O16, "PerCentNetLastTrade",, "T")/100 -> 0.004973887093 | Q16: https://finance.yahoo.com/quote/BKU | S16: 0.004973887093 | V16: =IFERROR(RTD("cqg.rtd", ,"ContractData",O16, "LongDescription",, "T"),"") -> BankUnited, Inc. | Y16: 0.004973887093 | AA16: 1 | AB16: 1 | AD16: 0.004973887093
A17: =RTD("cqg.rtd", ,"ContractData",C17, "LongDescription",, "T") -> Cathay Bancorp Inc | B17: S.US.CATY | C17: S.US.CATY | D17: =RTD("cqg.rtd", ,"ContractData",C17, "LongDescription",, "T") -> Cathay Bancorp Inc | E17: =RTD("cqg.rtd", ,"ContractData",C17, "Open",, "T") -> 46.14 | F17: =RTD("cqg.rtd", ,"ContractData",C17, "High",, "T") -> 46.14 | G17: =RTD("cqg.rtd", ,"ContractData",C17, "Low",, "T") -> 45.98 | H17: =RTD("cqg.rtd", ,"ContractData",C17, "LastTradeToday",, "T") -> 45.98 | I17: =RTD("cqg.rtd", ,"ContractData",C17, "NetLastTradeToday",, "T") -> 0.12 | J17: =IFERROR(RTD("cqg.rtd", ,"ContractData",C17, "PerCentNetLastTrade",, "T")/100,0) -> 0.002616659398 | K17: =RTD("cqg.rtd", ,"ContractData", C17, "T_CVol",, "T") -> 5540 | L17: 17 | M17: =RANK($J17,$J$1:J$95)+COUNTIF($J$1:J17,J17)-1 -> 31 | N17: S.US.CATY | O17: S.US.WSFS | P17: =RTD("cqg.rtd", ,"ContractData",O17, "PerCentNetLastTrade",, "T")/100 -> 0.004973357016 | Q17: https://finance.yahoo.com/quote/WSFS | S17: 0.004973357016 | V17: =IFERROR(RTD("cqg.rtd", ,"ContractData",O17, "LongDescription",, "T"),"") -> WSFS Financial Corp | Y17: 0.004973357016 | AA17: 1 | AB17: 1 | AD17: 0.004973357016
A18: =RTD("cqg.rtd", ,"ContractData",C18, "LongDescription",, "T") -> Commerce Bancshares Inc | B18: S.US.CBSH | C18: S.US.CBSH | D18: =RTD("cqg.rtd", ,"ContractData",C18, "LongDescription",, "T") -> Commerce Bancshares Inc | E18: =RTD("cqg.rtd", ,"ContractData",C18, "Open",, "T") -> 66.34 | F18: =RTD("cqg.rtd", ,"ContractData",C18, "High",, "T") -> 66.43 | G18: =RTD("cqg.rtd", ,"ContractData",C18, "Low",, "T") -> 66.18 | H18: =RTD("cqg.rtd", ,"ContractData",C18, "LastTradeToday",, "T") -> 66.35 | I18: =RTD("cqg.rtd", ,"ContractData",C18, "NetLastTradeToday",, "T") -> 0.24 | J18: =IFERROR(RTD("cqg.rtd", ,"ContractData",C18, "PerCentNetLastTrade",, "T")/100,0) -> 0.003625925366 | K18: =RTD("cqg.rtd", ,"ContractData", C18, "T_CVol",, "T") -> 8297 | L18: 18 | M18: =RANK($J18,$J$1:J$95)+COUNTIF($J$1:J18,J18)-1 -> 23 | N18: S.US.CBSH | O18: S.US.CADE | P18: =RTD("cqg.rtd", ,"ContractData",O18, "PerCentNetLastTrade",, "T")/100 -> 0.004320276498 | Q18: https://finance.yahoo.com/quote/CADE | S18: 0.004320276498 | V18: =IFERROR(RTD("cqg.rtd", ,"ContractData",O18, "LongDescription",, "T"),"") -> Cadence Bancorporation | Y18: 0.004320276498 | AA18: 1 | AB18: 1 | AD18: 0.004320276498
A19: =RTD("cqg.rtd", ,"ContractData",C19, "LongDescription",, "T") -> Community Financial System, Inc. | B19: S.US.CBU | C19: S.US.CBU | D19: =RTD("cqg.rtd", ,"ContractData",C19, "LongDescription",, "T") -> Community Financial System, Inc. | E19: =RTD("cqg.rtd", ,"ContractData",C19, "Open",, "T") -> 65.23 | F19: =RTD("cqg.rtd", ,"ContractData",C19, "High",, "T") -> 65.23 | G19: =RTD("cqg.rtd", ,"ContractData",C19, "Low",, "T") -> 65.23 | H19: =RTD("cqg.rtd", ,"ContractData",C19, "LastTradeToday",, "T") -> 65.23 | I19: =RTD("cqg.rtd", ,"ContractData",C19, "NetLastTradeToday",, "T") -> 0.52 | J19: =IFERROR(RTD("cqg.rtd", ,"ContractData",C19, "PerCentNetLastTrade",, "T")/100,0) -> 0.008035852264 | K19: =RTD("cqg.rtd", ,"ContractData", C19, "T_CVol",, "T") -> 1232 | L19: 19 | M19: =RANK($J19,$J$1:J$95)+COUNTIF($J$1:J19,J19)-1 -> 3 | N19: S.US.CBU | O19: S.US.TFC | P19: =RTD("cqg.rtd", ,"ContractData",O19, "PerCentNetLastTrade",, "T")/100 -> 0.004312203536 | Q19: https://finance.yahoo.com/quote/TFC | S19: 0.004312203536 | V19: =IFERROR(RTD("cqg.rtd", ,"ContractData",O19, "LongDescription",, "T"),"") -> Truist Financial Corporation | Y19: 0.004312203536 | AA19: 1 | AB19: 1 | AD19: 0.004312203536
A20: =RTD("cqg.rtd", ,"ContractData",C20, "LongDescription",, "T") -> Citizens Financial Group, Inc. | B20: S.US.CFG | C20: S.US.CFG | D20: =RTD("cqg.rtd", ,"ContractData",C20, "LongDescription",, "T") -> Citizens Financial Group, Inc. | E20: =RTD("cqg.rtd", ,"ContractData",C20, "Open",, "T") -> 46.21 | F20: =RTD("cqg.rtd", ,"ContractData",C20, "High",, "T") -> 46.34 | G20: =RTD("cqg.rtd", ,"ContractData",C20, "Low",, "T") -> 45.98 | H20: =RTD("cqg.rtd", ,"ContractData",C20, "LastTradeToday",, "T") -> 46.08 | I20: =RTD("cqg.rtd", ,"ContractData",C20, "NetLastTradeToday",, "T") -> -0.04 | J20: =IFERROR(RTD("cqg.rtd", ,"ContractData",C20, "PerCentNetLastTrade",, "T")/100,0) -> -0.0008665511265 | K20: =RTD("cqg.rtd", ,"ContractData", C20, "T_CVol",, "T") -> 65821 | L20: 20 | M20: =RANK($J20,$J$1:J$95)+COUNTIF($J$1:J20,J20)-1 -> 74 | N20: S.US.CFG | O20: S.US.ASB | P20: =RTD("cqg.rtd", ,"ContractData",O20, "PerCentNetLastTrade",, "T")/100 -> 0.004045307443 | Q20: https://finance.yahoo.com/quote/ASB | S20: 0.004045307443 | V20: =IFERROR(RTD("cqg.rtd", ,"ContractData",O20, "LongDescription",, "T"),"") -> Associated Banc-Corp | Y20: 0.004045307443 | AA20: 1 | AB20: 1 | AD20: 0.004045307443
A21: =RTD("cqg.rtd", ,"ContractData",C21, "LongDescription",, "T") -> Cullen Frost Bankers Inc | B21: S.US.CFR | C21: S.US.CFR | D21: =RTD("cqg.rtd", ,"ContractData",C21, "LongDescription",, "T") -> Cullen Frost Bankers Inc | E21: =RTD("cqg.rtd", ,"ContractData",C21, "Open",, "T") -> 142 | F21: =RTD("cqg.rtd", ,"ContractData",C21, "High",, "T") -> 142.28 | G21: =RTD("cqg.rtd", ,"ContractData",C21, "Low",, "T") -> 141.05 | H21: =RTD("cqg.rtd", ,"ContractData",C21, "LastTradeToday",, "T") -> 141.05 | I21: =RTD("cqg.rtd", ,"ContractData",C21, "NetLastTradeToday",, "T") -> -0.39 | J21: =IFERROR(RTD("cqg.rtd", ,"ContractData",C21, "PerCentNetLastTrade",, "T")/100,0) -> -0.002757352941 | K21: =RTD("cqg.rtd", ,"ContractData", C21, "T_CVol",, "T") -> 8048 | L21: 21 | M21: =RANK($J21,$J$1:J$95)+COUNTIF($J$1:J21,J21)-1 -> 85 | N21: S.US.CFR | O21: S.US.PPBI | P21: =RTD("cqg.rtd", ,"ContractData",O21, "PerCentNetLastTrade",, "T")/100 -> 0.004008016032 | Q21: https://finance.yahoo.com/quote/PPBI | S21: 0.004008016032 | V21: =IFERROR(RTD("cqg.rtd", ,"ContractData",O21, "LongDescription",, "T"),"") -> Pacific Premier Bancorp Inc | Y21: 0.004008016032 | AA21: 1 | AB21: 1 | AD21: 0.004008016032 | AE21: =IFERROR(T21,"") -> 
A22: =RTD("cqg.rtd", ,"ContractData",C22, "LongDescription",, "T") -> Comerica Inc | B22: S.US.CMA | C22: S.US.CMA | D22: =RTD("cqg.rtd", ,"ContractData",C22, "LongDescription",, "T") -> Comerica Inc | E22: =RTD("cqg.rtd", ,"ContractData",C22, "Open",, "T") -> 67.04 | F22: =RTD("cqg.rtd", ,"ContractData",C22, "High",, "T") -> 67.1 | G22: =RTD("cqg.rtd", ,"ContractData",C22, "Low",, "T") -> 66.59 | H22: =RTD("cqg.rtd", ,"ContractData",C22, "LastTradeToday",, "T") -> 66.78 | I22: =RTD("cqg.rtd", ,"ContractData",C22, "NetLastTradeToday",, "T") -> -0.08 | J22: =IFERROR(RTD("cqg.rtd", ,"ContractData",C22, "PerCentNetLastTrade",, "T")/100,0) -> -0.001196530063 | K22: =RTD("cqg.rtd", ,"ContractData", C22, "T_CVol",, "T") -> 21501 | L22: 22 | M22: =RANK($J22,$J$1:J$95)+COUNTIF($J$1:J22,J22)-1 -> 77 | N22: S.US.CMA | O22: S.US.AUB | P22: =RTD("cqg.rtd", ,"ContractData",O22, "PerCentNetLastTrade",, "T")/100 -> 0.003708609272 | Q22: https://finance.yahoo.com/quote/AUB | S22: 0.003708609272 | V22: =IFERROR(RTD("cqg.rtd", ,"ContractData",O22, "LongDescription",, "T"),"") -> Atlantic Union Bankshares Corporation | Y22: 0.003708609272 | AA22: 1 | AB22: 1 | AD22: 0.003708609272
A23: =RTD("cqg.rtd", ,"ContractData",C23, "LongDescription",, "T") -> Columbia Banking System | B23: S.US.COLB | C23: S.US.COLB | D23: =RTD("cqg.rtd", ,"ContractData",C23, "LongDescription",, "T") -> Columbia Banking System | E23: =RTD("cqg.rtd", ,"ContractData",C23, "Open",, "T") -> 27.25 | F23: =RTD("cqg.rtd", ,"ContractData",C23, "High",, "T") -> 27.38 | G23: =RTD("cqg.rtd", ,"ContractData",C23, "Low",, "T") -> 27.2 | H23: =RTD("cqg.rtd", ,"ContractData",C23, "LastTradeToday",, "T") -> 27.2 | I23: =RTD("cqg.rtd", ,"ContractData",C23, "NetLastTradeToday",, "T") -> 0.04 | J23: =IFERROR(RTD("cqg.rtd", ,"ContractData",C23, "PerCentNetLastTrade",, "T")/100,0) -> 0.001469507715 | K23: =RTD("cqg.rtd", ,"ContractData", C23, "T_CVol",, "T") -> 23346 | L23: 23 | M23: =RANK($J23,$J$1:J$95)+COUNTIF($J$1:J23,J23)-1 -> 42 | N23: S.US.COLB | O23: S.US.CBSH | P23: =RTD("cqg.rtd", ,"ContractData",O23, "PerCentNetLastTrade",, "T")/100 -> 0.003625925366 | Q23: https://finance.yahoo.com/quote/CBSH | S23: 0.003625925366 | V23: =IFERROR(RTD("cqg.rtd", ,"ContractData",O23, "LongDescription",, "T"),"") -> Commerce Bancshares Inc | Y23: 0.003625925366 | AA23: 1 | AB23: 1 | AD23: 0.003625925366 | AE23: =IFERROR(T23,"") -> 
A24: =RTD("cqg.rtd", ,"ContractData",C24, "LongDescription",, "T") -> Mr. Cooper Group Inc. | B24: S.US.COOP | C24: S.US.COOP | D24: =RTD("cqg.rtd", ,"ContractData",C24, "LongDescription",, "T") -> Mr. Cooper Group Inc. | E24: =RTD("cqg.rtd", ,"ContractData",C24, "Open",, "T") -> 107.15 | F24: =RTD("cqg.rtd", ,"ContractData",C24, "High",, "T") -> 108.19 | G24: =RTD("cqg.rtd", ,"ContractData",C24, "Low",, "T") -> 105.91 | H24: =RTD("cqg.rtd", ,"ContractData",C24, "LastTradeToday",, "T") -> 106.39 | I24: =RTD("cqg.rtd", ,"ContractData",C24, "NetLastTradeToday",, "T") -> -0.32 | J24: =IFERROR(RTD("cqg.rtd", ,"ContractData",C24, "PerCentNetLastTrade",, "T")/100,0) -> -0.002998781745 | K24: =RTD("cqg.rtd", ,"ContractData", C24, "T_CVol",, "T") -> 14133 | L24: 24 | M24: =RANK($J24,$J$1:J$95)+COUNTIF($J$1:J24,J24)-1 -> 87 | N24: S.US.COOP | O24: S.US.HOMB | P24: =RTD("cqg.rtd", ,"ContractData",O24, "PerCentNetLastTrade",, "T")/100 -> 0.003618421053 | Q24: https://finance.yahoo.com/quote/HOMB | S24: 0.003618421053 | V24: =IFERROR(RTD("cqg.rtd", ,"ContractData",O24, "LongDescription",, "T"),"") -> Home BancShares Inc | Y24: 0.003618421053 | AA24: 1 | AB24: 1 | AD24: 0.003618421053
A25: =RTD("cqg.rtd", ,"ContractData",C25, "LongDescription",, "T") -> Corebridge Financial, Inc. | B25: S.US.CRBG | C25: S.US.CRBG | D25: =RTD("cqg.rtd", ,"ContractData",C25, "LongDescription",, "T") -> Corebridge Financial, Inc. | E25: =RTD("cqg.rtd", ,"ContractData",C25, "Open",, "T") -> 31.1 | F25: =RTD("cqg.rtd", ,"ContractData",C25, "High",, "T") -> 32.4 | G25: =RTD("cqg.rtd", ,"ContractData",C25, "Low",, "T") -> 30.41 | H25: =RTD("cqg.rtd", ,"ContractData",C25, "LastTradeToday",, "T") -> 31.94 | I25: =RTD("cqg.rtd", ,"ContractData",C25, "NetLastTradeToday",, "T") -> -0.82 | J25: =IFERROR(RTD("cqg.rtd", ,"ContractData",C25, "PerCentNetLastTrade",, "T")/100,0) -> -0.02503052503 | K25: =RTD("cqg.rtd", ,"ContractData", C25, "T_CVol",, "T") -> 213225 | L25: 25 | M25: =RANK($J25,$J$1:J$95)+COUNTIF($J$1:J25,J25)-1 -> 95 | N25: S.US.CRBG | O25: S.US.LKFN | P25: =RTD("cqg.rtd", ,"ContractData",O25, "PerCentNetLastTrade",, "T")/100 -> 0.003559774548 | Q25: https://finance.yahoo.com/quote/LKFN | S25: 0.003559774548 | V25: =IFERROR(RTD("cqg.rtd", ,"ContractData",O25, "LongDescription",, "T"),"") -> Lakeland Financial Corp | Y25: 0.003559774548 | AA25: 1 | AB25: 1 | AD25: =IFERROR(S25,"") -> 0.003559774548
A26: =RTD("cqg.rtd", ,"ContractData",C26, "LongDescription",, "T") -> CVB Financial Corp | B26: S.US.CVBF | C26: S.US.CVBF | D26: =RTD("cqg.rtd", ,"ContractData",C26, "LongDescription",, "T") -> CVB Financial Corp | E26: =RTD("cqg.rtd", ,"ContractData",C26, "Open",, "T") -> 20.05 | F26: =RTD("cqg.rtd", ,"ContractData",C26, "High",, "T") -> 20.05 | G26: =RTD("cqg.rtd", ,"ContractData",C26, "Low",, "T") -> 19.99 | H26: =RTD("cqg.rtd", ,"ContractData",C26, "LastTradeToday",, "T") -> 20.02 | I26: =RTD("cqg.rtd", ,"ContractData",C26, "NetLastTradeToday",, "T") -> 0.06 | J26: =IFERROR(RTD("cqg.rtd", ,"ContractData",C26, "PerCentNetLastTrade",, "T")/100,0) -> 0.00300150075 | K26: =RTD("cqg.rtd", ,"ContractData", C26, "T_CVol",, "T") -> 4241 | L26: 26 | M26: =RANK($J26,$J$1:J$95)+COUNTIF($J$1:J26,J26)-1 -> 30 | N26: S.US.CVBF | O26: S.US.NMIH | P26: =RTD("cqg.rtd", ,"ContractData",O26, "PerCentNetLastTrade",, "T")/100 -> 0.003412969283 | Q26: https://finance.yahoo.com/quote/NMIH | S26: 0.003412969283 | V26: =IFERROR(RTD("cqg.rtd", ,"ContractData",O26, "LongDescription",, "T"),"") -> NMI Holdings Inc. | Y26: 0.003412969283 | AA26: 1 | AB26: 1 | AD26: 0.003412969283
A27: =RTD("cqg.rtd", ,"ContractData",C27, "LongDescription",, "T") -> Eastern Bankshares, Inc. | B27: S.US.EBC | C27: S.US.EBC | D27: =RTD("cqg.rtd", ,"ContractData",C27, "LongDescription",, "T") -> Eastern Bankshares, Inc. | E27: =RTD("cqg.rtd", ,"ContractData",C27, "Open",, "T") -> 18.47 | F27: =RTD("cqg.rtd", ,"ContractData",C27, "High",, "T") -> 18.48 | G27: =RTD("cqg.rtd", ,"ContractData",C27, "Low",, "T") -> 18.36 | H27: =RTD("cqg.rtd", ,"ContractData",C27, "LastTradeToday",, "T") -> 18.37 | I27: =RTD("cqg.rtd", ,"ContractData",C27, "NetLastTradeToday",, "T") -> -0.02 | J27: =IFERROR(RTD("cqg.rtd", ,"ContractData",C27, "PerCentNetLastTrade",, "T")/100,0) -> -0.00108754758 | K27: =RTD("cqg.rtd", ,"ContractData", C27, "T_CVol",, "T") -> 12007 | L27: 27 | M27: =RANK($J27,$J$1:J$95)+COUNTIF($J$1:J27,J27)-1 -> 75 | N27: S.US.EBC | O27: S.US.UCB | P27: =RTD("cqg.rtd", ,"ContractData",O27, "PerCentNetLastTrade",, "T")/100 -> 0.003312255345 | Q27: https://finance.yahoo.com/quote/UCB | S27: 0.003312255345 | V27: =IFERROR(RTD("cqg.rtd", ,"ContractData",O27, "LongDescription",, "T"),"") -> United Community Banks Inc | Y27: 0.003312255345 | AA27: 1 | AB27: 1 | AD27: 0.003312255345
A28: =RTD("cqg.rtd", ,"ContractData",C28, "LongDescription",, "T") -> Equitable Holdings, Inc. | B28: S.US.EQH | C28: S.US.EQH | D28: =RTD("cqg.rtd", ,"ContractData",C28, "LongDescription",, "T") -> Equitable Holdings, Inc. | E28: =RTD("cqg.rtd", ,"ContractData",C28, "Open",, "T") -> 53.65 | F28: =RTD("cqg.rtd", ,"ContractData",C28, "High",, "T") -> 53.66 | G28: =RTD("cqg.rtd", ,"ContractData",C28, "Low",, "T") -> 53.35 | H28: =RTD("cqg.rtd", ,"ContractData",C28, "LastTradeToday",, "T") -> 53.43 | I28: =RTD("cqg.rtd", ,"ContractData",C28, "NetLastTradeToday",, "T") -> -0.15 | J28: =IFERROR(RTD("cqg.rtd", ,"ContractData",C28, "PerCentNetLastTrade",, "T")/100,0) -> -0.002795899348 | K28: =RTD("cqg.rtd", ,"ContractData", C28, "T_CVol",, "T") -> 20672 | L28: 28 | M28: =RANK($J28,$J$1:J$95)+COUNTIF($J$1:J28,J28)-1 -> 86 | N28: S.US.EQH | O28: S.US.FFBC | P28: =RTD("cqg.rtd", ,"ContractData",O28, "PerCentNetLastTrade",, "T")/100 -> 0.003237410072 | Q28: https://finance.yahoo.com/quote/FFBC | S28: 0.003237410072 | V28: =IFERROR(RTD("cqg.rtd", ,"ContractData",O28, "LongDescription",, "T"),"") -> First Financial Bancorp | Y28: 0.003237410072 | AA28: 1 | AB28: 1 | AD28: 0.003237410072
A29: =RTD("cqg.rtd", ,"ContractData",C29, "LongDescription",, "T") -> Essent Group Ltd. | B29: S.US.ESNT | C29: S.US.ESNT | D29: =RTD("cqg.rtd", ,"ContractData",C29, "LongDescription",, "T") -> Essent Group Ltd. | E29: =RTD("cqg.rtd", ,"ContractData",C29, "Open",, "T") -> 57.41 | F29: =RTD("cqg.rtd", ,"ContractData",C29, "High",, "T") -> 57.48 | G29: =RTD("cqg.rtd", ,"ContractData",C29, "Low",, "T") -> 57.27 | H29: =RTD("cqg.rtd", ,"ContractData",C29, "LastTradeToday",, "T") -> 57.39 | I29: =RTD("cqg.rtd", ,"ContractData",C29, "NetLastTradeToday",, "T") -> 0.29 | J29: =IFERROR(RTD("cqg.rtd", ,"ContractData",C29, "PerCentNetLastTrade",, "T")/100,0) -> 0.005077919804 | K29: =RTD("cqg.rtd", ,"ContractData", C29, "T_CVol",, "T") -> 22693 | L29: 29 | M29: =RANK($J29,$J$1:J$95)+COUNTIF($J$1:J29,J29)-1 -> 15 | N29: S.US.ESNT | O29: S.US.TRMK | P29: =RTD("cqg.rtd", ,"ContractData",O29, "PerCentNetLastTrade",, "T")/100 -> 0.003192338388 | Q29: https://finance.yahoo.com/quote/TRMK | S29: 0.003192338388 | V29: =IFERROR(RTD("cqg.rtd", ,"ContractData",O29, "LongDescription",, "T"),"") -> Trustmark Corporation | Y29: 0.003192338388 | AA29: 1 | AB29: 1 | AD29: 0.003192338388
A30: =RTD("cqg.rtd", ,"ContractData",C30, "LongDescription",, "T") -> East West Bancorp | B30: S.US.EWBC | C30: S.US.EWBC | D30: =RTD("cqg.rtd", ,"ContractData",C30, "LongDescription",, "T") -> East West Bancorp | E30: =RTD("cqg.rtd", ,"ContractData",C30, "Open",, "T") -> 97.1 | F30: =RTD("cqg.rtd", ,"ContractData",C30, "High",, "T") -> 97.5 | G30: =RTD("cqg.rtd", ,"ContractData",C30, "Low",, "T") -> 97.04 | H30: =RTD("cqg.rtd", ,"ContractData",C30, "LastTradeToday",, "T") -> 97.14 | I30: =RTD("cqg.rtd", ,"ContractData",C30, "NetLastTradeToday",, "T") -> 0.1 | J30: =IFERROR(RTD("cqg.rtd", ,"ContractData",C30, "PerCentNetLastTrade",, "T")/100,0) -> 0.001029760066 | K30: =RTD("cqg.rtd", ,"ContractData", C30, "T_CVol",, "T") -> 14142 | L30: 30 | M30: =RANK($J30,$J$1:J$95)+COUNTIF($J$1:J30,J30)-1 -> 49 | N30: S.US.EWBC | O30: S.US.CVBF | P30: =RTD("cqg.rtd", ,"ContractData",O30, "PerCentNetLastTrade",, "T")/100 -> 0.00300150075 | Q30: https://finance.yahoo.com/quote/CVBF | S30: 0.00300150075 | V30: =IFERROR(RTD("cqg.rtd", ,"ContractData",O30, "LongDescription",, "T"),"") -> CVB Financial Corp | Y30: 0.00300150075 | AA30: 1 | AB30: 1 | AD30: 0.00300150075
A31: =RTD("cqg.rtd", ,"ContractData",C31, "LongDescription",, "T") -> First BanCorp. | B31: S.US.FBP | C31: S.US.FBP | D31: =RTD("cqg.rtd", ,"ContractData",C31, "LongDescription",, "T") -> First BanCorp. | E31: =RTD("cqg.rtd", ,"ContractData",C31, "Open",, "T") -> 20.38 | F31: =RTD("cqg.rtd", ,"ContractData",C31, "High",, "T") -> 20.4 | G31: =RTD("cqg.rtd", ,"ContractData",C31, "Low",, "T") -> 20.25 | H31: =RTD("cqg.rtd", ,"ContractData",C31, "LastTradeToday",, "T") -> 20.27 | I31: =RTD("cqg.rtd", ,"ContractData",C31, "NetLastTradeToday",, "T") -> -0.03 | J31: =IFERROR(RTD("cqg.rtd", ,"ContractData",C31, "PerCentNetLastTrade",, "T")/100,0) -> -0.001477104874 | K31: =RTD("cqg.rtd", ,"ContractData", C31, "T_CVol",, "T") -> 17810 | L31: 31 | M31: =RANK($J31,$J$1:J$95)+COUNTIF($J$1:J31,J31)-1 -> 80 | N31: S.US.FBP | O31: S.US.CATY | P31: =RTD("cqg.rtd", ,"ContractData",O31, "PerCentNetLastTrade",, "T")/100 -> 0.002616659398 | Q31: https://finance.yahoo.com/quote/CATY | S31: 0.002616659398 | V31: =IFERROR(RTD("cqg.rtd", ,"ContractData",O31, "LongDescription",, "T"),"") -> Cathay Bancorp Inc | Y31: 0.002616659398 | AA31: 1 | AB31: 1 | AD31: 0.002616659398
A32: =RTD("cqg.rtd", ,"ContractData",C32, "LongDescription",, "T") -> First Citizens BancShares Inc | B32: S.US.FCNCA | C32: S.US.FCNCA | D32: =RTD("cqg.rtd", ,"ContractData",C32, "LongDescription",, "T") -> First Citizens BancShares Inc | E32: =RTD("cqg.rtd", ,"ContractData",C32, "Open",, "T") -> 2125.31 | F32: =RTD("cqg.rtd", ,"ContractData",C32, "High",, "T") -> 2125.31 | G32: =RTD("cqg.rtd", ,"ContractData",C32, "Low",, "T") -> 2125.31 | H32: =RTD("cqg.rtd", ,"ContractData",C32, "LastTradeToday",, "T") -> 2125.31 | I32: =RTD("cqg.rtd", ,"ContractData",C32, "NetLastTradeToday",, "T") -> 0 | J32: =IFERROR(RTD("cqg.rtd", ,"ContractData",C32, "PerCentNetLastTrade",, "T")/100,0) -> 0 | K32: =RTD("cqg.rtd", ,"ContractData", C32, "T_CVol",, "T") -> 731 | L32: 32 | M32: =RANK($J32,$J$1:J$95)+COUNTIF($J$1:J32,J32)-1 -> 66 | N32: S.US.FCNCA | O32: S.US.FNB | P32: =RTD("cqg.rtd", ,"ContractData",O32, "PerCentNetLastTrade",, "T")/100 -> 0.002614379085 | Q32: https://finance.yahoo.com/quote/FNB | S32: 0.002614379085 | V32: =IFERROR(RTD("cqg.rtd", ,"ContractData",O32, "LongDescription",, "T"),"") -> F.N.B. Corporation | Y32: 0.002614379085 | AA32: 1 | AB32: 1 | AD32: 0.002614379085
A33: =RTD("cqg.rtd", ,"ContractData",C33, "LongDescription",, "T") -> First Financial Bancorp | B33: S.US.FFBC | C33: S.US.FFBC | D33: =RTD("cqg.rtd", ,"ContractData",C33, "LongDescription",, "T") -> First Financial Bancorp | E33: =RTD("cqg.rtd", ,"ContractData",C33, "Open",, "T") -> 28.02 | F33: =RTD("cqg.rtd", ,"ContractData",C33, "High",, "T") -> 28.02 | G33: =RTD("cqg.rtd", ,"ContractData",C33, "Low",, "T") -> 27.89 | H33: =RTD("cqg.rtd", ,"ContractData",C33, "LastTradeToday",, "T") -> 27.89 | I33: =RTD("cqg.rtd", ,"ContractData",C33, "NetLastTradeToday",, "T") -> 0.09 | J33: =IFERROR(RTD("cqg.rtd", ,"ContractData",C33, "PerCentNetLastTrade",, "T")/100,0) -> 0.003237410072 | K33: =RTD("cqg.rtd", ,"ContractData", C33, "T_CVol",, "T") -> 2996 | L33: 33 | M33: =RANK($J33,$J$1:J$95)+COUNTIF($J$1:J33,J33)-1 -> 28 | N33: S.US.FFBC | O33: S.US.FHB | P33: =RTD("cqg.rtd", ,"ContractData",O33, "PerCentNetLastTrade",, "T")/100 -> 0.002208317998 | Q33: https://finance.yahoo.com/quote/FHB | S33: 0.002208317998 | V33: =IFERROR(RTD("cqg.rtd", ,"ContractData",O33, "LongDescription",, "T"),"") -> First Hawaiian, Inc. | Y33: 0.002208317998 | AA33: 1 | AB33: 1 | AD33: 0.002208317998
A34: =RTD("cqg.rtd", ,"ContractData",C34, "LongDescription",, "T") -> First Financial Bankshares Inc | B34: S.US.FFIN | C34: S.US.FFIN | D34: =RTD("cqg.rtd", ,"ContractData",C34, "LongDescription",, "T") -> First Financial Bankshares Inc | E34: =RTD("cqg.rtd", ,"ContractData",C34, "Open",, "T") -> 36.86 | F34: =RTD("cqg.rtd", ,"ContractData",C34, "High",, "T") -> 37.63 | G34: =RTD("cqg.rtd", ,"ContractData",C34, "Low",, "T") -> 36.42 | H34: =RTD("cqg.rtd", ,"ContractData",C34, "LastTradeToday",, "T") -> 37.37 | I34: =RTD("cqg.rtd", ,"ContractData",C34, "NetLastTradeToday",, "T") -> 0.05 | J34: =IFERROR(RTD("cqg.rtd", ,"ContractData",C34, "PerCentNetLastTrade",, "T")/100,0) -> 0.001339764202 | K34: =RTD("cqg.rtd", ,"ContractData", C34, "T_CVol",, "T") -> 7197 | L34: 34 | M34: =RANK($J34,$J$1:J$95)+COUNTIF($J$1:J34,J34)-1 -> 45 | N34: S.US.FFIN | O34: S.US.HWC | P34: =RTD("cqg.rtd", ,"ContractData",O34, "PerCentNetLastTrade",, "T")/100 -> 0.002030456853 | Q34: https://finance.yahoo.com/quote/HWC | S34: 0.002030456853 | V34: =IFERROR(RTD("cqg.rtd", ,"ContractData",O34, "LongDescription",, "T"),"") -> Hancock Whitney Corporation | Y34: 0.002030456853 | AA34: 1 | AB34: 1 | AD34: 0.002030456853
A35: =RTD("cqg.rtd", ,"ContractData",C35, "LongDescription",, "T") -> First Hawaiian, Inc. | B35: S.US.FHB | C35: S.US.FHB | D35: =RTD("cqg.rtd", ,"ContractData",C35, "LongDescription",, "T") -> First Hawaiian, Inc. | E35: =RTD("cqg.rtd", ,"ContractData",C35, "Open",, "T") -> 27.23 | F35: =RTD("cqg.rtd", ,"ContractData",C35, "High",, "T") -> 27.32 | G35: =RTD("cqg.rtd", ,"ContractData",C35, "Low",, "T") -> 27.08 | H35: =RTD("cqg.rtd", ,"ContractData",C35, "LastTradeToday",, "T") -> 27.21 | I35: =RTD("cqg.rtd", ,"ContractData",C35, "NetLastTradeToday",, "T") -> 0.06 | J35: =IFERROR(RTD("cqg.rtd", ,"ContractData",C35, "PerCentNetLastTrade",, "T")/100,0) -> 0.002208317998 | K35: =RTD("cqg.rtd", ,"ContractData", C35, "T_CVol",, "T") -> 9711 | L35: 35 | M35: =RANK($J35,$J$1:J$95)+COUNTIF($J$1:J35,J35)-1 -> 33 | N35: S.US.FHB | O35: S.US.IBOC | P35: =RTD("cqg.rtd", ,"ContractData",O35, "PerCentNetLastTrade",, "T")/100 -> 0.002004935225 | Q35: https://finance.yahoo.com/quote/IBOC | S35: 0.002004935225 | V35: =IFERROR(RTD("cqg.rtd", ,"ContractData",O35, "LongDescription",, "T"),"") -> Internatl Bancshares Corp | Y35: 0.002004935225 | AA35: 1 | AB35: 1 | AD35: 0.002004935225
A36: =RTD("cqg.rtd", ,"ContractData",C36, "LongDescription",, "T") -> First Horizon Corporation | B36: S.US.FHN | C36: S.US.FHN | D36: =RTD("cqg.rtd", ,"ContractData",C36, "LongDescription",, "T") -> First Horizon Corporation | E36: =RTD("cqg.rtd", ,"ContractData",C36, "Open",, "T") -> 22.08 | F36: =RTD("cqg.rtd", ,"ContractData",C36, "High",, "T") -> 22.24 | G36: =RTD("cqg.rtd", ,"ContractData",C36, "Low",, "T") -> 22.07 | H36: =RTD("cqg.rtd", ,"ContractData",C36, "LastTradeToday",, "T") -> 22.08 | I36: =RTD("cqg.rtd", ,"ContractData",C36, "NetLastTradeToday",, "T") -> -0.05 | J36: =IFERROR(RTD("cqg.rtd", ,"ContractData",C36, "PerCentNetLastTrade",, "T")/100,0) -> -0.002257336343 | K36: =RTD("cqg.rtd", ,"ContractData", C36, "T_CVol",, "T") -> 128240 | L36: 36 | M36: =RANK($J36,$J$1:J$95)+COUNTIF($J$1:J36,J36)-1 -> 83 | N36: S.US.FHN | O36: S.US.BOH | P36: =RTD("cqg.rtd", ,"ContractData",O36, "PerCentNetLastTrade",, "T")/100 -> 0.001926782274 | Q36: https://finance.yahoo.com/quote/BOH | S36: 0.001926782274 | V36: =IFERROR(RTD("cqg.rtd", ,"ContractData",O36, "LongDescription",, "T"),"") -> Hawaii Corporation | Y36: 0.001926782274 | AA36: 1 | AB36: 1 | AD36: 0.001926782274
A37: =RTD("cqg.rtd", ,"ContractData",C37, "LongDescription",, "T") -> First Interstate BancSystem, Inc. | B37: S.US.FIBK | C37: S.US.FIBK | D37: =RTD("cqg.rtd", ,"ContractData",C37, "LongDescription",, "T") -> First Interstate BancSystem, Inc. | E37: =RTD("cqg.rtd", ,"ContractData",C37, "Open",, "T") -> 32.25 | F37: =RTD("cqg.rtd", ,"ContractData",C37, "High",, "T") -> 32.25 | G37: =RTD("cqg.rtd", ,"ContractData",C37, "Low",, "T") -> 32.17 | H37: =RTD("cqg.rtd", ,"ContractData",C37, "LastTradeToday",, "T") -> 32.18 | I37: =RTD("cqg.rtd", ,"ContractData",C37, "NetLastTradeToday",, "T") -> 0.17 | J37: =IFERROR(RTD("cqg.rtd", ,"ContractData",C37, "PerCentNetLastTrade",, "T")/100,0) -> 0.005305867665 | K37: =RTD("cqg.rtd", ,"ContractData", C37, "T_CVol",, "T") -> 7159 | L37: 37 | M37: =RANK($J37,$J$1:J$95)+COUNTIF($J$1:J37,J37)-1 -> 13 | N37: S.US.FIBK | O37: S.US.PB | P37: =RTD("cqg.rtd", ,"ContractData",O37, "PerCentNetLastTrade",, "T")/100 -> 0.001922583953 | Q37: https://finance.yahoo.com/quote/PB | S37: 0.001922583953 | V37: =IFERROR(RTD("cqg.rtd", ,"ContractData",O37, "LongDescription",, "T"),"") -> Prosperity Bancshares Inc. | Y37: 0.001922583953 | AA37: 1 | AB37: 1 | AD37: 0.001922583953
A38: =RTD("cqg.rtd", ,"ContractData",C38, "LongDescription",, "T") -> Fifth Third Bancorp | B38: S.US.FITB | C38: S.US.FITB | D38: =RTD("cqg.rtd", ,"ContractData",C38, "LongDescription",, "T") -> Fifth Third Bancorp | E38: =RTD("cqg.rtd", ,"ContractData",C38, "Open",, "T") -> 43.4 | F38: =RTD("cqg.rtd", ,"ContractData",C38, "High",, "T") -> 43.74 | G38: =RTD("cqg.rtd", ,"ContractData",C38, "Low",, "T") -> 43.28 | H38: =RTD("cqg.rtd", ,"ContractData",C38, "LastTradeToday",, "T") -> 43.36 | I38: =RTD("cqg.rtd", ,"ContractData",C38, "NetLastTradeToday",, "T") -> -0.01 | J38: =IFERROR(RTD("cqg.rtd", ,"ContractData",C38, "PerCentNetLastTrade",, "T")/100,0) -> -0.0002302555837 | K38: =RTD("cqg.rtd", ,"ContractData", C38, "T_CVol",, "T") -> 99359 | L38: 38 | M38: =RANK($J38,$J$1:J$95)+COUNTIF($J$1:J38,J38)-1 -> 70 | N38: S.US.FITB | O38: S.US.WBS | P38: =RTD("cqg.rtd", ,"ContractData",O38, "PerCentNetLastTrade",, "T")/100 -> 0.001871066508 | Q38: https://finance.yahoo.com/quote/WBS | S38: 0.001871066508 | V38: =IFERROR(RTD("cqg.rtd", ,"ContractData",O38, "LongDescription",, "T"),"") -> Webster Financial Corp | Y38: 0.001871066508 | AA38: 1 | AB38: 1 | AD38: 0.001871066508
A39: =RTD("cqg.rtd", ,"ContractData",C39, "LongDescription",, "T") -> Flagstar Financial, Inc. | B39: S.US.FLG | C39: S.US.FLG | D39: =RTD("cqg.rtd", ,"ContractData",C39, "LongDescription",, "T") -> Flagstar Financial, Inc. | E39: =RTD("cqg.rtd", ,"ContractData",C39, "Open",, "T") -> 12.44 | F39: =RTD("cqg.rtd", ,"ContractData",C39, "High",, "T") -> 12.58 | G39: =RTD("cqg.rtd", ,"ContractData",C39, "Low",, "T") -> 12.44 | H39: =RTD("cqg.rtd", ,"ContractData",C39, "LastTradeToday",, "T") -> 12.51 | I39: =RTD("cqg.rtd", ,"ContractData",C39, "NetLastTradeToday",, "T") -> 0.16 | J39: =IFERROR(RTD("cqg.rtd", ,"ContractData",C39, "PerCentNetLastTrade",, "T")/100,0) -> 0.01294498382 | K39: =RTD("cqg.rtd", ,"ContractData", C39, "T_CVol",, "T") -> 105445 | L39: 39 | M39: =RANK($J39,$J$1:J$95)+COUNTIF($J$1:J39,J39)-1 -> 2 | N39: S.US.FLG | O39: S.US.ABCB | P39: =RTD("cqg.rtd", ,"ContractData",O39, "PerCentNetLastTrade",, "T")/100 -> 0.001799910004 | Q39: https://finance.yahoo.com/quote/ABCB | S39: 0.001799910004 | V39: =IFERROR(RTD("cqg.rtd", ,"ContractData",O39, "LongDescription",, "T"),"") -> Ameris Bancorp | Y39: 0.001799910004 | AA39: =IF(S39="#N/A",0,1) -> 1 | AB39: 1 | AD39: 0.001799910004
A40: =RTD("cqg.rtd", ,"ContractData",C40, "LongDescription",, "T") -> F.N.B. Corporation | B40: S.US.FNB | C40: S.US.FNB | D40: =RTD("cqg.rtd", ,"ContractData",C40, "LongDescription",, "T") -> F.N.B. Corporation | E40: =RTD("cqg.rtd", ,"ContractData",C40, "Open",, "T") -> 15.38 | F40: =RTD("cqg.rtd", ,"ContractData",C40, "High",, "T") -> 15.38 | G40: =RTD("cqg.rtd", ,"ContractData",C40, "Low",, "T") -> 15.32 | H40: =RTD("cqg.rtd", ,"ContractData",C40, "LastTradeToday",, "T") -> 15.34 | I40: =RTD("cqg.rtd", ,"ContractData",C40, "NetLastTradeToday",, "T") -> 0.04 | J40: =IFERROR(RTD("cqg.rtd", ,"ContractData",C40, "PerCentNetLastTrade",, "T")/100,0) -> 0.002614379085 | K40: =RTD("cqg.rtd", ,"ContractData", C40, "T_CVol",, "T") -> 37662 | L40: 40 | M40: =RANK($J40,$J$1:J$95)+COUNTIF($J$1:J40,J40)-1 -> 32 | N40: S.US.FNB | O40: S.US.AX | P40: =RTD("cqg.rtd", ,"ContractData",O40, "PerCentNetLastTrade",, "T")/100 -> 0.00170794193 | Q40: https://finance.yahoo.com/quote/AX | S40: 0.00170794193 | V40: =IFERROR(RTD("cqg.rtd", ,"ContractData",O40, "LongDescription",, "T"),"") -> Axos Financial, Inc. | Y40: 0.00170794193 | AA40: 1 | AB40: 1 | AD40: 0.00170794193
A41: =RTD("cqg.rtd", ,"ContractData",C41, "LongDescription",, "T") -> First Merchants Corp | B41: S.US.FRME | C41: S.US.FRME | D41: =RTD("cqg.rtd", ,"ContractData",C41, "LongDescription",, "T") -> First Merchants Corp | E41: =RTD("cqg.rtd", ,"ContractData",C41, "Open",, "T") -> 44.58 | F41: =RTD("cqg.rtd", ,"ContractData",C41, "High",, "T") -> 44.58 | G41: =RTD("cqg.rtd", ,"ContractData",C41, "Low",, "T") -> 44.22 | H41: =RTD("cqg.rtd", ,"ContractData",C41, "LastTradeToday",, "T") -> 44.39 | I41: =RTD("cqg.rtd", ,"ContractData",C41, "NetLastTradeToday",, "T") -> 0.01 | J41: =IFERROR(RTD("cqg.rtd", ,"ContractData",C41, "PerCentNetLastTrade",, "T")/100,0) -> 0.0002258355917 | K41: =RTD("cqg.rtd", ,"ContractData", C41, "T_CVol",, "T") -> 3156 | L41: 41 | M41: =RANK($J41,$J$1:J$95)+COUNTIF($J$1:J41,J41)-1 -> 64 | N41: S.US.FRME | O41: S.US.CASH | P41: =RTD("cqg.rtd", ,"ContractData",O41, "PerCentNetLastTrade",, "T")/100 -> 0.001523035918 | Q41: https://finance.yahoo.com/quote/CASH | S41: 0.001523035918 | V41: =IFERROR(RTD("cqg.rtd", ,"ContractData",O41, "LongDescription",, "T"),"") -> Meta Financial Group Inc | Y41: 0.001523035918 | AA41: 1 | AB41: 1 | AD41: 0.001523035918
A42: =RTD("cqg.rtd", ,"ContractData",C42, "LongDescription",, "T") -> Fulton Financial Corporation | B42: S.US.FULT | C42: S.US.FULT | D42: =RTD("cqg.rtd", ,"ContractData",C42, "LongDescription",, "T") -> Fulton Financial Corporation | E42: =RTD("cqg.rtd", ,"ContractData",C42, "Open",, "T") -> 20.49 | F42: =RTD("cqg.rtd", ,"ContractData",C42, "High",, "T") -> 20.49 | G42: =RTD("cqg.rtd", ,"ContractData",C42, "Low",, "T") -> 20.34 | H42: =RTD("cqg.rtd", ,"ContractData",C42, "LastTradeToday",, "T") -> 20.4 | I42: =RTD("cqg.rtd", ,"ContractData",C42, "NetLastTradeToday",, "T") -> 0.02 | J42: =IFERROR(RTD("cqg.rtd", ,"ContractData",C42, "PerCentNetLastTrade",, "T")/100,0) -> 0.0009808729769 | K42: =RTD("cqg.rtd", ,"ContractData", C42, "T_CVol",, "T") -> 28500 | L42: 42 | M42: =RANK($J42,$J$1:J$95)+COUNTIF($J$1:J42,J42)-1 -> 52 | N42: S.US.FULT | O42: S.US.COLB | P42: =RTD("cqg.rtd", ,"ContractData",O42, "PerCentNetLastTrade",, "T")/100 -> 0.001469507715 | Q42: https://finance.yahoo.com/quote/COLB | S42: 0.001469507715 | V42: =IFERROR(RTD("cqg.rtd", ,"ContractData",O42, "LongDescription",, "T"),"") -> Columbia Banking System | Y42: 0.001469507715 | AA42: 1 | AB42: 1 | AD42: 0.001469507715
A43: =RTD("cqg.rtd", ,"ContractData",C43, "LongDescription",, "T") -> Glacier Bancorp Inc | B43: S.US.GBCI | C43: S.US.GBCI | D43: =RTD("cqg.rtd", ,"ContractData",C43, "LongDescription",, "T") -> Glacier Bancorp Inc | E43: =RTD("cqg.rtd", ,"ContractData",C43, "Open",, "T") -> 50.43 | F43: =RTD("cqg.rtd", ,"ContractData",C43, "High",, "T") -> 50.43 | G43: =RTD("cqg.rtd", ,"ContractData",C43, "Low",, "T") -> 50.03 | H43: =RTD("cqg.rtd", ,"ContractData",C43, "LastTradeToday",, "T") -> 50.03 | I43: =RTD("cqg.rtd", ,"ContractData",C43, "NetLastTradeToday",, "T") -> -0.13 | J43: =IFERROR(RTD("cqg.rtd", ,"ContractData",C43, "PerCentNetLastTrade",, "T")/100,0) -> -0.002591706539 | K43: =RTD("cqg.rtd", ,"ContractData", C43, "T_CVol",, "T") -> 4674 | L43: 43 | M43: =RANK($J43,$J$1:J$95)+COUNTIF($J$1:J43,J43)-1 -> 84 | N43: S.US.GBCI | O43: S.US.WTFC | P43: =RTD("cqg.rtd", ,"ContractData",O43, "PerCentNetLastTrade",, "T")/100 -> 0.001384721902 | Q43: https://finance.yahoo.com/quote/WTFC | S43: 0.001384721902 | V43: =IFERROR(RTD("cqg.rtd", ,"ContractData",O43, "LongDescription",, "T"),"") -> Wintrust Financial Corp | Y43: 0.001384721902 | AA43: 1 | AB43: 1 | AD43: 0.001384721902
A44: =RTD("cqg.rtd", ,"ContractData",C44, "LongDescription",, "T") -> Huntington Bancshrs Inc | B44: S.US.HBAN | C44: S.US.HBAN | D44: =RTD("cqg.rtd", ,"ContractData",C44, "LongDescription",, "T") -> Huntington Bancshrs Inc | E44: =RTD("cqg.rtd", ,"ContractData",C44, "Open",, "T") -> 16.61 | F44: =RTD("cqg.rtd", ,"ContractData",C44, "High",, "T") -> 16.66 | G44: =RTD("cqg.rtd", ,"ContractData",C44, "Low",, "T") -> 16.53 | H44: =RTD("cqg.rtd", ,"ContractData",C44, "LastTradeToday",, "T") -> 16.56 | I44: =RTD("cqg.rtd", ,"ContractData",C44, "NetLastTradeToday",, "T") -> -0.01 | J44: =IFERROR(RTD("cqg.rtd", ,"ContractData",C44, "PerCentNetLastTrade",, "T")/100,0) -> -0.0006027727547 | K44: =RTD("cqg.rtd", ,"ContractData", C44, "T_CVol",, "T") -> 277579 | L44: 44 | M44: =RANK($J44,$J$1:J$95)+COUNTIF($J$1:J44,J44)-1 -> 71 | N44: S.US.HBAN | O44: S.US.SSB | P44: =RTD("cqg.rtd", ,"ContractData",O44, "PerCentNetLastTrade",, "T")/100 -> 0.001359223301 | Q44: https://finance.yahoo.com/quote/SSB | S44: 0.001359223301 | V44: =IFERROR(RTD("cqg.rtd", ,"ContractData",O44, "LongDescription",, "T"),"") -> South State Corporation | Y44: 0.001359223301 | AA44: 1 | AB44: 1 | AD44: 0.001359223301
A45: =RTD("cqg.rtd", ,"ContractData",C45, "LongDescription",, "T") -> Home BancShares Inc | B45: S.US.HOMB | C45: S.US.HOMB | D45: =RTD("cqg.rtd", ,"ContractData",C45, "LongDescription",, "T") -> Home BancShares Inc | E45: =RTD("cqg.rtd", ,"ContractData",C45, "Open",, "T") -> 30.52 | F45: =RTD("cqg.rtd", ,"ContractData",C45, "High",, "T") -> 30.53 | G45: =RTD("cqg.rtd", ,"ContractData",C45, "Low",, "T") -> 30.44 | H45: =RTD("cqg.rtd", ,"ContractData",C45, "LastTradeToday",, "T") -> 30.51 | I45: =RTD("cqg.rtd", ,"ContractData",C45, "NetLastTradeToday",, "T") -> 0.11 | J45: =IFERROR(RTD("cqg.rtd", ,"ContractData",C45, "PerCentNetLastTrade",, "T")/100,0) -> 0.003618421053 | K45: =RTD("cqg.rtd", ,"ContractData", C45, "T_CVol",, "T") -> 7056 | L45: 45 | M45: =RANK($J45,$J$1:J$95)+COUNTIF($J$1:J45,J45)-1 -> 24 | N45: S.US.HOMB | O45: S.US.FFIN | P45: =RTD("cqg.rtd", ,"ContractData",O45, "PerCentNetLastTrade",, "T")/100 -> 0.001339764202 | Q45: https://finance.yahoo.com/quote/FFIN | S45: 0.001339764202 | V45: =IFERROR(RTD("cqg.rtd", ,"ContractData",O45, "LongDescription",, "T"),"") -> First Financial Bankshares Inc | Y45: 0.001339764202 | AA45: 1 | AB45: 1 | AD45: 0.001339764202
A46: =RTD("cqg.rtd", ,"ContractData",C46, "LongDescription",, "T") -> Hilltop Holdings Inc. | B46: S.US.HTH | C46: S.US.HTH | D46: =RTD("cqg.rtd", ,"ContractData",C46, "LongDescription",, "T") -> Hilltop Holdings Inc. | E46: =RTD("cqg.rtd", ,"ContractData",C46, "Open",, "T") -> 31.65 | F46: =RTD("cqg.rtd", ,"ContractData",C46, "High",, "T") -> 31.65 | G46: =RTD("cqg.rtd", ,"ContractData",C46, "Low",, "T") -> 31.47 | H46: =RTD("cqg.rtd", ,"ContractData",C46, "LastTradeToday",, "T") -> 31.57 | I46: =RTD("cqg.rtd", ,"ContractData",C46, "NetLastTradeToday",, "T") -> -0.04 | J46: =IFERROR(RTD("cqg.rtd", ,"ContractData",C46, "PerCentNetLastTrade",, "T")/100,0) -> -0.001263423879 | K46: =RTD("cqg.rtd", ,"ContractData", C46, "T_CVol",, "T") -> 4712 | L46: 46 | M46: =RANK($J46,$J$1:J$95)+COUNTIF($J$1:J46,J46)-1 -> 79 | N46: S.US.HTH | O46: S.US.PNFP | P46: =RTD("cqg.rtd", ,"ContractData",O46, "PerCentNetLastTrade",, "T")/100 -> 0.001257650708 | Q46: https://finance.yahoo.com/quote/PNFP | S46: 0.001257650708 | V46: =IFERROR(RTD("cqg.rtd", ,"ContractData",O46, "LongDescription",, "T"),"") -> Pinnacle Financial Partners Inc | Y46: 0.001257650708 | AA46: 1 | AB46: 1 | AD46: 0.001257650708
A47: =RTD("cqg.rtd", ,"ContractData",C47, "LongDescription",, "T") -> Hancock Whitney Corporation | B47: S.US.HWC | C47: S.US.HWC | D47: =RTD("cqg.rtd", ,"ContractData",C47, "LongDescription",, "T") -> Hancock Whitney Corporation | E47: =RTD("cqg.rtd", ,"ContractData",C47, "Open",, "T") -> 59.59 | F47: =RTD("cqg.rtd", ,"ContractData",C47, "High",, "T") -> 59.59 | G47: =RTD("cqg.rtd", ,"ContractData",C47, "Low",, "T") -> 59.05 | H47: =RTD("cqg.rtd", ,"ContractData",C47, "LastTradeToday",, "T") -> 59.14 | I47: =RTD("cqg.rtd", ,"ContractData",C47, "NetLastTradeToday",, "T") -> 0.12 | J47: =IFERROR(RTD("cqg.rtd", ,"ContractData",C47, "PerCentNetLastTrade",, "T")/100,0) -> 0.002030456853 | K47: =RTD("cqg.rtd", ,"ContractData", C47, "T_CVol",, "T") -> 7156 | L47: 47 | M47: =RANK($J47,$J$1:J$95)+COUNTIF($J$1:J47,J47)-1 -> 34 | N47: S.US.HWC | O47: S.US.BANR | P47: =RTD("cqg.rtd", ,"ContractData",O47, "PerCentNetLastTrade",, "T")/100 -> 0.001177509567 | Q47: https://finance.yahoo.com/quote/BANR | S47: 0.001177509567 | V47: =IFERROR(RTD("cqg.rtd", ,"ContractData",O47, "LongDescription",, "T"),"") -> Banner Corporation | Y47: 0.001177509567 | AA47: 1 | AB47: 1 | AD47: 0.001177509567
A48: =RTD("cqg.rtd", ,"ContractData",C48, "LongDescription",, "T") -> Internatl Bancshares Corp | B48: S.US.IBOC | C48: S.US.IBOC | D48: =RTD("cqg.rtd", ,"ContractData",C48, "LongDescription",, "T") -> Internatl Bancshares Corp | E48: =RTD("cqg.rtd", ,"ContractData",C48, "Open",, "T") -> 65.19 | F48: =RTD("cqg.rtd", ,"ContractData",C48, "High",, "T") -> 65.24 | G48: =RTD("cqg.rtd", ,"ContractData",C48, "Low",, "T") -> 64.81 | H48: =RTD("cqg.rtd", ,"ContractData",C48, "LastTradeToday",, "T") -> 64.97 | I48: =RTD("cqg.rtd", ,"ContractData",C48, "NetLastTradeToday",, "T") -> 0.13 | J48: =IFERROR(RTD("cqg.rtd", ,"ContractData",C48, "PerCentNetLastTrade",, "T")/100,0) -> 0.002004935225 | K48: =RTD("cqg.rtd", ,"ContractData", C48, "T_CVol",, "T") -> 7462 | L48: 48 | M48: =RANK($J48,$J$1:J$95)+COUNTIF($J$1:J48,J48)-1 -> 35 | N48: S.US.IBOC | O48: S.US.VOYA | P48: =RTD("cqg.rtd", ,"ContractData",O48, "PerCentNetLastTrade",, "T")/100 -> 0.001089769786 | Q48: https://finance.yahoo.com/quote/VOYA | S48: 0.001089769786 | V48: =IFERROR(RTD("cqg.rtd", ,"ContractData",O48, "LongDescription",, "T"),"") -> VOYA Financial, Inc. | Y48: 0.001089769786 | AA48: 1 | AB48: 1 | AD48: 0.001089769786
A49: =RTD("cqg.rtd", ,"ContractData",C49, "LongDescription",, "T") -> Independent Bank Corp | B49: S.US.INDB | C49: S.US.INDB | D49: =RTD("cqg.rtd", ,"ContractData",C49, "LongDescription",, "T") -> Independent Bank Corp | E49: =RTD("cqg.rtd", ,"ContractData",C49, "Open",, "T") -> 68.98 | F49: =RTD("cqg.rtd", ,"ContractData",C49, "High",, "T") -> 68.98 | G49: =RTD("cqg.rtd", ,"ContractData",C49, "Low",, "T") -> 68.81 | H49: =RTD("cqg.rtd", ,"ContractData",C49, "LastTradeToday",, "T") -> 68.98 | I49: =RTD("cqg.rtd", ,"ContractData",C49, "NetLastTradeToday",, "T") -> 0.07 | J49: =IFERROR(RTD("cqg.rtd", ,"ContractData",C49, "PerCentNetLastTrade",, "T")/100,0) -> 0.001018181818 | K49: =RTD("cqg.rtd", ,"ContractData", C49, "T_CVol",, "T") -> 1647 | L49: 49 | M49: =RANK($J49,$J$1:J$95)+COUNTIF($J$1:J49,J49)-1 -> 50 | N49: S.US.INDB | O49: S.US.EWBC | P49: =RTD("cqg.rtd", ,"ContractData",O49, "PerCentNetLastTrade",, "T")/100 -> 0.001029760066 | Q49: https://finance.yahoo.com/quote/EWBC | S49: 0.001029760066 | V49: =IFERROR(RTD("cqg.rtd", ,"ContractData",O49, "LongDescription",, "T"),"") -> East West Bancorp | Y49: 0.001029760066 | AA49: 1 | AB49: 1 | AD49: 0.001029760066
A50: =RTD("cqg.rtd", ,"ContractData",C50, "LongDescription",, "T") -> JPMorgan Chase & Co. | B50: S.US.JPM | C50: S.US.JPM | D50: =RTD("cqg.rtd", ,"ContractData",C50, "LongDescription",, "T") -> JPMorgan Chase & Co. | E50: =RTD("cqg.rtd", ,"ContractData",C50, "Open",, "T") -> 275.5 | F50: =RTD("cqg.rtd", ,"ContractData",C50, "High",, "T") -> 275.65 | G50: =RTD("cqg.rtd", ,"ContractData",C50, "Low",, "T") -> 274.4 | H50: =RTD("cqg.rtd", ,"ContractData",C50, "LastTradeToday",, "T") -> 275.31 | I50: =RTD("cqg.rtd", ,"ContractData",C50, "NetLastTradeToday",, "T") -> -0.04 | J50: =IFERROR(RTD("cqg.rtd", ,"ContractData",C50, "PerCentNetLastTrade",, "T")/100,0) -> -0.0001452169178 | K50: =RTD("cqg.rtd", ,"ContractData", C50, "T_CVol",, "T") -> 2161303 | L50: 50 | M50: =RANK($J50,$J$1:J$95)+COUNTIF($J$1:J50,J50)-1 -> 68 | N50: S.US.JPM | O50: S.US.INDB | P50: =RTD("cqg.rtd", ,"ContractData",O50, "PerCentNetLastTrade",, "T")/100 -> 0.001018181818 | Q50: https://finance.yahoo.com/quote/INDB | S50: 0.001018181818 | V50: =IFERROR(RTD("cqg.rtd", ,"ContractData",O50, "LongDescription",, "T"),"") -> Independent Bank Corp | Y50: 0.001018181818 | AA50: 1 | AB50: 1 | AD50: 0.001018181818
A51: =RTD("cqg.rtd", ,"ContractData",C51, "LongDescription",, "T") -> Jackson Financial Inc. | B51: S.US.JXN | C51: S.US.JXN | D51: =RTD("cqg.rtd", ,"ContractData",C51, "LongDescription",, "T") -> Jackson Financial Inc. | E51: =RTD("cqg.rtd", ,"ContractData",C51, "Open",, "T") -> 91.72 | F51: =RTD("cqg.rtd", ,"ContractData",C51, "High",, "T") -> 91.75 | G51: =RTD("cqg.rtd", ,"ContractData",C51, "Low",, "T") -> 91.42 | H51: =RTD("cqg.rtd", ,"ContractData",C51, "LastTradeToday",, "T") -> 91.5 | I51: =RTD("cqg.rtd", ,"ContractData",C51, "NetLastTradeToday",, "T") -> -0.16 | J51: =IFERROR(RTD("cqg.rtd", ,"ContractData",C51, "PerCentNetLastTrade",, "T")/100,0) -> -0.001745581497 | K51: =RTD("cqg.rtd", ,"ContractData", C51, "T_CVol",, "T") -> 9010 | L51: 51 | M51: =RANK($J51,$J$1:J$95)+COUNTIF($J$1:J51,J51)-1 -> 82 | N51: S.US.JXN | O51: S.US.VLY | P51: =RTD("cqg.rtd", ,"ContractData",O51, "PerCentNetLastTrade",, "T")/100 -> 0.001016260163 | Q51: https://finance.yahoo.com/quote/VLY | S51: 0.001016260163 | V51: =IFERROR(RTD("cqg.rtd", ,"ContractData",O51, "LongDescription",, "T"),"") -> Valley National Bancorp | Y51: 0.001016260163 | AA51: 1 | AB51: 1 | AD51: 0.001016260163
A52: =RTD("cqg.rtd", ,"ContractData",C52, "LongDescription",, "T") -> KeyCorp | B52: S.US.KEY | C52: S.US.KEY | D52: =RTD("cqg.rtd", ,"ContractData",C52, "LongDescription",, "T") -> KeyCorp | E52: =RTD("cqg.rtd", ,"ContractData",C52, "Open",, "T") -> 17.68 | F52: =RTD("cqg.rtd", ,"ContractData",C52, "High",, "T") -> 17.7 | G52: =RTD("cqg.rtd", ,"ContractData",C52, "Low",, "T") -> 17.51 | H52: =RTD("cqg.rtd", ,"ContractData",C52, "LastTradeToday",, "T") -> 17.58 | I52: =RTD("cqg.rtd", ,"ContractData",C52, "NetLastTradeToday",, "T") -> 0 | J52: =IFERROR(RTD("cqg.rtd", ,"ContractData",C52, "PerCentNetLastTrade",, "T")/100,0) -> 0 | K52: =RTD("cqg.rtd", ,"ContractData", C52, "T_CVol",, "T") -> 314387 | L52: 52 | M52: =RANK($J52,$J$1:J$95)+COUNTIF($J$1:J52,J52)-1 -> 67 | N52: S.US.KEY | O52: S.US.FULT | P52: =RTD("cqg.rtd", ,"ContractData",O52, "PerCentNetLastTrade",, "T")/100 -> 0.0009808729769 | Q52: https://finance.yahoo.com/quote/FULT | S52: 0.0009808729769 | V52: =IFERROR(RTD("cqg.rtd", ,"ContractData",O52, "LongDescription",, "T"),"") -> Fulton Financial Corporation | Y52: 0.0009808729769 | AA52: 1 | AB52: 1 | AD52: 0.0009808729769
A53: =RTD("cqg.rtd", ,"ContractData",C53, "LongDescription",, "T") -> Lakeland Financial Corp | B53: S.US.LKFN | C53: S.US.LKFN | D53: =RTD("cqg.rtd", ,"ContractData",C53, "LongDescription",, "T") -> Lakeland Financial Corp | E53: =RTD("cqg.rtd", ,"ContractData",C53, "Open",, "T") -> 67.85 | F53: =RTD("cqg.rtd", ,"ContractData",C53, "High",, "T") -> 67.85 | G53: =RTD("cqg.rtd", ,"ContractData",C53, "Low",, "T") -> 67 | H53: =RTD("cqg.rtd", ,"ContractData",C53, "LastTradeToday",, "T") -> 67.66 | I53: =RTD("cqg.rtd", ,"ContractData",C53, "NetLastTradeToday",, "T") -> 0.24 | J53: =IFERROR(RTD("cqg.rtd", ,"ContractData",C53, "PerCentNetLastTrade",, "T")/100,0) -> 0.003559774548 | K53: =RTD("cqg.rtd", ,"ContractData", C53, "T_CVol",, "T") -> 944 | L53: 53 | M53: =RANK($J53,$J$1:J$95)+COUNTIF($J$1:J53,J53)-1 -> 25 | N53: S.US.LKFN | O53: S.US.OZK | P53: =RTD("cqg.rtd", ,"ContractData",O53, "PerCentNetLastTrade",, "T")/100 -> 0.000952199581 | Q53: https://finance.yahoo.com/quote/OZK | S53: 0.000952199581 | V53: =IFERROR(RTD("cqg.rtd", ,"ContractData",O53, "LongDescription",, "T"),"") -> Bank OZK | Y53: 0.000952199581 | AA53: 1 | AB53: 1 | AD53: 0.000952199581
A54: =RTD("cqg.rtd", ,"ContractData",C54, "LongDescription",, "T") -> M&T Bank Corp | B54: S.US.MTB | C54: S.US.MTB | D54: =RTD("cqg.rtd", ,"ContractData",C54, "LongDescription",, "T") -> M&T Bank Corp | E54: =RTD("cqg.rtd", ,"ContractData",C54, "Open",, "T") -> 197.29 | F54: =RTD("cqg.rtd", ,"ContractData",C54, "High",, "T") -> 198.11 | G54: =RTD("cqg.rtd", ,"ContractData",C54, "Low",, "T") -> 197.29 | H54: =RTD("cqg.rtd", ,"ContractData",C54, "LastTradeToday",, "T") -> 197.58 | I54: =RTD("cqg.rtd", ,"ContractData",C54, "NetLastTradeToday",, "T") -> 0.15 | J54: =IFERROR(RTD("cqg.rtd", ,"ContractData",C54, "PerCentNetLastTrade",, "T")/100,0) -> 0.0007591477301 | K54: =RTD("cqg.rtd", ,"ContractData", C54, "T_CVol",, "T") -> 19452 | L54: 54 | M54: =RANK($J54,$J$1:J$95)+COUNTIF($J$1:J54,J54)-1 -> 55 | N54: S.US.MTB | O54: S.US.SFBS | P54: =RTD("cqg.rtd", ,"ContractData",O54, "PerCentNetLastTrade",, "T")/100 -> 0.0007862518252 | Q54: https://finance.yahoo.com/quote/SFBS | S54: 0.0007862518252 | V54: =IFERROR(RTD("cqg.rtd", ,"ContractData",O54, "LongDescription",, "T"),"") -> ServisFirst Bancshares, Inc. | Y54: 0.0007862518252 | AA54: 1 | AB54: 1 | AD54: 0.0007862518252
A55: =RTD("cqg.rtd", ,"ContractData",C55, "LongDescription",, "T") -> MGIC Investment Corp | B55: S.US.MTG | C55: S.US.MTG | D55: =RTD("cqg.rtd", ,"ContractData",C55, "LongDescription",, "T") -> MGIC Investment Corp | E55: =RTD("cqg.rtd", ,"ContractData",C55, "Open",, "T") -> 24.2 | F55: =RTD("cqg.rtd", ,"ContractData",C55, "High",, "T") -> 24.21 | G55: =RTD("cqg.rtd", ,"ContractData",C55, "Low",, "T") -> 24.04 | H55: =RTD("cqg.rtd", ,"ContractData",C55, "LastTradeToday",, "T") -> 24.1 | I55: =RTD("cqg.rtd", ,"ContractData",C55, "NetLastTradeToday",, "T") -> -0.02 | J55: =IFERROR(RTD("cqg.rtd", ,"ContractData",C55, "PerCentNetLastTrade",, "T")/100,0) -> -0.000828843763 | K55: =RTD("cqg.rtd", ,"ContractData", C55, "T_CVol",, "T") -> 38233 | L55: 55 | M55: =RANK($J55,$J$1:J$95)+COUNTIF($J$1:J55,J55)-1 -> 73 | N55: S.US.MTG | O55: S.US.MTB | P55: =RTD("cqg.rtd", ,"ContractData",O55, "PerCentNetLastTrade",, "T")/100 -> 0.0007591477301 | Q55: https://finance.yahoo.com/quote/MTB | S55: 0.0007591477301 | V55: =IFERROR(RTD("cqg.rtd", ,"ContractData",O55, "LongDescription",, "T"),"") -> M&T Bank Corp | Y55: 0.0007591477301 | AA55: 1 | AB55: 1 | AD55: 0.0007591477301
A56: =RTD("cqg.rtd", ,"ContractData",C56, "LongDescription",, "T") -> NMI Holdings Inc. | B56: S.US.NMIH | C56: S.US.NMIH | D56: =RTD("cqg.rtd", ,"ContractData",C56, "LongDescription",, "T") -> NMI Holdings Inc. | E56: =RTD("cqg.rtd", ,"ContractData",C56, "Open",, "T") -> 35.4 | F56: =RTD("cqg.rtd", ,"ContractData",C56, "High",, "T") -> 35.41 | G56: =RTD("cqg.rtd", ,"ContractData",C56, "Low",, "T") -> 35.05 | H56: =RTD("cqg.rtd", ,"ContractData",C56, "LastTradeToday",, "T") -> 35.16 | I56: =RTD("cqg.rtd", ,"ContractData",C56, "NetLastTradeToday",, "T") -> 0.12 | J56: =IFERROR(RTD("cqg.rtd", ,"ContractData",C56, "PerCentNetLastTrade",, "T")/100,0) -> 0.003412969283 | K56: =RTD("cqg.rtd", ,"ContractData", C56, "T_CVol",, "T") -> 17428 | L56: 56 | M56: =RANK($J56,$J$1:J$95)+COUNTIF($J$1:J56,J56)-1 -> 26 | N56: S.US.NMIH | O56: S.US.WFC | P56: =RTD("cqg.rtd", ,"ContractData",O56, "PerCentNetLastTrade",, "T")/100 -> 0.0007570977918 | Q56: https://finance.yahoo.com/quote/WFC | S56: 0.0007570977918 | V56: =IFERROR(RTD("cqg.rtd", ,"ContractData",O56, "LongDescription",, "T"),"") -> Wells Fargo & Co New | Y56: 0.0007570977918 | AA56: 1 | AB56: 1 | AD56: 0.0007570977918
A57: =RTD("cqg.rtd", ,"ContractData",C57, "LongDescription",, "T") -> Northern Trust Corp | B57: S.US.NTRS | C57: S.US.NTRS | D57: =RTD("cqg.rtd", ,"ContractData",C57, "LongDescription",, "T") -> Northern Trust Corp | E57: =RTD("cqg.rtd", ,"ContractData",C57, "Open",, "T") -> 110.19 | F57: =RTD("cqg.rtd", ,"ContractData",C57, "High",, "T") -> 110.7 | G57: =RTD("cqg.rtd", ,"ContractData",C57, "Low",, "T") -> 110.1 | H57: =RTD("cqg.rtd", ,"ContractData",C57, "LastTradeToday",, "T") -> 110.58 | I57: =RTD("cqg.rtd", ,"ContractData",C57, "NetLastTradeToday",, "T") -> 0.6 | J57: =IFERROR(RTD("cqg.rtd", ,"ContractData",C57, "PerCentNetLastTrade",, "T")/100,0) -> 0.005449591281 | K57: =RTD("cqg.rtd", ,"ContractData", C57, "T_CVol",, "T") -> 18060 | L57: 57 | M57: =RANK($J57,$J$1:J$95)+COUNTIF($J$1:J57,J57)-1 -> 11 | N57: S.US.NTRS | O57: S.US.SBCF | P57: =RTD("cqg.rtd", ,"ContractData",O57, "PerCentNetLastTrade",, "T")/100 -> 0.000687049124 | Q57: https://finance.yahoo.com/quote/SBCF | S57: 0.000687049124 | V57: =IFERROR(RTD("cqg.rtd", ,"ContractData",O57, "LongDescription",, "T"),"") -> Seacoast Banking Corp of Florida | Y57: 0.000687049124 | AA57: 1 | AB57: 1 | AD57: 0.000687049124
A58: =RTD("cqg.rtd", ,"ContractData",C58, "LongDescription",, "T") -> OFG Bancorp | B58: S.US.OFG | C58: S.US.OFG | D58: =RTD("cqg.rtd", ,"ContractData",C58, "LongDescription",, "T") -> OFG Bancorp | E58: =RTD("cqg.rtd", ,"ContractData",C58, "Open",, "T") -> 43.17 | F58: =RTD("cqg.rtd", ,"ContractData",C58, "High",, "T") -> 43.17 | G58: =RTD("cqg.rtd", ,"ContractData",C58, "Low",, "T") -> 43 | H58: =RTD("cqg.rtd", ,"ContractData",C58, "LastTradeToday",, "T") -> 43 | I58: =RTD("cqg.rtd", ,"ContractData",C58, "NetLastTradeToday",, "T") -> -0.17 | J58: =IFERROR(RTD("cqg.rtd", ,"ContractData",C58, "PerCentNetLastTrade",, "T")/100,0) -> -0.003937919852 | K58: =RTD("cqg.rtd", ,"ContractData", C58, "T_CVol",, "T") -> 1930 | L58: 58 | M58: =RANK($J58,$J$1:J$95)+COUNTIF($J$1:J58,J58)-1 -> 88 | N58: S.US.OFG | O58: S.US.BOKF | P58: =RTD("cqg.rtd", ,"ContractData",O58, "PerCentNetLastTrade",, "T")/100 -> 0.0006375227687 | Q58: https://finance.yahoo.com/quote/BOKF | S58: 0.0006375227687 | V58: =IFERROR(RTD("cqg.rtd", ,"ContractData",O58, "LongDescription",, "T"),"") -> BOK Financial Corp | Y58: 0.0006375227687 | AA58: 1 | AB58: 1 | AD58: 0.0006375227687
A59: =RTD("cqg.rtd", ,"ContractData",C59, "LongDescription",, "T") -> Old National Bancorp | B59: S.US.ONB | C59: S.US.ONB | D59: =RTD("cqg.rtd", ,"ContractData",C59, "LongDescription",, "T") -> Old National Bancorp | E59: =RTD("cqg.rtd", ,"ContractData",C59, "Open",, "T") -> 23.85 | F59: =RTD("cqg.rtd", ,"ContractData",C59, "High",, "T") -> 23.88 | G59: =RTD("cqg.rtd", ,"ContractData",C59, "Low",, "T") -> 23.62 | H59: =RTD("cqg.rtd", ,"ContractData",C59, "LastTradeToday",, "T") -> 23.62 | I59: =RTD("cqg.rtd", ,"ContractData",C59, "NetLastTradeToday",, "T") -> -0.17 | J59: =IFERROR(RTD("cqg.rtd", ,"ContractData",C59, "PerCentNetLastTrade",, "T")/100,0) -> -0.007139857203 | K59: =RTD("cqg.rtd", ,"ContractData", C59, "T_CVol",, "T") -> 92949 | L59: 59 | M59: =RANK($J59,$J$1:J$95)+COUNTIF($J$1:J59,J59)-1 -> 91 | N59: S.US.ONB | O59: S.US.PNC | P59: =RTD("cqg.rtd", ,"ContractData",O59, "PerCentNetLastTrade",, "T")/100 -> 0.000613528299 | Q59: https://finance.yahoo.com/quote/PNC | S59: 0.000613528299 | V59: =IFERROR(RTD("cqg.rtd", ,"ContractData",O59, "LongDescription",, "T"),"") -> PNC Fincl Svcs Grp Inc | Y59: 0.000613528299 | AA59: 1 | AB59: 1 | AD59: 0.000613528299
A60: =RTD("cqg.rtd", ,"ContractData",C60, "LongDescription",, "T") -> Bank OZK | B60: S.US.OZK | C60: S.US.OZK | D60: =RTD("cqg.rtd", ,"ContractData",C60, "LongDescription",, "T") -> Bank OZK | E60: =RTD("cqg.rtd", ,"ContractData",C60, "Open",, "T") -> 52.5 | F60: =RTD("cqg.rtd", ,"ContractData",C60, "High",, "T") -> 52.94 | G60: =RTD("cqg.rtd", ,"ContractData",C60, "Low",, "T") -> 52.41 | H60: =RTD("cqg.rtd", ,"ContractData",C60, "LastTradeToday",, "T") -> 52.53 | I60: =RTD("cqg.rtd", ,"ContractData",C60, "NetLastTradeToday",, "T") -> 0.05 | J60: =IFERROR(RTD("cqg.rtd", ,"ContractData",C60, "PerCentNetLastTrade",, "T")/100,0) -> 0.000952199581 | K60: =RTD("cqg.rtd", ,"ContractData", C60, "T_CVol",, "T") -> 33310 | L60: 60 | M60: =RANK($J60,$J$1:J$95)+COUNTIF($J$1:J60,J60)-1 -> 53 | N60: S.US.OZK | O60: S.US.BPOP | P60: =RTD("cqg.rtd", ,"ContractData",O60, "PerCentNetLastTrade",, "T")/100 -> 0.0005853087504 | Q60: https://finance.yahoo.com/quote/BPOP | S60: 0.0005853087504 | V60: =IFERROR(RTD("cqg.rtd", ,"ContractData",O60, "LongDescription",, "T"),"") -> BanPonce Corp | Y60: 0.0005853087504 | AA60: 1 | AB60: 1 | AD60: 0.0005853087504
A61: =RTD("cqg.rtd", ,"ContractData",C61, "LongDescription",, "T") -> Prosperity Bancshares Inc. | B61: S.US.PB | C61: S.US.PB | D61: =RTD("cqg.rtd", ,"ContractData",C61, "LongDescription",, "T") -> Prosperity Bancshares Inc. | E61: =RTD("cqg.rtd", ,"ContractData",C61, "Open",, "T") -> 78.3 | F61: =RTD("cqg.rtd", ,"ContractData",C61, "High",, "T") -> 78.56 | G61: =RTD("cqg.rtd", ,"ContractData",C61, "Low",, "T") -> 77.83 | H61: =RTD("cqg.rtd", ,"ContractData",C61, "LastTradeToday",, "T") -> 78.03 | I61: =RTD("cqg.rtd", ,"ContractData",C61, "NetLastTradeToday",, "T") -> 0.15 | J61: =IFERROR(RTD("cqg.rtd", ,"ContractData",C61, "PerCentNetLastTrade",, "T")/100,0) -> 0.001922583953 | K61: =RTD("cqg.rtd", ,"ContractData", C61, "T_CVol",, "T") -> 3886 | L61: 61 | M61: =RANK($J61,$J$1:J$95)+COUNTIF($J$1:J61,J61)-1 -> 37 | N61: S.US.PB | O61: S.US.SFNC | P61: =RTD("cqg.rtd", ,"ContractData",O61, "PerCentNetLastTrade",, "T")/100 -> 0.0004442470013 | Q61: https://finance.yahoo.com/quote/SFNC | S61: 0.0004442470013 | V61: =IFERROR(RTD("cqg.rtd", ,"ContractData",O61, "LongDescription",, "T"),"") -> Simmons First National Corp | Y61: 0.0004442470013 | AA61: 1 | AB61: 1 | AD61: 0.0004442470013
A62: =RTD("cqg.rtd", ,"ContractData",C62, "LongDescription",, "T") -> Provident Financial Services Inc | B62: S.US.PFS | C62: S.US.PFS | D62: =RTD("cqg.rtd", ,"ContractData",C62, "LongDescription",, "T") -> Provident Financial Services Inc | E62: =RTD("cqg.rtd", ,"ContractData",C62, "Open",, "T") -> 18.86 | F62: =RTD("cqg.rtd", ,"ContractData",C62, "High",, "T") -> 18.86 | G62: =RTD("cqg.rtd", ,"ContractData",C62, "Low",, "T") -> 18.72 | H62: =RTD("cqg.rtd", ,"ContractData",C62, "LastTradeToday",, "T") -> 18.77 | I62: =RTD("cqg.rtd", ,"ContractData",C62, "NetLastTradeToday",, "T") -> 0.1 | J62: =IFERROR(RTD("cqg.rtd", ,"ContractData",C62, "PerCentNetLastTrade",, "T")/100,0) -> 0.005344735436 | K62: =RTD("cqg.rtd", ,"ContractData", C62, "T_CVol",, "T") -> 7590 | L62: 62 | M62: =RANK($J62,$J$1:J$95)+COUNTIF($J$1:J62,J62)-1 -> 12 | N62: S.US.PFS | O62: S.US.SNV | P62: =RTD("cqg.rtd", ,"ContractData",O62, "PerCentNetLastTrade",, "T")/100 -> 0.0003692080487 | Q62: https://finance.yahoo.com/quote/SNV | S62: 0.0003692080487 | V62: =IFERROR(RTD("cqg.rtd", ,"ContractData",O62, "LongDescription",, "T"),"") -> Synovous Fin Corp | Y62: 0.0003692080487 | AA62: 1 | AB62: 1 | AD62: 0.0003692080487
A63: =RTD("cqg.rtd", ,"ContractData",C63, "LongDescription",, "T") -> Pennymac Financial Services Inc | B63: S.US.PFSI | C63: S.US.PFSI | D63: =RTD("cqg.rtd", ,"ContractData",C63, "LongDescription",, "T") -> Pennymac Financial Services Inc | E63: =RTD("cqg.rtd", ,"ContractData",C63, "Open",, "T") -> 100.5 | F63: =RTD("cqg.rtd", ,"ContractData",C63, "High",, "T") -> 100.5 | G63: =RTD("cqg.rtd", ,"ContractData",C63, "Low",, "T") -> 99.84 | H63: =RTD("cqg.rtd", ,"ContractData",C63, "LastTradeToday",, "T") -> 99.84 | I63: =RTD("cqg.rtd", ,"ContractData",C63, "NetLastTradeToday",, "T") -> -0.02 | J63: =IFERROR(RTD("cqg.rtd", ,"ContractData",C63, "PerCentNetLastTrade",, "T")/100,0) -> -0.0002002803925 | K63: =RTD("cqg.rtd", ,"ContractData", C63, "T_CVol",, "T") -> 4047 | L63: 63 | M63: =RANK($J63,$J$1:J$95)+COUNTIF($J$1:J63,J63)-1 -> 69 | N63: S.US.PFSI | O63: S.US.UMBF | P63: =RTD("cqg.rtd", ,"ContractData",O63, "PerCentNetLastTrade",, "T")/100 -> 0.0003541703559 | Q63: https://finance.yahoo.com/quote/UMBF | S63: 0.0003541703559 | V63: =IFERROR(RTD("cqg.rtd", ,"ContractData",O63, "LongDescription",, "T"),"") -> UMB Financial Corp | Y63: 0.0003541703559 | AA63: 1 | AB63: 1 | AD63: 0.0003541703559
A64: =RTD("cqg.rtd", ,"ContractData",C64, "LongDescription",, "T") -> PNC Fincl Svcs Grp Inc | B64: S.US.PNC | C64: S.US.PNC | D64: =RTD("cqg.rtd", ,"ContractData",C64, "LongDescription",, "T") -> PNC Fincl Svcs Grp Inc | E64: =RTD("cqg.rtd", ,"ContractData",C64, "Open",, "T") -> 195.72 | F64: =RTD("cqg.rtd", ,"ContractData",C64, "High",, "T") -> 196.42 | G64: =RTD("cqg.rtd", ,"ContractData",C64, "Low",, "T") -> 195.33 | H64: =RTD("cqg.rtd", ,"ContractData",C64, "LastTradeToday",, "T") -> 195.71 | I64: =RTD("cqg.rtd", ,"ContractData",C64, "NetLastTradeToday",, "T") -> 0.12 | J64: =IFERROR(RTD("cqg.rtd", ,"ContractData",C64, "PerCentNetLastTrade",, "T")/100,0) -> 0.000613528299 | K64: =RTD("cqg.rtd", ,"ContractData", C64, "T_CVol",, "T") -> 40311 | L64: 64 | M64: =RANK($J64,$J$1:J$95)+COUNTIF($J$1:J64,J64)-1 -> 59 | N64: S.US.PNC | O64: S.US.FRME | P64: =RTD("cqg.rtd", ,"ContractData",O64, "PerCentNetLastTrade",, "T")/100 -> 0.0002258355917 | Q64: https://finance.yahoo.com/quote/FRME | S64: 0.0002258355917 | V64: =IFERROR(RTD("cqg.rtd", ,"ContractData",O64, "LongDescription",, "T"),"") -> First Merchants Corp | Y64: 0.0002258355917 | AA64: 1 | AB64: 1 | AD64: 0.0002258355917
A65: =RTD("cqg.rtd", ,"ContractData",C65, "LongDescription",, "T") -> Pinnacle Financial Partners Inc | B65: S.US.PNFP | C65: S.US.PNFP | D65: =RTD("cqg.rtd", ,"ContractData",C65, "LongDescription",, "T") -> Pinnacle Financial Partners Inc | E65: =RTD("cqg.rtd", ,"ContractData",C65, "Open",, "T") -> 119.53 | F65: =RTD("cqg.rtd", ,"ContractData",C65, "High",, "T") -> 119.63 | G65: =RTD("cqg.rtd", ,"ContractData",C65, "Low",, "T") -> 119.07 | H65: =RTD("cqg.rtd", ,"ContractData",C65, "LastTradeToday",, "T") -> 119.07 | I65: =RTD("cqg.rtd", ,"ContractData",C65, "NetLastTradeToday",, "T") -> 0.15 | J65: =IFERROR(RTD("cqg.rtd", ,"ContractData",C65, "PerCentNetLastTrade",, "T")/100,0) -> 0.001257650708 | K65: =RTD("cqg.rtd", ,"ContractData", C65, "T_CVol",, "T") -> 3989 | L65: 65 | M65: =RANK($J65,$J$1:J$95)+COUNTIF($J$1:J65,J65)-1 -> 46 | N65: =C65 -> S.US.PNFP | O65: S.US.BANC | P65: =RTD("cqg.rtd", ,"ContractData",O65, "PerCentNetLastTrade",, "T")/100 -> 0 | Q65: https://finance.yahoo.com/quote/BANC | S65: 0 | V65: =IFERROR(RTD("cqg.rtd", ,"ContractData",O65, "LongDescription",, "T"),"") -> Banc of California, Inc. | Y65: 0 | AA65: 1 | AB65: 1 | AD65: 0
A66: =RTD("cqg.rtd", ,"ContractData",C66, "LongDescription",, "T") -> Pacific Premier Bancorp Inc | B66: S.US.PPBI | C66: S.US.PPBI | D66: =RTD("cqg.rtd", ,"ContractData",C66, "LongDescription",, "T") -> Pacific Premier Bancorp Inc | E66: =RTD("cqg.rtd", ,"ContractData",C66, "Open",, "T") -> 25.12 | F66: =RTD("cqg.rtd", ,"ContractData",C66, "High",, "T") -> 25.13 | G66: =RTD("cqg.rtd", ,"ContractData",C66, "Low",, "T") -> 25.02 | H66: =RTD("cqg.rtd", ,"ContractData",C66, "LastTradeToday",, "T") -> 25.06 | I66: =RTD("cqg.rtd", ,"ContractData",C66, "NetLastTradeToday",, "T") -> 0.1 | J66: =IFERROR(RTD("cqg.rtd", ,"ContractData",C66, "PerCentNetLastTrade",, "T")/100,0) -> 0.004008016032 | K66: =RTD("cqg.rtd", ,"ContractData", C66, "T_CVol",, "T") -> 5669 | L66: 66 | M66: =RANK($J66,$J$1:J$95)+COUNTIF($J$1:J66,J66)-1 -> 21 | N66: S.US.PPBI | O66: =VLOOKUP($L66,$M$1:$N$95,2,FALSE) -> S.US.FCNCA | P66: =RTD("cqg.rtd", ,"ContractData",O66, "PerCentNetLastTrade",, "T")/100 -> 0 | Q66: ="https://finance.yahoo.com/quote/"&RIGHT(O66,(LEN(O66)-5)) -> https://finance.yahoo.com/quote/FCNCA | S66: =IF(P66>=0,P66,NA()) -> 0 | T66: =IF(P66>=0,NA(),-1*P66) ->  | V66: =IFERROR(RTD("cqg.rtd", ,"ContractData",O66, "LongDescription",, "T"),"") -> First Citizens BancShares Inc | Y66: =IFERROR(S66,P66) -> 0 | AA66: =IF(S66="NA()",0,1) -> 1 | AB66: =IFERROR(AA66,0) -> 1 | AD66: 0 | AF66: =IF(AE66="","",Y66) -> 
A67: =RTD("cqg.rtd", ,"ContractData",C67, "LongDescription",, "T") -> Radian Group | B67: S.US.RDN | C67: S.US.RDN | D67: =RTD("cqg.rtd", ,"ContractData",C67, "LongDescription",, "T") -> Radian Group | E67: =RTD("cqg.rtd", ,"ContractData",C67, "Open",, "T") -> 32.2 | F67: =RTD("cqg.rtd", ,"ContractData",C67, "High",, "T") -> 32.2 | G67: =RTD("cqg.rtd", ,"ContractData",C67, "Low",, "T") -> 31.8 | H67: =RTD("cqg.rtd", ,"ContractData",C67, "LastTradeToday",, "T") -> 31.95 | I67: =RTD("cqg.rtd", ,"ContractData",C67, "NetLastTradeToday",, "T") -> -0.04 | J67: =IFERROR(RTD("cqg.rtd", ,"ContractData",C67, "PerCentNetLastTrade",, "T")/100,0) -> -0.001251564456 | K67: =RTD("cqg.rtd", ,"ContractData", C67, "T_CVol",, "T") -> 18424 | L67: =L66+1 -> 67 | M67: =RANK($J67,$J$1:J$95)+COUNTIF($J$1:J67,J67)-1 -> 78 | N67: S.US.RDN | O67: S.US.KEY | P67: =RTD("cqg.rtd", ,"ContractData",O67, "PerCentNetLastTrade",, "T")/100 -> 0 | Q67: https://finance.yahoo.com/quote/KEY | S67: 0 | V67: =IFERROR(RTD("cqg.rtd", ,"ContractData",O67, "LongDescription",, "T"),"") -> KeyCorp | Y67: 0 | AA67: 1 | AB67: 1 | AD67: 0
A68: =RTD("cqg.rtd", ,"ContractData",C68, "LongDescription",, "T") -> Regions Financial Corp | B68: S.US.RF | C68: S.US.RF | D68: =RTD("cqg.rtd", ,"ContractData",C68, "LongDescription",, "T") -> Regions Financial Corp | E68: =RTD("cqg.rtd", ,"ContractData",C68, "Open",, "T") -> 23.98 | F68: =RTD("cqg.rtd", ,"ContractData",C68, "High",, "T") -> 24.05 | G68: =RTD("cqg.rtd", ,"ContractData",C68, "Low",, "T") -> 23.86 | H68: =RTD("cqg.rtd", ,"ContractData",C68, "LastTradeToday",, "T") -> 23.9 | I68: =RTD("cqg.rtd", ,"ContractData",C68, "NetLastTradeToday",, "T") -> -0.04 | J68: =IFERROR(RTD("cqg.rtd", ,"ContractData",C68, "PerCentNetLastTrade",, "T")/100,0) -> -0.001667361401 | K68: =RTD("cqg.rtd", ,"ContractData", C68, "T_CVol",, "T") -> 170526 | L68: 68 | M68: =RANK($J68,$J$1:J$95)+COUNTIF($J$1:J68,J68)-1 -> 81 | N68: S.US.RF | O68: S.US.JPM | P68: =RTD("cqg.rtd", ,"ContractData",O68, "PerCentNetLastTrade",, "T")/100 -> -0.0001452169178 | Q68: https://finance.yahoo.com/quote/JPM | T68: 0.0001452169178 | V68: =IFERROR(RTD("cqg.rtd", ,"ContractData",O68, "LongDescription",, "T"),"") -> JPMorgan Chase & Co. | Y68: -0.0001452169178 | AB68: 0 | AE68: 0.0001452169178 | AF68: -0.0001452169178
A69: =RTD("cqg.rtd", ,"ContractData",C69, "LongDescription",, "T") -> Rocket Companies, Inc. | B69: S.US.RKT | C69: S.US.RKT | D69: =RTD("cqg.rtd", ,"ContractData",C69, "LongDescription",, "T") -> Rocket Companies, Inc. | E69: =RTD("cqg.rtd", ,"ContractData",C69, "Open",, "T") -> 12.42 | F69: =RTD("cqg.rtd", ,"ContractData",C69, "High",, "T") -> 12.67 | G69: =RTD("cqg.rtd", ,"ContractData",C69, "Low",, "T") -> 12.32 | H69: =RTD("cqg.rtd", ,"ContractData",C69, "LastTradeToday",, "T") -> 12.46 | I69: =RTD("cqg.rtd", ,"ContractData",C69, "NetLastTradeToday",, "T") -> 0.27 | J69: =IFERROR(RTD("cqg.rtd", ,"ContractData",C69, "PerCentNetLastTrade",, "T")/100,0) -> 0.02214930271 | K69: =RTD("cqg.rtd", ,"ContractData", C69, "T_CVol",, "T") -> 196695 | L69: 69 | M69: =RANK($J69,$J$1:J$95)+COUNTIF($J$1:J69,J69)-1 -> 1 | N69: S.US.RKT | O69: S.US.PFSI | P69: =RTD("cqg.rtd", ,"ContractData",O69, "PerCentNetLastTrade",, "T")/100 -> -0.0002002803925 | Q69: https://finance.yahoo.com/quote/PFSI | T69: 0.0002002803925 | V69: =IFERROR(RTD("cqg.rtd", ,"ContractData",O69, "LongDescription",, "T"),"") -> Pennymac Financial Services Inc | Y69: -0.0002002803925 | AB69: 0 | AE69: 0.0002002803925 | AF69: -0.0002002803925
A70: =RTD("cqg.rtd", ,"ContractData",C70, "LongDescription",, "T") -> Renasant Corporation | B70: S.US.RNST | C70: S.US.RNST | D70: =RTD("cqg.rtd", ,"ContractData",C70, "LongDescription",, "T") -> Renasant Corporation | E70: =RTD("cqg.rtd", ,"ContractData",C70, "Open",, "T") -> 38.25 | F70: =RTD("cqg.rtd", ,"ContractData",C70, "High",, "T") -> 38.25 | G70: =RTD("cqg.rtd", ,"ContractData",C70, "Low",, "T") -> 37.77 | H70: =RTD("cqg.rtd", ,"ContractData",C70, "LastTradeToday",, "T") -> 37.88 | I70: =RTD("cqg.rtd", ,"ContractData",C70, "NetLastTradeToday",, "T") -> -0.28 | J70: =IFERROR(RTD("cqg.rtd", ,"ContractData",C70, "PerCentNetLastTrade",, "T")/100,0) -> -0.007354872603 | K70: =RTD("cqg.rtd", ,"ContractData", C70, "T_CVol",, "T") -> 7176 | L70: 70 | M70: =RANK($J70,$J$1:J$95)+COUNTIF($J$1:J70,J70)-1 -> 92 | N70: S.US.RNST | O70: S.US.FITB | P70: =RTD("cqg.rtd", ,"ContractData",O70, "PerCentNetLastTrade",, "T")/100 -> -0.0002302555837 | Q70: https://finance.yahoo.com/quote/FITB | T70: 0.0002302555837 | V70: =IFERROR(RTD("cqg.rtd", ,"ContractData",O70, "LongDescription",, "T"),"") -> Fifth Third Bancorp | Y70: -0.0002302555837 | AB70: 0 | AE70: 0.0002302555837 | AF70: -0.0002302555837
A71: =RTD("cqg.rtd", ,"ContractData",C71, "LongDescription",, "T") -> Seacoast Banking Corp of Florida | B71: S.US.SBCF | C71: S.US.SBCF | D71: =RTD("cqg.rtd", ,"ContractData",C71, "LongDescription",, "T") -> Seacoast Banking Corp of Florida | E71: =RTD("cqg.rtd", ,"ContractData",C71, "Open",, "T") -> 28.46 | F71: =RTD("cqg.rtd", ,"ContractData",C71, "High",, "T") -> 29.3 | G71: =RTD("cqg.rtd", ,"ContractData",C71, "Low",, "T") -> 27.65 | H71: =RTD("cqg.rtd", ,"ContractData",C71, "LastTradeToday",, "T") -> 29.01 | I71: =RTD("cqg.rtd", ,"ContractData",C71, "NetLastTradeToday",, "T") -> 0.02 | J71: =IFERROR(RTD("cqg.rtd", ,"ContractData",C71, "PerCentNetLastTrade",, "T")/100,0) -> 0.000687049124 | K71: =RTD("cqg.rtd", ,"ContractData", C71, "T_CVol",, "T") -> 8348 | L71: 71 | M71: =RANK($J71,$J$1:J$95)+COUNTIF($J$1:J71,J71)-1 -> 57 | N71: S.US.SBCF | O71: S.US.HBAN | P71: =RTD("cqg.rtd", ,"ContractData",O71, "PerCentNetLastTrade",, "T")/100 -> -0.0006027727547 | Q71: https://finance.yahoo.com/quote/HBAN | T71: 0.0006027727547 | V71: =IFERROR(RTD("cqg.rtd", ,"ContractData",O71, "LongDescription",, "T"),"") -> Huntington Bancshrs Inc | Y71: -0.0006027727547 | AB71: 0 | AE71: 0.0006027727547 | AF71: -0.0006027727547
A72: =RTD("cqg.rtd", ,"ContractData",C72, "LongDescription",, "T") -> ServisFirst Bancshares, Inc. | B72: S.US.SFBS | C72: S.US.SFBS | D72: =RTD("cqg.rtd", ,"ContractData",C72, "LongDescription",, "T") -> ServisFirst Bancshares, Inc. | E72: =RTD("cqg.rtd", ,"ContractData",C72, "Open",, "T") -> 89.78 | F72: =RTD("cqg.rtd", ,"ContractData",C72, "High",, "T") -> 89.78 | G72: =RTD("cqg.rtd", ,"ContractData",C72, "Low",, "T") -> 88.46 | H72: =RTD("cqg.rtd", ,"ContractData",C72, "LastTradeToday",, "T") -> 88.7 | I72: =RTD("cqg.rtd", ,"ContractData",C72, "NetLastTradeToday",, "T") -> 0.07 | J72: =IFERROR(RTD("cqg.rtd", ,"ContractData",C72, "PerCentNetLastTrade",, "T")/100,0) -> 0.0007862518252 | K72: =RTD("cqg.rtd", ,"ContractData", C72, "T_CVol",, "T") -> 4681 | L72: 72 | M72: =RANK($J72,$J$1:J$95)+COUNTIF($J$1:J72,J72)-1 -> 54 | N72: S.US.SFBS | O72: S.US.WAL | P72: =RTD("cqg.rtd", ,"ContractData",O72, "PerCentNetLastTrade",, "T")/100 -> -0.0008136696501 | Q72: https://finance.yahoo.com/quote/WAL | T72: 0.0008136696501 | V72: =IFERROR(RTD("cqg.rtd", ,"ContractData",O72, "LongDescription",, "T"),"") -> Western Alliance Bancorporation | Y72: -0.0008136696501 | AB72: 0 | AE72: 0.0008136696501 | AF72: -0.0008136696501
A73: =RTD("cqg.rtd", ,"ContractData",C73, "LongDescription",, "T") -> Simmons First National Corp | B73: S.US.SFNC | C73: S.US.SFNC | D73: =RTD("cqg.rtd", ,"ContractData",C73, "LongDescription",, "T") -> Simmons First National Corp | E73: =RTD("cqg.rtd", ,"ContractData",C73, "Open",, "T") -> 22.63 | F73: =RTD("cqg.rtd", ,"ContractData",C73, "High",, "T") -> 22.63 | G73: =RTD("cqg.rtd", ,"ContractData",C73, "Low",, "T") -> 22.51 | H73: =RTD("cqg.rtd", ,"ContractData",C73, "LastTradeToday",, "T") -> 22.52 | I73: =RTD("cqg.rtd", ,"ContractData",C73, "NetLastTradeToday",, "T") -> 0.01 | J73: =IFERROR(RTD("cqg.rtd", ,"ContractData",C73, "PerCentNetLastTrade",, "T")/100,0) -> 0.0004442470013 | K73: =RTD("cqg.rtd", ,"ContractData", C73, "T_CVol",, "T") -> 4355 | L73: 73 | M73: =RANK($J73,$J$1:J$95)+COUNTIF($J$1:J73,J73)-1 -> 61 | N73: S.US.SFNC | O73: S.US.MTG | P73: =RTD("cqg.rtd", ,"ContractData",O73, "PerCentNetLastTrade",, "T")/100 -> -0.000828843763 | Q73: https://finance.yahoo.com/quote/MTG | T73: 0.000828843763 | V73: =IFERROR(RTD("cqg.rtd", ,"ContractData",O73, "LongDescription",, "T"),"") -> MGIC Investment Corp | Y73: -0.000828843763 | AB73: 0 | AE73: 0.000828843763 | AF73: -0.000828843763
A74: =RTD("cqg.rtd", ,"ContractData",C74, "LongDescription",, "T") -> Synovous Fin Corp | B74: S.US.SNV | C74: S.US.SNV | D74: =RTD("cqg.rtd", ,"ContractData",C74, "LongDescription",, "T") -> Synovous Fin Corp | E74: =RTD("cqg.rtd", ,"ContractData",C74, "Open",, "T") -> 54.26 | F74: =RTD("cqg.rtd", ,"ContractData",C74, "High",, "T") -> 54.36 | G74: =RTD("cqg.rtd", ,"ContractData",C74, "Low",, "T") -> 54 | H74: =RTD("cqg.rtd", ,"ContractData",C74, "LastTradeToday",, "T") -> 54.13 | I74: =RTD("cqg.rtd", ,"ContractData",C74, "NetLastTradeToday",, "T") -> 0.02 | J74: =IFERROR(RTD("cqg.rtd", ,"ContractData",C74, "PerCentNetLastTrade",, "T")/100,0) -> 0.0003692080487 | K74: =RTD("cqg.rtd", ,"ContractData", C74, "T_CVol",, "T") -> 17127 | L74: 74 | M74: =RANK($J74,$J$1:J$95)+COUNTIF($J$1:J74,J74)-1 -> 62 | N74: S.US.SNV | O74: S.US.CFG | P74: =RTD("cqg.rtd", ,"ContractData",O74, "PerCentNetLastTrade",, "T")/100 -> -0.0008665511265 | Q74: ="https://finance.yahoo.com/quote/"&RIGHT(O74,(LEN(O74)-5)) -> https://finance.yahoo.com/quote/CFG | T74: 0.0008665511265 | V74: =IFERROR(RTD("cqg.rtd", ,"ContractData",O74, "LongDescription",, "T"),"") -> Citizens Financial Group, Inc. | Y74: -0.0008665511265 | AB74: 0 | AE74: 0.0008665511265 | AF74: -0.0008665511265
A75: =RTD("cqg.rtd", ,"ContractData",C75, "LongDescription",, "T") -> South State Corporation | B75: S.US.SSB | C75: S.US.SSB | D75: =RTD("cqg.rtd", ,"ContractData",C75, "LongDescription",, "T") -> South State Corporation | E75: =RTD("cqg.rtd", ,"ContractData",C75, "Open",, "T") -> 103.49 | F75: =RTD("cqg.rtd", ,"ContractData",C75, "High",, "T") -> 103.49 | G75: =RTD("cqg.rtd", ,"ContractData",C75, "Low",, "T") -> 103.14 | H75: =RTD("cqg.rtd", ,"ContractData",C75, "LastTradeToday",, "T") -> 103.14 | I75: =RTD("cqg.rtd", ,"ContractData",C75, "NetLastTradeToday",, "T") -> 0.14 | J75: =IFERROR(RTD("cqg.rtd", ,"ContractData",C75, "PerCentNetLastTrade",, "T")/100,0) -> 0.001359223301 | K75: =RTD("cqg.rtd", ,"ContractData", C75, "T_CVol",, "T") -> 12990 | L75: 75 | M75: =RANK($J75,$J$1:J$95)+COUNTIF($J$1:J75,J75)-1 -> 44 | N75: S.US.SSB | O75: S.US.EBC | P75: =RTD("cqg.rtd", ,"ContractData",O75, "PerCentNetLastTrade",, "T")/100 -> -0.00108754758 | Q75: https://finance.yahoo.com/quote/EBC | T75: 0.00108754758 | V75: =IFERROR(RTD("cqg.rtd", ,"ContractData",O75, "LongDescription",, "T"),"") -> Eastern Bankshares, Inc. | Y75: -0.00108754758 | AB75: 0 | AE75: 0.00108754758 | AF75: -0.00108754758
A76: =RTD("cqg.rtd", ,"ContractData",C76, "LongDescription",, "T") -> The Bancorp Bank | B76: S.US.TBBK | C76: S.US.TBBK | D76: =RTD("cqg.rtd", ,"ContractData",C76, "LongDescription",, "T") -> The Bancorp Bank | E76: =RTD("cqg.rtd", ,"ContractData",C76, "Open",, "T") -> 61.05 | F76: =RTD("cqg.rtd", ,"ContractData",C76, "High",, "T") -> 61.44 | G76: =RTD("cqg.rtd", ,"ContractData",C76, "Low",, "T") -> 61.05 | H76: =RTD("cqg.rtd", ,"ContractData",C76, "LastTradeToday",, "T") -> 61.41 | I76: =RTD("cqg.rtd", ,"ContractData",C76, "NetLastTradeToday",, "T") -> 0.42 | J76: =IFERROR(RTD("cqg.rtd", ,"ContractData",C76, "PerCentNetLastTrade",, "T")/100,0) -> 0.006886374816 | K76: =RTD("cqg.rtd", ,"ContractData", C76, "T_CVol",, "T") -> 10446 | L76: 76 | M76: =RANK($J76,$J$1:J$95)+COUNTIF($J$1:J76,J76)-1 -> 5 | N76: S.US.TBBK | O76: S.US.C | P76: =RTD("cqg.rtd", ,"ContractData",O76, "PerCentNetLastTrade",, "T")/100 -> -0.001107419712 | Q76: https://finance.yahoo.com/quote/C | T76: 0.001107419712 | V76: =IFERROR(RTD("cqg.rtd", ,"ContractData",O76, "LongDescription",, "T"),"") -> Citigroup Inc | Y76: -0.001107419712 | AB76: 0 | AE76: 0.001107419712 | AF76: -0.001107419712
A77: =RTD("cqg.rtd", ,"ContractData",C77, "LongDescription",, "T") -> Texas Capital Bancshares Inc | B77: S.US.TCBI | C77: S.US.TCBI | D77: =RTD("cqg.rtd", ,"ContractData",C77, "LongDescription",, "T") -> Texas Capital Bancshares Inc | E77: =RTD("cqg.rtd", ,"ContractData",C77, "Open",, "T") -> 82.25 | F77: =RTD("cqg.rtd", ,"ContractData",C77, "High",, "T") -> 82.87 | G77: =RTD("cqg.rtd", ,"ContractData",C77, "Low",, "T") -> 81.81 | H77: =RTD("cqg.rtd", ,"ContractData",C77, "LastTradeToday",, "T") -> 82.56 | I77: =RTD("cqg.rtd", ,"ContractData",C77, "NetLastTradeToday",, "T") -> 0.55 | J77: =IFERROR(RTD("cqg.rtd", ,"ContractData",C77, "PerCentNetLastTrade",, "T")/100,0) -> 0.006706499207 | K77: =RTD("cqg.rtd", ,"ContractData", C77, "T_CVol",, "T") -> 10731 | L77: 77 | M77: =RANK($J77,$J$1:J$95)+COUNTIF($J$1:J77,J77)-1 -> 6 | N77: S.US.TCBI | O77: S.US.CMA | P77: =RTD("cqg.rtd", ,"ContractData",O77, "PerCentNetLastTrade",, "T")/100 -> -0.001196530063 | Q77: https://finance.yahoo.com/quote/CMA | T77: 0.001196530063 | V77: =IFERROR(RTD("cqg.rtd", ,"ContractData",O77, "LongDescription",, "T"),"") -> Comerica Inc | Y77: -0.001196530063 | AB77: 0 | AE77: 0.001196530063 | AF77: -0.001196530063
A78: =RTD("cqg.rtd", ,"ContractData",C78, "LongDescription",, "T") -> Truist Financial Corporation | B78: S.US.TFC | C78: S.US.TFC | D78: =RTD("cqg.rtd", ,"ContractData",C78, "LongDescription",, "T") -> Truist Financial Corporation | E78: =RTD("cqg.rtd", ,"ContractData",C78, "Open",, "T") -> 46.49 | F78: =RTD("cqg.rtd", ,"ContractData",C78, "High",, "T") -> 46.61 | G78: =RTD("cqg.rtd", ,"ContractData",C78, "Low",, "T") -> 46.42 | H78: =RTD("cqg.rtd", ,"ContractData",C78, "LastTradeToday",, "T") -> 46.54 | I78: =RTD("cqg.rtd", ,"ContractData",C78, "NetLastTradeToday",, "T") -> 0.2 | J78: =IFERROR(RTD("cqg.rtd", ,"ContractData",C78, "PerCentNetLastTrade",, "T")/100,0) -> 0.004312203536 | K78: =RTD("cqg.rtd", ,"ContractData", C78, "T_CVol",, "T") -> 126810 | L78: 78 | M78: =RANK($J78,$J$1:J$95)+COUNTIF($J$1:J78,J78)-1 -> 19 | N78: S.US.TFC | O78: S.US.RDN | P78: =RTD("cqg.rtd", ,"ContractData",O78, "PerCentNetLastTrade",, "T")/100 -> -0.001251564456 | Q78: https://finance.yahoo.com/quote/RDN | T78: 0.001251564456 | V78: =IFERROR(RTD("cqg.rtd", ,"ContractData",O78, "LongDescription",, "T"),"") -> Radian Group | Y78: -0.001251564456 | AB78: 0 | AE78: 0.001251564456 | AF78: -0.001251564456
A79: =RTD("cqg.rtd", ,"ContractData",C79, "LongDescription",, "T") -> Triumph Financial, Inc. | B79: S.US.TFIN | C79: S.US.TFIN | D79: =RTD("cqg.rtd", ,"ContractData",C79, "LongDescription",, "T") -> Triumph Financial, Inc. | E79: =RTD("cqg.rtd", ,"ContractData",C79, "Open",, "T") -> 73.95 | F79: =RTD("cqg.rtd", ,"ContractData",C79, "High",, "T") -> 75.77 | G79: =RTD("cqg.rtd", ,"ContractData",C79, "Low",, "T") -> 73.05 | H79: =RTD("cqg.rtd", ,"ContractData",C79, "LastTradeToday",, "T") -> 73.05 | I79: =RTD("cqg.rtd", ,"ContractData",C79, "NetLastTradeToday",, "T") -> -0.69 | J79: =IFERROR(RTD("cqg.rtd", ,"ContractData",C79, "PerCentNetLastTrade",, "T")/100,0) -> -0.009357200976 | K79: =RTD("cqg.rtd", ,"ContractData", C79, "T_CVol",, "T") -> 11363 | L79: 79 | M79: =RANK($J79,$J$1:J$95)+COUNTIF($J$1:J79,J79)-1 -> 93 | N79: S.US.TFIN | O79: S.US.HTH | P79: =RTD("cqg.rtd", ,"ContractData",O79, "PerCentNetLastTrade",, "T")/100 -> -0.001263423879 | Q79: https://finance.yahoo.com/quote/HTH | T79: 0.001263423879 | V79: =IFERROR(RTD("cqg.rtd", ,"ContractData",O79, "LongDescription",, "T"),"") -> Hilltop Holdings Inc. | Y79: -0.001263423879 | AB79: 0 | AE79: 0.001263423879 | AF79: -0.001263423879
A80: =RTD("cqg.rtd", ,"ContractData",C80, "LongDescription",, "T") -> Trustmark Corporation | B80: S.US.TRMK | C80: S.US.TRMK | D80: =RTD("cqg.rtd", ,"ContractData",C80, "LongDescription",, "T") -> Trustmark Corporation | E80: =RTD("cqg.rtd", ,"ContractData",C80, "Open",, "T") -> 37.83 | F80: =RTD("cqg.rtd", ,"ContractData",C80, "High",, "T") -> 37.83 | G80: =RTD("cqg.rtd", ,"ContractData",C80, "Low",, "T") -> 37.67 | H80: =RTD("cqg.rtd", ,"ContractData",C80, "LastTradeToday",, "T") -> 37.71 | I80: =RTD("cqg.rtd", ,"ContractData",C80, "NetLastTradeToday",, "T") -> 0.12 | J80: =IFERROR(RTD("cqg.rtd", ,"ContractData",C80, "PerCentNetLastTrade",, "T")/100,0) -> 0.003192338388 | K80: =RTD("cqg.rtd", ,"ContractData", C80, "T_CVol",, "T") -> 2418 | L80: 80 | M80: =RANK($J80,$J$1:J$95)+COUNTIF($J$1:J80,J80)-1 -> 29 | N80: S.US.TRMK | O80: S.US.FBP | P80: =RTD("cqg.rtd", ,"ContractData",O80, "PerCentNetLastTrade",, "T")/100 -> -0.001477104874 | Q80: https://finance.yahoo.com/quote/FBP | T80: 0.001477104874 | V80: =IFERROR(RTD("cqg.rtd", ,"ContractData",O80, "LongDescription",, "T"),"") -> First BanCorp. | Y80: -0.001477104874 | AB80: 0 | AE80: 0.001477104874 | AF80: -0.001477104874
A81: =RTD("cqg.rtd", ,"ContractData",C81, "LongDescription",, "T") -> United Bankshares | B81: S.US.UBSI | C81: S.US.UBSI | D81: =RTD("cqg.rtd", ,"ContractData",C81, "LongDescription",, "T") -> United Bankshares | E81: =RTD("cqg.rtd", ,"ContractData",C81, "Open",, "T") -> 38.09 | F81: =RTD("cqg.rtd", ,"ContractData",C81, "High",, "T") -> 38.12 | G81: =RTD("cqg.rtd", ,"ContractData",C81, "Low",, "T") -> 37.95 | H81: =RTD("cqg.rtd", ,"ContractData",C81, "LastTradeToday",, "T") -> 37.98 | I81: =RTD("cqg.rtd", ,"ContractData",C81, "NetLastTradeToday",, "T") -> 0.25 | J81: =IFERROR(RTD("cqg.rtd", ,"ContractData",C81, "PerCentNetLastTrade",, "T")/100,0) -> 0.006606765328 | K81: =RTD("cqg.rtd", ,"ContractData", C81, "T_CVol",, "T") -> 6662 | L81: 81 | M81: =RANK($J81,$J$1:J$95)+COUNTIF($J$1:J81,J81)-1 -> 7 | N81: S.US.UBSI | O81: S.US.RF | P81: =RTD("cqg.rtd", ,"ContractData",O81, "PerCentNetLastTrade",, "T")/100 -> -0.001667361401 | Q81: https://finance.yahoo.com/quote/RF | T81: 0.001667361401 | V81: =IFERROR(RTD("cqg.rtd", ,"ContractData",O81, "LongDescription",, "T"),"") -> Regions Financial Corp | Y81: -0.001667361401 | AB81: 0 | AE81: 0.001667361401 | AF81: -0.001667361401
A82: =RTD("cqg.rtd", ,"ContractData",C82, "LongDescription",, "T") -> United Community Banks Inc | B82: S.US.UCB | C82: S.US.UCB | D82: =RTD("cqg.rtd", ,"ContractData",C82, "LongDescription",, "T") -> United Community Banks Inc | E82: =RTD("cqg.rtd", ,"ContractData",C82, "Open",, "T") -> 33.48 | F82: =RTD("cqg.rtd", ,"ContractData",C82, "High",, "T") -> 33.48 | G82: =RTD("cqg.rtd", ,"ContractData",C82, "Low",, "T") -> 33.31 | H82: =RTD("cqg.rtd", ,"ContractData",C82, "LastTradeToday",, "T") -> 33.32 | I82: =RTD("cqg.rtd", ,"ContractData",C82, "NetLastTradeToday",, "T") -> 0.11 | J82: =IFERROR(RTD("cqg.rtd", ,"ContractData",C82, "PerCentNetLastTrade",, "T")/100,0) -> 0.003312255345 | K82: =RTD("cqg.rtd", ,"ContractData", C82, "T_CVol",, "T") -> 4259 | L82: 82 | M82: =RANK($J82,$J$1:J$95)+COUNTIF($J$1:J82,J82)-1 -> 27 | N82: S.US.UCB | O82: S.US.JXN | P82: =RTD("cqg.rtd", ,"ContractData",O82, "PerCentNetLastTrade",, "T")/100 -> -0.001745581497 | Q82: https://finance.yahoo.com/quote/JXN | T82: 0.001745581497 | V82: =IFERROR(RTD("cqg.rtd", ,"ContractData",O82, "LongDescription",, "T"),"") -> Jackson Financial Inc. | Y82: -0.001745581497 | AB82: 0 | AE82: 0.001745581497 | AF82: -0.001745581497
A83: =RTD("cqg.rtd", ,"ContractData",C83, "LongDescription",, "T") -> UMB Financial Corp | B83: S.US.UMBF | C83: S.US.UMBF | D83: =RTD("cqg.rtd", ,"ContractData",C83, "LongDescription",, "T") -> UMB Financial Corp | E83: =RTD("cqg.rtd", ,"ContractData",C83, "Open",, "T") -> 113.18 | F83: =RTD("cqg.rtd", ,"ContractData",C83, "High",, "T") -> 113.9 | G83: =RTD("cqg.rtd", ,"ContractData",C83, "Low",, "T") -> 112.8 | H83: =RTD("cqg.rtd", ,"ContractData",C83, "LastTradeToday",, "T") -> 112.92 | I83: =RTD("cqg.rtd", ,"ContractData",C83, "NetLastTradeToday",, "T") -> 0.04 | J83: =IFERROR(RTD("cqg.rtd", ,"ContractData",C83, "PerCentNetLastTrade",, "T")/100,0) -> 0.0003541703559 | K83: =RTD("cqg.rtd", ,"ContractData", C83, "T_CVol",, "T") -> 17830 | L83: 83 | M83: =RANK($J83,$J$1:J$95)+COUNTIF($J$1:J83,J83)-1 -> 63 | N83: S.US.UMBF | O83: S.US.FHN | P83: =RTD("cqg.rtd", ,"ContractData",O83, "PerCentNetLastTrade",, "T")/100 -> -0.002257336343 | Q83: https://finance.yahoo.com/quote/FHN | T83: 0.002257336343 | V83: =IFERROR(RTD("cqg.rtd", ,"ContractData",O83, "LongDescription",, "T"),"") -> First Horizon Corporation | Y83: -0.002257336343 | AB83: 0 | AE83: 0.002257336343 | AF83: -0.002257336343
A84: =RTD("cqg.rtd", ,"ContractData",C84, "LongDescription",, "T") -> U S Bancorp | B84: S.US.USB | C84: S.US.USB | D84: =RTD("cqg.rtd", ,"ContractData",C84, "LongDescription",, "T") -> U S Bancorp | E84: =RTD("cqg.rtd", ,"ContractData",C84, "Open",, "T") -> 47.47 | F84: =RTD("cqg.rtd", ,"ContractData",C84, "High",, "T") -> 47.56 | G84: =RTD("cqg.rtd", ,"ContractData",C84, "Low",, "T") -> 47.14 | H84: =RTD("cqg.rtd", ,"ContractData",C84, "LastTradeToday",, "T") -> 47.23 | I84: =RTD("cqg.rtd", ,"ContractData",C84, "NetLastTradeToday",, "T") -> -0.22 | J84: =IFERROR(RTD("cqg.rtd", ,"ContractData",C84, "PerCentNetLastTrade",, "T")/100,0) -> -0.004632554222 | K84: =RTD("cqg.rtd", ,"ContractData", C84, "T_CVol",, "T") -> 147092 | L84: 84 | M84: =RANK($J84,$J$1:J$95)+COUNTIF($J$1:J84,J84)-1 -> 90 | N84: S.US.USB | O84: S.US.GBCI | P84: =RTD("cqg.rtd", ,"ContractData",O84, "PerCentNetLastTrade",, "T")/100 -> -0.002591706539 | Q84: https://finance.yahoo.com/quote/GBCI | T84: 0.002591706539 | V84: =IFERROR(RTD("cqg.rtd", ,"ContractData",O84, "LongDescription",, "T"),"") -> Glacier Bancorp Inc | Y84: -0.002591706539 | AB84: 0 | AE84: 0.002591706539 | AF84: -0.002591706539
A85: =RTD("cqg.rtd", ,"ContractData",C85, "LongDescription",, "T") -> Valley National Bancorp | B85: S.US.VLY | C85: S.US.VLY | D85: =RTD("cqg.rtd", ,"ContractData",C85, "LongDescription",, "T") -> Valley National Bancorp | E85: =RTD("cqg.rtd", ,"ContractData",C85, "Open",, "T") -> 9.88 | F85: =RTD("cqg.rtd", ,"ContractData",C85, "High",, "T") -> 9.89 | G85: =RTD("cqg.rtd", ,"ContractData",C85, "Low",, "T") -> 9.83 | H85: =RTD("cqg.rtd", ,"ContractData",C85, "LastTradeToday",, "T") -> 9.84 | I85: =RTD("cqg.rtd", ,"ContractData",C85, "NetLastTradeToday",, "T") -> 0.01 | J85: =IFERROR(RTD("cqg.rtd", ,"ContractData",C85, "PerCentNetLastTrade",, "T")/100,0) -> 0.001016260163 | K85: =RTD("cqg.rtd", ,"ContractData", C85, "T_CVol",, "T") -> 65992 | L85: 85 | M85: =RANK($J85,$J$1:J$95)+COUNTIF($J$1:J85,J85)-1 -> 51 | N85: S.US.VLY | O85: S.US.CFR | P85: =RTD("cqg.rtd", ,"ContractData",O85, "PerCentNetLastTrade",, "T")/100 -> -0.002757352941 | Q85: https://finance.yahoo.com/quote/CFR | T85: 0.002757352941 | V85: =IFERROR(RTD("cqg.rtd", ,"ContractData",O85, "LongDescription",, "T"),"") -> Cullen Frost Bankers Inc | Y85: -0.002757352941 | AB85: 0 | AE85: 0.002757352941 | AF85: -0.002757352941
A86: =RTD("cqg.rtd", ,"ContractData",C86, "LongDescription",, "T") -> VOYA Financial, Inc. | B86: S.US.VOYA | C86: S.US.VOYA | D86: =RTD("cqg.rtd", ,"ContractData",C86, "LongDescription",, "T") -> VOYA Financial, Inc. | E86: =RTD("cqg.rtd", ,"ContractData",C86, "Open",, "T") -> 73.43 | F86: =RTD("cqg.rtd", ,"ContractData",C86, "High",, "T") -> 73.64 | G86: =RTD("cqg.rtd", ,"ContractData",C86, "Low",, "T") -> 73.14 | H86: =RTD("cqg.rtd", ,"ContractData",C86, "LastTradeToday",, "T") -> 73.6 | I86: =RTD("cqg.rtd", ,"ContractData",C86, "NetLastTradeToday",, "T") -> 0.08 | J86: =IFERROR(RTD("cqg.rtd", ,"ContractData",C86, "PerCentNetLastTrade",, "T")/100,0) -> 0.001089769786 | K86: =RTD("cqg.rtd", ,"ContractData", C86, "T_CVol",, "T") -> 15054 | L86: 86 | M86: =RANK($J86,$J$1:J$95)+COUNTIF($J$1:J86,J86)-1 -> 48 | N86: S.US.VOYA | O86: S.US.EQH | P86: =RTD("cqg.rtd", ,"ContractData",O86, "PerCentNetLastTrade",, "T")/100 -> -0.002795899348 | Q86: https://finance.yahoo.com/quote/EQH | T86: 0.002795899348 | V86: =IFERROR(RTD("cqg.rtd", ,"ContractData",O86, "LongDescription",, "T"),"") -> Equitable Holdings, Inc. | Y86: -0.002795899348 | AB86: 0 | AE86: 0.002795899348 | AF86: -0.002795899348
A87: =RTD("cqg.rtd", ,"ContractData",C87, "LongDescription",, "T") -> WaFd Inc. | B87: S.US.WAFD | C87: S.US.WAFD | D87: =RTD("cqg.rtd", ,"ContractData",C87, "LongDescription",, "T") -> WaFd Inc. | E87: =RTD("cqg.rtd", ,"ContractData",C87, "Open",, "T") -> 29.61 | F87: =RTD("cqg.rtd", ,"ContractData",C87, "High",, "T") -> 29.61 | G87: =RTD("cqg.rtd", ,"ContractData",C87, "Low",, "T") -> 29.61 | H87: =RTD("cqg.rtd", ,"ContractData",C87, "LastTradeToday",, "T") -> 29.61 | I87: =RTD("cqg.rtd", ,"ContractData",C87, "NetLastTradeToday",, "T") -> 0.15 | J87: =IFERROR(RTD("cqg.rtd", ,"ContractData",C87, "PerCentNetLastTrade",, "T")/100,0) -> 0.005091649695 | K87: =RTD("cqg.rtd", ,"ContractData", C87, "T_CVol",, "T") -> 1665 | L87: 87 | M87: =RANK($J87,$J$1:J$95)+COUNTIF($J$1:J87,J87)-1 -> 14 | N87: S.US.WAFD | O87: S.US.COOP | P87: =RTD("cqg.rtd", ,"ContractData",O87, "PerCentNetLastTrade",, "T")/100 -> -0.002998781745 | Q87: https://finance.yahoo.com/quote/COOP | T87: 0.002998781745 | V87: =IFERROR(RTD("cqg.rtd", ,"ContractData",O87, "LongDescription",, "T"),"") -> Mr. Cooper Group Inc. | Y87: -0.002998781745 | AB87: 0 | AE87: 0.002998781745 | AF87: -0.002998781745
A88: =RTD("cqg.rtd", ,"ContractData",C88, "LongDescription",, "T") -> Western Alliance Bancorporation | B88: S.US.WAL | C88: S.US.WAL | D88: =RTD("cqg.rtd", ,"ContractData",C88, "LongDescription",, "T") -> Western Alliance Bancorporation | E88: =RTD("cqg.rtd", ,"ContractData",C88, "Open",, "T") -> 86.2 | F88: =RTD("cqg.rtd", ,"ContractData",C88, "High",, "T") -> 86.2 | G88: =RTD("cqg.rtd", ,"ContractData",C88, "Low",, "T") -> 85.96 | H88: =RTD("cqg.rtd", ,"ContractData",C88, "LastTradeToday",, "T") -> 85.96 | I88: =RTD("cqg.rtd", ,"ContractData",C88, "NetLastTradeToday",, "T") -> -0.07 | J88: =IFERROR(RTD("cqg.rtd", ,"ContractData",C88, "PerCentNetLastTrade",, "T")/100,0) -> -0.0008136696501 | K88: =RTD("cqg.rtd", ,"ContractData", C88, "T_CVol",, "T") -> 19482 | L88: 88 | M88: =RANK($J88,$J$1:J$95)+COUNTIF($J$1:J88,J88)-1 -> 72 | N88: S.US.WAL | O88: S.US.OFG | P88: =RTD("cqg.rtd", ,"ContractData",O88, "PerCentNetLastTrade",, "T")/100 -> -0.003937919852 | Q88: https://finance.yahoo.com/quote/OFG | T88: 0.003937919852 | V88: =IFERROR(RTD("cqg.rtd", ,"ContractData",O88, "LongDescription",, "T"),"") -> OFG Bancorp | Y88: -0.003937919852 | AB88: 0 | AE88: 0.003937919852 | AF88: -0.003937919852
A89: =RTD("cqg.rtd", ,"ContractData",C89, "LongDescription",, "T") -> Webster Financial Corp | B89: S.US.WBS | C89: S.US.WBS | D89: =RTD("cqg.rtd", ,"ContractData",C89, "LongDescription",, "T") -> Webster Financial Corp | E89: =RTD("cqg.rtd", ,"ContractData",C89, "Open",, "T") -> 58.97 | F89: =RTD("cqg.rtd", ,"ContractData",C89, "High",, "T") -> 58.97 | G89: =RTD("cqg.rtd", ,"ContractData",C89, "Low",, "T") -> 58.79 | H89: =RTD("cqg.rtd", ,"ContractData",C89, "LastTradeToday",, "T") -> 58.93 | I89: =RTD("cqg.rtd", ,"ContractData",C89, "NetLastTradeToday",, "T") -> 0.11 | J89: =IFERROR(RTD("cqg.rtd", ,"ContractData",C89, "PerCentNetLastTrade",, "T")/100,0) -> 0.001871066508 | K89: =RTD("cqg.rtd", ,"ContractData", C89, "T_CVol",, "T") -> 7821 | L89: 89 | M89: =RANK($J89,$J$1:J$95)+COUNTIF($J$1:J89,J89)-1 -> 38 | N89: S.US.WBS | O89: S.US.ZION | P89: =RTD("cqg.rtd", ,"ContractData",O89, "PerCentNetLastTrade",, "T")/100 -> -0.004506940689 | Q89: https://finance.yahoo.com/quote/ZION | T89: 0.004506940689 | V89: =IFERROR(RTD("cqg.rtd", ,"ContractData",O89, "LongDescription",, "T"),"") -> Zions Bancorp | Y89: -0.004506940689 | AB89: 0 | AD89: =IFERROR(S89,"") ->  | AE89: 0.004506940689 | AF89: -0.004506940689
A90: =RTD("cqg.rtd", ,"ContractData",C90, "LongDescription",, "T") -> Walker & Dunlop, Inc. | B90: S.US.WD | C90: S.US.WD | D90: =RTD("cqg.rtd", ,"ContractData",C90, "LongDescription",, "T") -> Walker & Dunlop, Inc. | E90: =RTD("cqg.rtd", ,"ContractData",C90, "Open",, "T") -> 90.67 | F90: =RTD("cqg.rtd", ,"ContractData",C90, "High",, "T") -> 90.67 | G90: =RTD("cqg.rtd", ,"ContractData",C90, "Low",, "T") -> 88.85 | H90: =RTD("cqg.rtd", ,"ContractData",C90, "LastTradeToday",, "T") -> 89.34 | I90: =RTD("cqg.rtd", ,"ContractData",C90, "NetLastTradeToday",, "T") -> -1.64 | J90: =IFERROR(RTD("cqg.rtd", ,"ContractData",C90, "PerCentNetLastTrade",, "T")/100,0) -> -0.01802593977 | K90: =RTD("cqg.rtd", ,"ContractData", C90, "T_CVol",, "T") -> 20844 | L90: 90 | M90: =RANK($J90,$J$1:J$95)+COUNTIF($J$1:J90,J90)-1 -> 94 | N90: S.US.WD | O90: S.US.USB | P90: =RTD("cqg.rtd", ,"ContractData",O90, "PerCentNetLastTrade",, "T")/100 -> -0.004632554222 | Q90: https://finance.yahoo.com/quote/USB | T90: 0.004632554222 | V90: =IFERROR(RTD("cqg.rtd", ,"ContractData",O90, "LongDescription",, "T"),"") -> U S Bancorp | Y90: -0.004632554222 | AB90: 0 | AE90: 0.004632554222 | AF90: -0.004632554222
A91: =RTD("cqg.rtd", ,"ContractData",C91, "LongDescription",, "T") -> Wells Fargo & Co New | B91: S.US.WFC | C91: S.US.WFC | D91: =RTD("cqg.rtd", ,"ContractData",C91, "LongDescription",, "T") -> Wells Fargo & Co New | E91: =RTD("cqg.rtd", ,"ContractData",C91, "Open",, "T") -> 79.43 | F91: =RTD("cqg.rtd", ,"ContractData",C91, "High",, "T") -> 79.47 | G91: =RTD("cqg.rtd", ,"ContractData",C91, "Low",, "T") -> 79.09 | H91: =RTD("cqg.rtd", ,"ContractData",C91, "LastTradeToday",, "T") -> 79.27 | I91: =RTD("cqg.rtd", ,"ContractData",C91, "NetLastTradeToday",, "T") -> 0.06 | J91: =IFERROR(RTD("cqg.rtd", ,"ContractData",C91, "PerCentNetLastTrade",, "T")/100,0) -> 0.0007570977918 | K91: =RTD("cqg.rtd", ,"ContractData", C91, "T_CVol",, "T") -> 302678 | L91: 91 | M91: =RANK($J91,$J$1:J$95)+COUNTIF($J$1:J91,J91)-1 -> 56 | N91: S.US.WFC | O91: S.US.ONB | P91: =RTD("cqg.rtd", ,"ContractData",O91, "PerCentNetLastTrade",, "T")/100 -> -0.007139857203 | Q91: https://finance.yahoo.com/quote/ONB | T91: 0.007139857203 | V91: =IFERROR(RTD("cqg.rtd", ,"ContractData",O91, "LongDescription",, "T"),"") -> Old National Bancorp | Y91: -0.007139857203 | AB91: 0 | AE91: 0.007139857203 | AF91: -0.007139857203
A92: =RTD("cqg.rtd", ,"ContractData",C92, "LongDescription",, "T") -> WesBanco | B92: S.US.WSBC | C92: S.US.WSBC | D92: =RTD("cqg.rtd", ,"ContractData",C92, "LongDescription",, "T") -> WesBanco | E92: =RTD("cqg.rtd", ,"ContractData",C92, "Open",, "T") -> 36.75 | F92: =RTD("cqg.rtd", ,"ContractData",C92, "High",, "T") -> 36.75 | G92: =RTD("cqg.rtd", ,"ContractData",C92, "Low",, "T") -> 36.44 | H92: =RTD("cqg.rtd", ,"ContractData",C92, "LastTradeToday",, "T") -> 36.58 | I92: =RTD("cqg.rtd", ,"ContractData",C92, "NetLastTradeToday",, "T") -> 0.24 | J92: =IFERROR(RTD("cqg.rtd", ,"ContractData",C92, "PerCentNetLastTrade",, "T")/100,0) -> 0.00660429279 | K92: =RTD("cqg.rtd", ,"ContractData", C92, "T_CVol",, "T") -> 13765 | L92: 92 | M92: =RANK($J92,$J$1:J$95)+COUNTIF($J$1:J92,J92)-1 -> 8 | N92: S.US.WSBC | O92: S.US.RNST | P92: =RTD("cqg.rtd", ,"ContractData",O92, "PerCentNetLastTrade",, "T")/100 -> -0.007354872603 | Q92: https://finance.yahoo.com/quote/RNST | T92: 0.007354872603 | V92: =IFERROR(RTD("cqg.rtd", ,"ContractData",O92, "LongDescription",, "T"),"") -> Renasant Corporation | Y92: -0.007354872603 | AB92: 0 | AE92: 0.007354872603 | AF92: -0.007354872603
A93: =RTD("cqg.rtd", ,"ContractData",C93, "LongDescription",, "T") -> WSFS Financial Corp | B93: S.US.WSFS | C93: S.US.WSFS | D93: =RTD("cqg.rtd", ,"ContractData",C93, "LongDescription",, "T") -> WSFS Financial Corp | E93: =RTD("cqg.rtd", ,"ContractData",C93, "Open",, "T") -> 56.64 | F93: =RTD("cqg.rtd", ,"ContractData",C93, "High",, "T") -> 56.64 | G93: =RTD("cqg.rtd", ,"ContractData",C93, "Low",, "T") -> 56.5 | H93: =RTD("cqg.rtd", ,"ContractData",C93, "LastTradeToday",, "T") -> 56.57 | I93: =RTD("cqg.rtd", ,"ContractData",C93, "NetLastTradeToday",, "T") -> 0.28 | J93: =IFERROR(RTD("cqg.rtd", ,"ContractData",C93, "PerCentNetLastTrade",, "T")/100,0) -> 0.004973357016 | K93: =RTD("cqg.rtd", ,"ContractData", C93, "T_CVol",, "T") -> 2306 | L93: 93 | M93: =RANK($J93,$J$1:J$95)+COUNTIF($J$1:J93,J93)-1 -> 17 | N93: S.US.WSFS | O93: S.US.TFIN | P93: =RTD("cqg.rtd", ,"ContractData",O93, "PerCentNetLastTrade",, "T")/100 -> -0.009357200976 | Q93: https://finance.yahoo.com/quote/TFIN | T93: 0.009357200976 | V93: =IFERROR(RTD("cqg.rtd", ,"ContractData",O93, "LongDescription",, "T"),"") -> Triumph Financial, Inc. | Y93: -0.009357200976 | AB93: 0 | AE93: 0.009357200976 | AF93: -0.009357200976
A94: =RTD("cqg.rtd", ,"ContractData",C94, "LongDescription",, "T") -> Wintrust Financial Corp | B94: S.US.WTFC | C94: S.US.WTFC | D94: =RTD("cqg.rtd", ,"ContractData",C94, "LongDescription",, "T") -> Wintrust Financial Corp | E94: =RTD("cqg.rtd", ,"ContractData",C94, "Open",, "T") -> 129.51 | F94: =RTD("cqg.rtd", ,"ContractData",C94, "High",, "T") -> 130.99 | G94: =RTD("cqg.rtd", ,"ContractData",C94, "Low",, "T") -> 129.51 | H94: =RTD("cqg.rtd", ,"ContractData",C94, "LastTradeToday",, "T") -> 130.17 | I94: =RTD("cqg.rtd", ,"ContractData",C94, "NetLastTradeToday",, "T") -> 0.18 | J94: =IFERROR(RTD("cqg.rtd", ,"ContractData",C94, "PerCentNetLastTrade",, "T")/100,0) -> 0.001384721902 | K94: =RTD("cqg.rtd", ,"ContractData", C94, "T_CVol",, "T") -> 4124 | L94: 94 | M94: =RANK($J94,$J$1:J$95)+COUNTIF($J$1:J94,J94)-1 -> 43 | N94: S.US.WTFC | O94: S.US.WD | P94: =RTD("cqg.rtd", ,"ContractData",O94, "PerCentNetLastTrade",, "T")/100 -> -0.01802593977 | Q94: https://finance.yahoo.com/quote/WD | T94: 0.01802593977 | V94: =IFERROR(RTD("cqg.rtd", ,"ContractData",O94, "LongDescription",, "T"),"") -> Walker & Dunlop, Inc. | Y94: -0.01802593977 | AB94: 0 | AE94: 0.01802593977 | AF94: -0.01802593977
A95: =RTD("cqg.rtd", ,"ContractData",C95, "LongDescription",, "T") -> Zions Bancorp | B95: S.US.ZION | C95: S.US.ZION | D95: =RTD("cqg.rtd", ,"ContractData",C95, "LongDescription",, "T") -> Zions Bancorp | E95: =RTD("cqg.rtd", ,"ContractData",C95, "Open",, "T") -> 55.12 | F95: =RTD("cqg.rtd", ,"ContractData",C95, "High",, "T") -> 55.32 | G95: =RTD("cqg.rtd", ,"ContractData",C95, "Low",, "T") -> 55.05 | H95: =RTD("cqg.rtd", ,"ContractData",C95, "LastTradeToday",, "T") -> 55.16 | I95: =RTD("cqg.rtd", ,"ContractData",C95, "NetLastTradeToday",, "T") -> -0.25 | J95: =IFERROR(RTD("cqg.rtd", ,"ContractData",C95, "PerCentNetLastTrade",, "T")/100,0) -> -0.004506940689 | K95: =RTD("cqg.rtd", ,"ContractData", C95, "T_CVol",, "T") -> 39798 | L95: 95 | M95: =RANK($J95,$J$1:J$95)+COUNTIF($J$1:J95,J95)-1 -> 89 | N95: S.US.ZION | O95: S.US.CRBG | P95: =RTD("cqg.rtd", ,"ContractData",O95, "PerCentNetLastTrade",, "T")/100 -> -0.02503052503 | Q95: https://finance.yahoo.com/quote/CRBG | T95: 0.02503052503 | V95: =IFERROR(RTD("cqg.rtd", ,"ContractData",O95, "LongDescription",, "T"),"") -> Corebridge Financial, Inc. | Y95: -0.02503052503 | AB95: 0 | AE95: 0.02503052503 | AF95: -0.02503052503
AE138: =IFERROR(T138,"") -> 0 | AF138: =IF(AE138="","",Y138) -> 0
AB170: =SUM(AB1:AB95)/95 -> 0.7052631579
